Workbook

Sheet 【記載例】地域密着型通所介護
C1: （参考様式） | H1: 従業者の勤務の体制及び勤務形態一覧表 | AO1: サービス種別（ | AP1: 地域密着型通所介護 | BF1: ）
Y2: 令和 | Z2: 2 | AB2: ( | AC2: =IF(Z2=0,"",YEAR(DATE(2018+Z2,1,1))) -> 2020 | AE2: ) | AF2: 年 | AG2: 4 | AI2: 月 | AO2: 事業所名（ | AP2: ○○デイサービス | BF2: ）
BA3: (1) | BB3: 計画
B6: (2) 事業所の営業日 | AH6: (3) 事業所における常勤の従業者が勤務すべき時間数 | AT6: 8 | AV6: 時間/日 | AX6: 40 | AZ6: 時間/週 | BB6: 160 | BD6: 時間/月
B7: 月 | C7: 火 | D7: 水 | E7: 木 | G7: 金 | H7: 土 | I7: 日 | J7: 祝 | L7: サービス提供時間（送迎時間を除く）
B8: ○ | C8: ○ | D8: ○ | E8: ○ | G8: ○ | H8: ○ | I8: ○ | J8: ○ | K8: ⇒ | L8: 09:30:00 | O8: ～ | P8: 16:30:00 | S8: （計 | T8: =(P8-L8)*24 -> 7 | V8: 時間） | AR8: (4) 利用定員 | AU8: 18 | AW8: 人 | AY8: 当月の日数 | BB8: =DAY(EOMONTH(DATE(AC2,AG2,1),0)) -> 30 | BD8: 日
B10: － | C10: － | D10: － | E10: － | G10: － | H10: － | I10: － | J10: － | K10: ⇒ | O10: ～ | S10: （計 | T10: =(P10-L10)*24 -> 0 | V10: 時間） | AZ10: (5) 事業所全体のサービス提供単位数 | BB10: 1 | BE10: 単位
B12: 備考（休業日等） | BB12: 1 | BE12: 単位目
B14: 休業日：12/30～1/3（年末年始） | AT14: (6) 当該サービス提供単位のサービス提供時間 | AU14: 09:30:00 | AX14: ～ | AY14: 16:30:00 | BB14: （計 | BC14: =(AY14-AU14)*24 -> 7 | BE14: 時間）
B17: No | C17: (7) 職種 | G17: (8) 勤務 形態 | H17: (9) 資格 | L17: (10) 氏 名 | S17: (11) 勤 務 時 間 数 | AX17: =IF(BB3="計画","(12) 1～4週目の勤務時間数合計","(12) 1か月の勤務時間数 合計") -> (12) 1～4週目の勤務時間数合計 | AZ17: (13) 週平均 勤務時間 数 | BB17: (14) 兼務状況 （兼務先及び兼務する 職務の内容）
S18: 1週目 | Z18: 2週目 | AG18: 3週目 | AN18: 4週目 | AU18: 5週目
S19: 1 | T19: 2 | U19: 3 | V19: 4 | W19: 5 | X19: 6 | Y19: 7 | Z19: 8 | AA19: 9 | AB19: 10 | AC19: 11 | AD19: 12 | AE19: 13 | AF19: 14 | AG19: 15 | AH19: 16 | AI19: 17 | AJ19: 18 | AK19: 19 | AL19: 20 | AM19: 21 | AN19: 22 | AO19: 23 | AP19: 24 | AQ19: 25 | AR19: 26 | AS19: 27 | AT19: 28 | AU19: =IF($BB$3="実績",IF(DAY(DATE($AC$2,$AG$2,29))=29,29,""),"") ->  | AV19: =IF($BB$3="実績",IF(DAY(DATE($AC$2,$AG$2,30))=30,30,""),"") ->  | AW19: =IF($BB$3="実績",IF(DAY(DATE($AC$2,$AG$2,31))=31,31,""),"") -> 
S20: =WEEKDAY(DATE($AC$2,$AG$2,1)) -> 4 | T20: =WEEKDAY(DATE($AC$2,$AG$2,2)) -> 5 | U20: =WEEKDAY(DATE($AC$2,$AG$2,3)) -> 6 | V20: =WEEKDAY(DATE($AC$2,$AG$2,4)) -> 7 | W20: =WEEKDAY(DATE($AC$2,$AG$2,5)) -> 1 | X20: =WEEKDAY(DATE($AC$2,$AG$2,6)) -> 2 | Y20: =WEEKDAY(DATE($AC$2,$AG$2,7)) -> 3 | Z20: =WEEKDAY(DATE($AC$2,$AG$2,8)) -> 4 | AA20: =WEEKDAY(DATE($AC$2,$AG$2,9)) -> 5 | AB20: =WEEKDAY(DATE($AC$2,$AG$2,10)) -> 6 | AC20: =WEEKDAY(DATE($AC$2,$AG$2,11)) -> 7 | AD20: =WEEKDAY(DATE($AC$2,$AG$2,12)) -> 1 | AE20: =WEEKDAY(DATE($AC$2,$AG$2,13)) -> 2 | AF20: =WEEKDAY(DATE($AC$2,$AG$2,14)) -> 3 | AG20: =WEEKDAY(DATE($AC$2,$AG$2,15)) -> 4 | AH20: =WEEKDAY(DATE($AC$2,$AG$2,16)) -> 5 | AI20: =WEEKDAY(DATE($AC$2,$AG$2,17)) -> 6 | AJ20: =WEEKDAY(DATE($AC$2,$AG$2,18)) -> 7 | AK20: =WEEKDAY(DATE($AC$2,$AG$2,19)) -> 1 | AL20: =WEEKDAY(DATE($AC$2,$AG$2,20)) -> 2 | AM20: =WEEKDAY(DATE($AC$2,$AG$2,21)) -> 3 | AN20: =WEEKDAY(DATE($AC$2,$AG$2,22)) -> 4 | AO20: =WEEKDAY(DATE($AC$2,$AG$2,23)) -> 5 | AP20: =WEEKDAY(DATE($AC$2,$AG$2,24)) -> 6 | AQ20: =WEEKDAY(DATE($AC$2,$AG$2,25)) -> 7 | AR20: =WEEKDAY(DATE($AC$2,$AG$2,26)) -> 1 | AS20: =WEEKDAY(DATE($AC$2,$AG$2,27)) -> 2 | AT20: =WEEKDAY(DATE($AC$2,$AG$2,28)) -> 3 | AU20: =IF(AU19=29,WEEKDAY(DATE($AC$2,$AG$2,29)),0) -> 0 | AV20: =IF(AV19=30,WEEKDAY(DATE($AC$2,$AG$2,30)),0) -> 0 | AW20: =IF(AW19=31,WEEKDAY(DATE($AC$2,$AG$2,31)),0) -> 0
S21: =IF(S20=1,"日",IF(S20=2,"月",IF(S20=3,"火",IF(S20=4,"水",IF(S20=5,"木",IF(S20=6,"金","土")))))) -> 水 | T21: =IF(T20=1,"日",IF(T20=2,"月",IF(T20=3,"火",IF(T20=4,"水",IF(T20=5,"木",IF(T20=6,"金","土")))))) -> 木 | U21: 金 | V21: 土 | W21: 日 | X21: 月 | Y21: 火 | Z21: =IF(Z20=1,"日",IF(Z20=2,"月",IF(Z20=3,"火",IF(Z20=4,"水",IF(Z20=5,"木",IF(Z20=6,"金","土")))))) -> 水 | AA21: 木 | AB21: 金 | AC21: 土 | AD21: 日 | AE21: 月 | AF21: 火 | AG21: =IF(AG20=1,"日",IF(AG20=2,"月",IF(AG20=3,"火",IF(AG20=4,"水",IF(AG20=5,"木",IF(AG20=6,"金","土")))))) -> 水 | AH21: 木 | AI21: 金 | AJ21: 土 | AK21: 日 | AL21: 月 | AM21: 火 | AN21: =IF(AN20=1,"日",IF(AN20=2,"月",IF(AN20=3,"火",IF(AN20=4,"水",IF(AN20=5,"木",IF(AN20=6,"金","土")))))) -> 水 | AO21: 木 | AP21: 金 | AQ21: 土 | AR21: 日 | AS21: 月 | AT21: 火 | AU21: =IF(AU20=1,"日",IF(AU20=2,"月",IF(AU20=3,"火",IF(AU20=4,"水",IF(AU20=5,"木",IF(AU20=6,"金",IF(AU20=0,"","土"))))))) ->  | AV21: =IF(AV20=1,"日",IF(AV20=2,"月",IF(AV20=3,"火",IF(AV20=4,"水",IF(AV20=5,"木",IF(AV20=6,"金",IF(AV20=0,"","土"))))))) ->  | AW21: =IF(AW20=1,"日",IF(AW20=2,"月",IF(AW20=3,"火",IF(AW20=4,"水",IF(AW20=5,"木",IF(AW20=6,"金",IF(AW20=0,"","土"))))))) -> 
B22: 1 | G22: A | H22: ー | L22: 厚労 太郎 | P22: シフト記号 | S22: a | T22: a | U22: 休 | V22: a | W22: a | X22: 休 | Y22: a | Z22: a | AA22: a | AB22: 休 | AC22: a | AD22: a | AE22: 休 | AF22: a | AG22: a | AH22: a | AI22: 休 | AJ22: a | AK22: a | AL22: 休 | AM22: a | AN22: a | AO22: a | AP22: 休 | AQ22: a | AR22: a | AS22: 休 | AT22: a
C23: 管理者 | P23: 勤務時間数 | S23: =IF(S22="","",VLOOKUP(S22,'【記載例】シフト記号表（勤務時間帯）'!$C$5:$K$36,9,FALSE)) -> 8 | T23: =IF(T22="","",VLOOKUP(T22,'【記載例】シフト記号表（勤務時間帯）'!$C$5:$K$36,9,FALSE)) -> 8 | U23: =IF(U22="","",VLOOKUP(U22,'【記載例】シフト記号表（勤務時間帯）'!$C$5:$K$36,9,FALSE)) -> - | V23: =IF(V22="","",VLOOKUP(V22,'【記載例】シフト記号表（勤務時間帯）'!$C$5:$K$36,9,FALSE)) -> 8 | W23: =IF(W22="","",VLOOKUP(W22,'【記載例】シフト記号表（勤務時間帯）'!$C$5:$K$36,9,FALSE)) -> 8 | X23: =IF(X22="","",VLOOKUP(X22,'【記載例】シフト記号表（勤務時間帯）'!$C$5:$K$36,9,FALSE)) -> - | Y23: =IF(Y22="","",VLOOKUP(Y22,'【記載例】シフト記号表（勤務時間帯）'!$C$5:$K$36,9,FALSE)) -> 8 | Z23: =IF(Z22="","",VLOOKUP(Z22,'【記載例】シフト記号表（勤務時間帯）'!$C$5:$K$36,9,FALSE)) -> 8 | AA23: =IF(AA22="","",VLOOKUP(AA22,'【記載例】シフト記号表（勤務時間帯）'!$C$5:$K$36,9,FALSE)) -> 8 | AB23: =IF(AB22="","",VLOOKUP(AB22,'【記載例】シフト記号表（勤務時間帯）'!$C$5:$K$36,9,FALSE)) -> - | AC23: =IF(AC22="","",VLOOKUP(AC22,'【記載例】シフト記号表（勤務時間帯）'!$C$5:$K$36,9,FALSE)) -> 8 | AD23: =IF(AD22="","",VLOOKUP(AD22,'【記載例】シフト記号表（勤務時間帯）'!$C$5:$K$36,9,FALSE)) -> 8 | AE23: =IF(AE22="","",VLOOKUP(AE22,'【記載例】シフト記号表（勤務時間帯）'!$C$5:$K$36,9,FALSE)) -> - | AF23: =IF(AF22="","",VLOOKUP(AF22,'【記載例】シフト記号表（勤務時間帯）'!$C$5:$K$36,9,FALSE)) -> 8 | AG23: =IF(AG22="","",VLOOKUP(AG22,'【記載例】シフト記号表（勤務時間帯）'!$C$5:$K$36,9,FALSE)) -> 8 | AH23: =IF(AH22="","",VLOOKUP(AH22,'【記載例】シフト記号表（勤務時間帯）'!$C$5:$K$36,9,FALSE)) -> 8 | AI23: =IF(AI22="","",VLOOKUP(AI22,'【記載例】シフト記号表（勤務時間帯）'!$C$5:$K$36,9,FALSE)) -> - | AJ23: =IF(AJ22="","",VLOOKUP(AJ22,'【記載例】シフト記号表（勤務時間帯）'!$C$5:$K$36,9,FALSE)) -> 8 | AK23: =IF(AK22="","",VLOOKUP(AK22,'【記載例】シフト記号表（勤務時間帯）'!$C$5:$K$36,9,FALSE)) -> 8 | AL23: =IF(AL22="","",VLOOKUP(AL22,'【記載例】シフト記号表（勤務時間帯）'!$C$5:$K$36,9,FALSE)) -> - | AM23: =IF(AM22="","",VLOOKUP(AM22,'【記載例】シフト記号表（勤務時間帯）'!$C$5:$K$36,9,FALSE)) -> 8 | AN23: =IF(AN22="","",VLOOKUP(AN22,'【記載例】シフト記号表（勤務時間帯）'!$C$5:$K$36,9,FALSE)) -> 8 | AO23: =IF(AO22="","",VLOOKUP(AO22,'【記載例】シフト記号表（勤務時間帯）'!$C$5:$K$36,9,FALSE)) -> 8 | AP23: =IF(AP22="","",VLOOKUP(AP22,'【記載例】シフト記号表（勤務時間帯）'!$C$5:$K$36,9,FALSE)) -> - | AQ23: =IF(AQ22="","",VLOOKUP(AQ22,'【記載例】シフト記号表（勤務時間帯）'!$C$5:$K$36,9,FALSE)) -> 8 | AR23: =IF(AR22="","",VLOOKUP(AR22,'【記載例】シフト記号表（勤務時間帯）'!$C$5:$K$36,9,FALSE)) -> 8 | AS23: =IF(AS22="","",VLOOKUP(AS22,'【記載例】シフト記号表（勤務時間帯）'!$C$5:$K$36,9,FALSE)) -> - | AT23: =IF(AT22="","",VLOOKUP(AT22,'【記載例】シフト記号表（勤務時間帯）'!$C$5:$K$36,9,FALSE)) -> 8 | AU23: =IF(AU22="","",VLOOKUP(AU22,'【記載例】シフト記号表（勤務時間帯）'!$C$5:$K$36,9,FALSE)) ->  | AV23: =IF(AV22="","",VLOOKUP(AV22,'【記載例】シフト記号表（勤務時間帯）'!$C$5:$K$36,9,FALSE)) ->  | AW23: =IF(AW22="","",VLOOKUP(AW22,'【記載例】シフト記号表（勤務時間帯）'!$C$5:$K$36,9,FALSE)) ->  | AX23: =IF($BB$3="計画",SUM(S23:AT23),IF($BB$3="実績",SUM(S23:AW23),"")) -> 160 | AZ23: =IF($BB$3="計画",AX23/4,IF($BB$3="実績",【記載例】地域密着型通所介護!AX23/(【記載例】地域密着型通所介護!$BB$8/7),"")) -> 40
F24: =C23 -> 管理者 | P24: サービス提供時間内 の勤務時間数 | S24: =IF(S22="","",VLOOKUP(S22,'【記載例】シフト記号表（勤務時間帯）'!$C$5:$U$36,19,FALSE)) -> 7 | T24: =IF(T22="","",VLOOKUP(T22,'【記載例】シフト記号表（勤務時間帯）'!$C$5:$U$36,19,FALSE)) -> 7 | U24: =IF(U22="","",VLOOKUP(U22,'【記載例】シフト記号表（勤務時間帯）'!$C$5:$U$36,19,FALSE)) -> - | V24: =IF(V22="","",VLOOKUP(V22,'【記載例】シフト記号表（勤務時間帯）'!$C$5:$U$36,19,FALSE)) -> 7 | W24: =IF(W22="","",VLOOKUP(W22,'【記載例】シフト記号表（勤務時間帯）'!$C$5:$U$36,19,FALSE)) -> 7 | X24: =IF(X22="","",VLOOKUP(X22,'【記載例】シフト記号表（勤務時間帯）'!$C$5:$U$36,19,FALSE)) -> - | Y24: =IF(Y22="","",VLOOKUP(Y22,'【記載例】シフト記号表（勤務時間帯）'!$C$5:$U$36,19,FALSE)) -> 7 | Z24: =IF(Z22="","",VLOOKUP(Z22,'【記載例】シフト記号表（勤務時間帯）'!$C$5:$U$36,19,FALSE)) -> 7 | AA24: =IF(AA22="","",VLOOKUP(AA22,'【記載例】シフト記号表（勤務時間帯）'!$C$5:$U$36,19,FALSE)) -> 7 | AB24: =IF(AB22="","",VLOOKUP(AB22,'【記載例】シフト記号表（勤務時間帯）'!$C$5:$U$36,19,FALSE)) -> - | AC24: =IF(AC22="","",VLOOKUP(AC22,'【記載例】シフト記号表（勤務時間帯）'!$C$5:$U$36,19,FALSE)) -> 7 | AD24: =IF(AD22="","",VLOOKUP(AD22,'【記載例】シフト記号表（勤務時間帯）'!$C$5:$U$36,19,FALSE)) -> 7 | AE24: =IF(AE22="","",VLOOKUP(AE22,'【記載例】シフト記号表（勤務時間帯）'!$C$5:$U$36,19,FALSE)) -> - | AF24: =IF(AF22="","",VLOOKUP(AF22,'【記載例】シフト記号表（勤務時間帯）'!$C$5:$U$36,19,FALSE)) -> 7 | AG24: =IF(AG22="","",VLOOKUP(AG22,'【記載例】シフト記号表（勤務時間帯）'!$C$5:$U$36,19,FALSE)) -> 7 | AH24: =IF(AH22="","",VLOOKUP(AH22,'【記載例】シフト記号表（勤務時間帯）'!$C$5:$U$36,19,FALSE)) -> 7 | AI24: =IF(AI22="","",VLOOKUP(AI22,'【記載例】シフト記号表（勤務時間帯）'!$C$5:$U$36,19,FALSE)) -> - | AJ24: =IF(AJ22="","",VLOOKUP(AJ22,'【記載例】シフト記号表（勤務時間帯）'!$C$5:$U$36,19,FALSE)) -> 7 | AK24: =IF(AK22="","",VLOOKUP(AK22,'【記載例】シフト記号表（勤務時間帯）'!$C$5:$U$36,19,FALSE)) -> 7 | AL24: =IF(AL22="","",VLOOKUP(AL22,'【記載例】シフト記号表（勤務時間帯）'!$C$5:$U$36,19,FALSE)) -> - | AM24: =IF(AM22="","",VLOOKUP(AM22,'【記載例】シフト記号表（勤務時間帯）'!$C$5:$U$36,19,FALSE)) -> 7 | AN24: =IF(AN22="","",VLOOKUP(AN22,'【記載例】シフト記号表（勤務時間帯）'!$C$5:$U$36,19,FALSE)) -> 7 | AO24: =IF(AO22="","",VLOOKUP(AO22,'【記載例】シフト記号表（勤務時間帯）'!$C$5:$U$36,19,FALSE)) -> 7 | AP24: =IF(AP22="","",VLOOKUP(AP22,'【記載例】シフト記号表（勤務時間帯）'!$C$5:$U$36,19,FALSE)) -> - | AQ24: =IF(AQ22="","",VLOOKUP(AQ22,'【記載例】シフト記号表（勤務時間帯）'!$C$5:$U$36,19,FALSE)) -> 7 | AR24: =IF(AR22="","",VLOOKUP(AR22,'【記載例】シフト記号表（勤務時間帯）'!$C$5:$U$36,19,FALSE)) -> 7 | AS24: =IF(AS22="","",VLOOKUP(AS22,'【記載例】シフト記号表（勤務時間帯）'!$C$5:$U$36,19,FALSE)) -> - | AT24: =IF(AT22="","",VLOOKUP(AT22,'【記載例】シフト記号表（勤務時間帯）'!$C$5:$U$36,19,FALSE)) -> 7 | AU24: =IF(AU22="","",VLOOKUP(AU22,'【記載例】シフト記号表（勤務時間帯）'!$C$5:$U$36,19,FALSE)) ->  | AV24: =IF(AV22="","",VLOOKUP(AV22,'【記載例】シフト記号表（勤務時間帯）'!$C$5:$U$36,19,FALSE)) ->  | AW24: =IF(AW22="","",VLOOKUP(AW22,'【記載例】シフト記号表（勤務時間帯）'!$C$5:$U$36,19,FALSE)) ->  | AX24: =IF($BB$3="計画",SUM(S24:AT24),IF($BB$3="実績",SUM(S24:AW24),"")) -> 140 | AZ24: =IF($BB$3="計画",AX24/4,IF($BB$3="実績",【記載例】地域密着型通所介護!AX24/(【記載例】地域密着型通所介護!$BB$8/7),"")) -> 35
B25: =B22+1 -> 2 | G25: A | H25: 社会福祉士 | L25: ○○ A太 | P25: シフト記号 | S25: 休 | T25: a | U25: a | V25: a | W25: a | X25: a | Y25: 休 | Z25: 休 | AA25: a | AB25: a | AC25: a | AD25: a | AE25: a | AF25: 休 | AH25: a | AI25: a | AJ25: a | AK25: a | AL25: a | AM25: 休 | AN25: 休 | AO25: a | AP25: a | AQ25: a | AR25: a | AS25: a | AT25: 休
C26: 生活相談員 | P26: 勤務時間数 | S26: =IF(S25="","",VLOOKUP(S25,'【記載例】シフト記号表（勤務時間帯）'!$C$5:$K$36,9,FALSE)) -> - | T26: =IF(T25="","",VLOOKUP(T25,'【記載例】シフト記号表（勤務時間帯）'!$C$5:$K$36,9,FALSE)) -> 8 | U26: =IF(U25="","",VLOOKUP(U25,'【記載例】シフト記号表（勤務時間帯）'!$C$5:$K$36,9,FALSE)) -> 8 | V26: =IF(V25="","",VLOOKUP(V25,'【記載例】シフト記号表（勤務時間帯）'!$C$5:$K$36,9,FALSE)) -> 8 | W26: =IF(W25="","",VLOOKUP(W25,'【記載例】シフト記号表（勤務時間帯）'!$C$5:$K$36,9,FALSE)) -> 8 | X26: =IF(X25="","",VLOOKUP(X25,'【記載例】シフト記号表（勤務時間帯）'!$C$5:$K$36,9,FALSE)) -> 8 | Y26: =IF(Y25="","",VLOOKUP(Y25,'【記載例】シフト記号表（勤務時間帯）'!$C$5:$K$36,9,FALSE)) -> - | Z26: =IF(Z25="","",VLOOKUP(Z25,'【記載例】シフト記号表（勤務時間帯）'!$C$5:$K$36,9,FALSE)) -> - | AA26: =IF(AA25="","",VLOOKUP(AA25,'【記載例】シフト記号表（勤務時間帯）'!$C$5:$K$36,9,FALSE)) -> 8 | AB26: =IF(AB25="","",VLOOKUP(AB25,'【記載例】シフト記号表（勤務時間帯）'!$C$5:$K$36,9,FALSE)) -> 8 | AC26: =IF(AC25="","",VLOOKUP(AC25,'【記載例】シフト記号表（勤務時間帯）'!$C$5:$K$36,9,FALSE)) -> 8 | AD26: =IF(AD25="","",VLOOKUP(AD25,'【記載例】シフト記号表（勤務時間帯）'!$C$5:$K$36,9,FALSE)) -> 8 | AE26: =IF(AE25="","",VLOOKUP(AE25,'【記載例】シフト記号表（勤務時間帯）'!$C$5:$K$36,9,FALSE)) -> 8 | AF26: =IF(AF25="","",VLOOKUP(AF25,'【記載例】シフト記号表（勤務時間帯）'!$C$5:$K$36,9,FALSE)) -> - | AG26: =IF(AG25="","",VLOOKUP(AG25,'【記載例】シフト記号表（勤務時間帯）'!$C$5:$K$36,9,FALSE)) ->  | AH26: =IF(AH25="","",VLOOKUP(AH25,'【記載例】シフト記号表（勤務時間帯）'!$C$5:$K$36,9,FALSE)) -> 8 | AI26: =IF(AI25="","",VLOOKUP(AI25,'【記載例】シフト記号表（勤務時間帯）'!$C$5:$K$36,9,FALSE)) -> 8 | AJ26: =IF(AJ25="","",VLOOKUP(AJ25,'【記載例】シフト記号表（勤務時間帯）'!$C$5:$K$36,9,FALSE)) -> 8 | AK26: =IF(AK25="","",VLOOKUP(AK25,'【記載例】シフト記号表（勤務時間帯）'!$C$5:$K$36,9,FALSE)) -> 8 | AL26: =IF(AL25="","",VLOOKUP(AL25,'【記載例】シフト記号表（勤務時間帯）'!$C$5:$K$36,9,FALSE)) -> 8 | AM26: =IF(AM25="","",VLOOKUP(AM25,'【記載例】シフト記号表（勤務時間帯）'!$C$5:$K$36,9,FALSE)) -> - | AN26: =IF(AN25="","",VLOOKUP(AN25,'【記載例】シフト記号表（勤務時間帯）'!$C$5:$K$36,9,FALSE)) -> - | AO26: =IF(AO25="","",VLOOKUP(AO25,'【記載例】シフト記号表（勤務時間帯）'!$C$5:$K$36,9,FALSE)) -> 8 | AP26: =IF(AP25="","",VLOOKUP(AP25,'【記載例】シフト記号表（勤務時間帯）'!$C$5:$K$36,9,FALSE)) -> 8 | AQ26: =IF(AQ25="","",VLOOKUP(AQ25,'【記載例】シフト記号表（勤務時間帯）'!$C$5:$K$36,9,FALSE)) -> 8 | AR26: =IF(AR25="","",VLOOKUP(AR25,'【記載例】シフト記号表（勤務時間帯）'!$C$5:$K$36,9,FALSE)) -> 8 | AS26: =IF(AS25="","",VLOOKUP(AS25,'【記載例】シフト記号表（勤務時間帯）'!$C$5:$K$36,9,FALSE)) -> 8 | AT26: =IF(AT25="","",VLOOKUP(AT25,'【記載例】シフト記号表（勤務時間帯）'!$C$5:$K$36,9,FALSE)) -> - | AU26: =IF(AU25="","",VLOOKUP(AU25,'【記載例】シフト記号表（勤務時間帯）'!$C$5:$K$36,9,FALSE)) ->  | AV26: =IF(AV25="","",VLOOKUP(AV25,'【記載例】シフト記号表（勤務時間帯）'!$C$5:$K$36,9,FALSE)) ->  | AW26: =IF(AW25="","",VLOOKUP(AW25,'【記載例】シフト記号表（勤務時間帯）'!$C$5:$K$36,9,FALSE)) ->  | AX26: =IF($BB$3="計画",SUM(S26:AT26),IF($BB$3="実績",SUM(S26:AW26),"")) -> 160 | AZ26: =IF($BB$3="計画",AX26/4,IF($BB$3="実績",【記載例】地域密着型通所介護!AX26/(【記載例】地域密着型通所介護!$BB$8/7),"")) -> 40
F27: =C26 -> 生活相談員 | P27: サービス提供時間内 の勤務時間数 | S27: =IF(S25="","",VLOOKUP(S25,'【記載例】シフト記号表（勤務時間帯）'!$C$5:$U$36,19,FALSE)) -> - | T27: =IF(T25="","",VLOOKUP(T25,'【記載例】シフト記号表（勤務時間帯）'!$C$5:$U$36,19,FALSE)) -> 7 | U27: =IF(U25="","",VLOOKUP(U25,'【記載例】シフト記号表（勤務時間帯）'!$C$5:$U$36,19,FALSE)) -> 7 | V27: =IF(V25="","",VLOOKUP(V25,'【記載例】シフト記号表（勤務時間帯）'!$C$5:$U$36,19,FALSE)) -> 7 | W27: =IF(W25="","",VLOOKUP(W25,'【記載例】シフト記号表（勤務時間帯）'!$C$5:$U$36,19,FALSE)) -> 7 | X27: =IF(X25="","",VLOOKUP(X25,'【記載例】シフト記号表（勤務時間帯）'!$C$5:$U$36,19,FALSE)) -> 7 | Y27: =IF(Y25="","",VLOOKUP(Y25,'【記載例】シフト記号表（勤務時間帯）'!$C$5:$U$36,19,FALSE)) -> - | Z27: =IF(Z25="","",VLOOKUP(Z25,'【記載例】シフト記号表（勤務時間帯）'!$C$5:$U$36,19,FALSE)) -> - | AA27: =IF(AA25="","",VLOOKUP(AA25,'【記載例】シフト記号表（勤務時間帯）'!$C$5:$U$36,19,FALSE)) -> 7 | AB27: =IF(AB25="","",VLOOKUP(AB25,'【記載例】シフト記号表（勤務時間帯）'!$C$5:$U$36,19,FALSE)) -> 7 | AC27: =IF(AC25="","",VLOOKUP(AC25,'【記載例】シフト記号表（勤務時間帯）'!$C$5:$U$36,19,FALSE)) -> 7 | AD27: =IF(AD25="","",VLOOKUP(AD25,'【記載例】シフト記号表（勤務時間帯）'!$C$5:$U$36,19,FALSE)) -> 7 | AE27: =IF(AE25="","",VLOOKUP(AE25,'【記載例】シフト記号表（勤務時間帯）'!$C$5:$U$36,19,FALSE)) -> 7 | AF27: =IF(AF25="","",VLOOKUP(AF25,'【記載例】シフト記号表（勤務時間帯）'!$C$5:$U$36,19,FALSE)) -> - | AG27: =IF(AG25="","",VLOOKUP(AG25,'【記載例】シフト記号表（勤務時間帯）'!$C$5:$U$36,19,FALSE)) ->  | AH27: =IF(AH25="","",VLOOKUP(AH25,'【記載例】シフト記号表（勤務時間帯）'!$C$5:$U$36,19,FALSE)) -> 7 | AI27: =IF(AI25="","",VLOOKUP(AI25,'【記載例】シフト記号表（勤務時間帯）'!$C$5:$U$36,19,FALSE)) -> 7 | AJ27: =IF(AJ25="","",VLOOKUP(AJ25,'【記載例】シフト記号表（勤務時間帯）'!$C$5:$U$36,19,FALSE)) -> 7 | AK27: =IF(AK25="","",VLOOKUP(AK25,'【記載例】シフト記号表（勤務時間帯）'!$C$5:$U$36,19,FALSE)) -> 7 | AL27: =IF(AL25="","",VLOOKUP(AL25,'【記載例】シフト記号表（勤務時間帯）'!$C$5:$U$36,19,FALSE)) -> 7 | AM27: =IF(AM25="","",VLOOKUP(AM25,'【記載例】シフト記号表（勤務時間帯）'!$C$5:$U$36,19,FALSE)) -> - | AN27: =IF(AN25="","",VLOOKUP(AN25,'【記載例】シフト記号表（勤務時間帯）'!$C$5:$U$36,19,FALSE)) -> - | AO27: =IF(AO25="","",VLOOKUP(AO25,'【記載例】シフト記号表（勤務時間帯）'!$C$5:$U$36,19,FALSE)) -> 7 | AP27: =IF(AP25="","",VLOOKUP(AP25,'【記載例】シフト記号表（勤務時間帯）'!$C$5:$U$36,19,FALSE)) -> 7 | AQ27: =IF(AQ25="","",VLOOKUP(AQ25,'【記載例】シフト記号表（勤務時間帯）'!$C$5:$U$36,19,FALSE)) -> 7 | AR27: =IF(AR25="","",VLOOKUP(AR25,'【記載例】シフト記号表（勤務時間帯）'!$C$5:$U$36,19,FALSE)) -> 7 | AS27: =IF(AS25="","",VLOOKUP(AS25,'【記載例】シフト記号表（勤務時間帯）'!$C$5:$U$36,19,FALSE)) -> 7 | AT27: =IF(AT25="","",VLOOKUP(AT25,'【記載例】シフト記号表（勤務時間帯）'!$C$5:$U$36,19,FALSE)) -> - | AU27: =IF(AU25="","",VLOOKUP(AU25,'【記載例】シフト記号表（勤務時間帯）'!$C$5:$U$36,19,FALSE)) ->  | AV27: =IF(AV25="","",VLOOKUP(AV25,'【記載例】シフト記号表（勤務時間帯）'!$C$5:$U$36,19,FALSE)) ->  | AW27: =IF(AW25="","",VLOOKUP(AW25,'【記載例】シフト記号表（勤務時間帯）'!$C$5:$U$36,19,FALSE)) ->  | AX27: =IF($BB$3="計画",SUM(S27:AT27),IF($BB$3="実績",SUM(S27:AW27),"")) -> 140 | AZ27: =IF($BB$3="計画",AX27/4,IF($BB$3="実績",【記載例】地域密着型通所介護!AX27/(【記載例】地域密着型通所介護!$BB$8/7),"")) -> 35
B28: =B25+1 -> 3 | G28: B | H28: 社会福祉主事任用資格 | L28: ○○ B子 | P28: シフト記号 | S28: a | V28: 休 | W28: 休 | Y28: a | Z28: a | AC28: 休 | AD28: 休 | AF28: a | AG28: a | AJ28: 休 | AK28: 休 | AM28: a | AN28: a | AQ28: 休 | AR28: 休 | AT28: a | BB28: 介護職員
C29: 生活相談員 | P29: 勤務時間数 | S29: =IF(S28="","",VLOOKUP(S28,'【記載例】シフト記号表（勤務時間帯）'!$C$5:$K$36,9,FALSE)) -> 8 | T29: =IF(T28="","",VLOOKUP(T28,'【記載例】シフト記号表（勤務時間帯）'!$C$5:$K$36,9,FALSE)) ->  | U29: =IF(U28="","",VLOOKUP(U28,'【記載例】シフト記号表（勤務時間帯）'!$C$5:$K$36,9,FALSE)) ->  | V29: =IF(V28="","",VLOOKUP(V28,'【記載例】シフト記号表（勤務時間帯）'!$C$5:$K$36,9,FALSE)) -> - | W29: =IF(W28="","",VLOOKUP(W28,'【記載例】シフト記号表（勤務時間帯）'!$C$5:$K$36,9,FALSE)) -> - | X29: =IF(X28="","",VLOOKUP(X28,'【記載例】シフト記号表（勤務時間帯）'!$C$5:$K$36,9,FALSE)) ->  | Y29: =IF(Y28="","",VLOOKUP(Y28,'【記載例】シフト記号表（勤務時間帯）'!$C$5:$K$36,9,FALSE)) -> 8 | Z29: =IF(Z28="","",VLOOKUP(Z28,'【記載例】シフト記号表（勤務時間帯）'!$C$5:$K$36,9,FALSE)) -> 8 | AA29: =IF(AA28="","",VLOOKUP(AA28,'【記載例】シフト記号表（勤務時間帯）'!$C$5:$K$36,9,FALSE)) ->  | AB29: =IF(AB28="","",VLOOKUP(AB28,'【記載例】シフト記号表（勤務時間帯）'!$C$5:$K$36,9,FALSE)) ->  | AC29: =IF(AC28="","",VLOOKUP(AC28,'【記載例】シフト記号表（勤務時間帯）'!$C$5:$K$36,9,FALSE)) -> - | AD29: =IF(AD28="","",VLOOKUP(AD28,'【記載例】シフト記号表（勤務時間帯）'!$C$5:$K$36,9,FALSE)) -> - | AE29: =IF(AE28="","",VLOOKUP(AE28,'【記載例】シフト記号表（勤務時間帯）'!$C$5:$K$36,9,FALSE)) ->  | AF29: =IF(AF28="","",VLOOKUP(AF28,'【記載例】シフト記号表（勤務時間帯）'!$C$5:$K$36,9,FALSE)) -> 8 | AG29: =IF(AG28="","",VLOOKUP(AG28,'【記載例】シフト記号表（勤務時間帯）'!$C$5:$K$36,9,FALSE)) -> 8 | AH29: =IF(AH28="","",VLOOKUP(AH28,'【記載例】シフト記号表（勤務時間帯）'!$C$5:$K$36,9,FALSE)) ->  | AI29: =IF(AI28="","",VLOOKUP(AI28,'【記載例】シフト記号表（勤務時間帯）'!$C$5:$K$36,9,FALSE)) ->  | AJ29: =IF(AJ28="","",VLOOKUP(AJ28,'【記載例】シフト記号表（勤務時間帯）'!$C$5:$K$36,9,FALSE)) -> - | AK29: =IF(AK28="","",VLOOKUP(AK28,'【記載例】シフト記号表（勤務時間帯）'!$C$5:$K$36,9,FALSE)) -> - | AL29: =IF(AL28="","",VLOOKUP(AL28,'【記載例】シフト記号表（勤務時間帯）'!$C$5:$K$36,9,FALSE)) ->  | AM29: =IF(AM28="","",VLOOKUP(AM28,'【記載例】シフト記号表（勤務時間帯）'!$C$5:$K$36,9,FALSE)) -> 8 | AN29: =IF(AN28="","",VLOOKUP(AN28,'【記載例】シフト記号表（勤務時間帯）'!$C$5:$K$36,9,FALSE)) -> 8 | AO29: =IF(AO28="","",VLOOKUP(AO28,'【記載例】シフト記号表（勤務時間帯）'!$C$5:$K$36,9,FALSE)) ->  | AP29: =IF(AP28="","",VLOOKUP(AP28,'【記載例】シフト記号表（勤務時間帯）'!$C$5:$K$36,9,FALSE)) ->  | AQ29: =IF(AQ28="","",VLOOKUP(AQ28,'【記載例】シフト記号表（勤務時間帯）'!$C$5:$K$36,9,FALSE)) -> - | AR29: =IF(AR28="","",VLOOKUP(AR28,'【記載例】シフト記号表（勤務時間帯）'!$C$5:$K$36,9,FALSE)) -> - | AS29: =IF(AS28="","",VLOOKUP(AS28,'【記載例】シフト記号表（勤務時間帯）'!$C$5:$K$36,9,FALSE)) ->  | AT29: =IF(AT28="","",VLOOKUP(AT28,'【記載例】シフト記号表（勤務時間帯）'!$C$5:$K$36,9,FALSE)) -> 8 | AU29: =IF(AU28="","",VLOOKUP(AU28,'【記載例】シフト記号表（勤務時間帯）'!$C$5:$K$36,9,FALSE)) ->  | AV29: =IF(AV28="","",VLOOKUP(AV28,'【記載例】シフト記号表（勤務時間帯）'!$C$5:$K$36,9,FALSE)) ->  | AW29: =IF(AW28="","",VLOOKUP(AW28,'【記載例】シフト記号表（勤務時間帯）'!$C$5:$K$36,9,FALSE)) ->  | AX29: =IF($BB$3="計画",SUM(S29:AT29),IF($BB$3="実績",SUM(S29:AW29),"")) -> 64 | AZ29: =IF($BB$3="計画",AX29/4,IF($BB$3="実績",【記載例】地域密着型通所介護!AX29/(【記載例】地域密着型通所介護!$BB$8/7),"")) -> 16
F30: =C29 -> 生活相談員 | P30: サービス提供時間内 の勤務時間数 | S30: =IF(S28="","",VLOOKUP(S28,'【記載例】シフト記号表（勤務時間帯）'!$C$5:$U$36,19,FALSE)) -> 7 | T30: =IF(T28="","",VLOOKUP(T28,'【記載例】シフト記号表（勤務時間帯）'!$C$5:$U$36,19,FALSE)) ->  | U30: =IF(U28="","",VLOOKUP(U28,'【記載例】シフト記号表（勤務時間帯）'!$C$5:$U$36,19,FALSE)) ->  | V30: =IF(V28="","",VLOOKUP(V28,'【記載例】シフト記号表（勤務時間帯）'!$C$5:$U$36,19,FALSE)) -> - | W30: =IF(W28="","",VLOOKUP(W28,'【記載例】シフト記号表（勤務時間帯）'!$C$5:$U$36,19,FALSE)) -> - | X30: =IF(X28="","",VLOOKUP(X28,'【記載例】シフト記号表（勤務時間帯）'!$C$5:$U$36,19,FALSE)) ->  | Y30: =IF(Y28="","",VLOOKUP(Y28,'【記載例】シフト記号表（勤務時間帯）'!$C$5:$U$36,19,FALSE)) -> 7 | Z30: =IF(Z28="","",VLOOKUP(Z28,'【記載例】シフト記号表（勤務時間帯）'!$C$5:$U$36,19,FALSE)) -> 7 | AA30: =IF(AA28="","",VLOOKUP(AA28,'【記載例】シフト記号表（勤務時間帯）'!$C$5:$U$36,19,FALSE)) ->  | AB30: =IF(AB28="","",VLOOKUP(AB28,'【記載例】シフト記号表（勤務時間帯）'!$C$5:$U$36,19,FALSE)) ->  | AC30: =IF(AC28="","",VLOOKUP(AC28,'【記載例】シフト記号表（勤務時間帯）'!$C$5:$U$36,19,FALSE)) -> - | AD30: =IF(AD28="","",VLOOKUP(AD28,'【記載例】シフト記号表（勤務時間帯）'!$C$5:$U$36,19,FALSE)) -> - | AE30: =IF(AE28="","",VLOOKUP(AE28,'【記載例】シフト記号表（勤務時間帯）'!$C$5:$U$36,19,FALSE)) ->  | AF30: =IF(AF28="","",VLOOKUP(AF28,'【記載例】シフト記号表（勤務時間帯）'!$C$5:$U$36,19,FALSE)) -> 7 | AG30: =IF(AG28="","",VLOOKUP(AG28,'【記載例】シフト記号表（勤務時間帯）'!$C$5:$U$36,19,FALSE)) -> 7 | AH30: =IF(AH28="","",VLOOKUP(AH28,'【記載例】シフト記号表（勤務時間帯）'!$C$5:$U$36,19,FALSE)) ->  | AI30: =IF(AI28="","",VLOOKUP(AI28,'【記載例】シフト記号表（勤務時間帯）'!$C$5:$U$36,19,FALSE)) ->  | AJ30: =IF(AJ28="","",VLOOKUP(AJ28,'【記載例】シフト記号表（勤務時間帯）'!$C$5:$U$36,19,FALSE)) -> - | AK30: =IF(AK28="","",VLOOKUP(AK28,'【記載例】シフト記号表（勤務時間帯）'!$C$5:$U$36,19,FALSE)) -> - | AL30: =IF(AL28="","",VLOOKUP(AL28,'【記載例】シフト記号表（勤務時間帯）'!$C$5:$U$36,19,FALSE)) ->  | AM30: =IF(AM28="","",VLOOKUP(AM28,'【記載例】シフト記号表（勤務時間帯）'!$C$5:$U$36,19,FALSE)) -> 7 | AN30: =IF(AN28="","",VLOOKUP(AN28,'【記載例】シフト記号表（勤務時間帯）'!$C$5:$U$36,19,FALSE)) -> 7 | AO30: =IF(AO28="","",VLOOKUP(AO28,'【記載例】シフト記号表（勤務時間帯）'!$C$5:$U$36,19,FALSE)) ->  | AP30: =IF(AP28="","",VLOOKUP(AP28,'【記載例】シフト記号表（勤務時間帯）'!$C$5:$U$36,19,FALSE)) ->  | AQ30: =IF(AQ28="","",VLOOKUP(AQ28,'【記載例】シフト記号表（勤務時間帯）'!$C$5:$U$36,19,FALSE)) -> - | AR30: =IF(AR28="","",VLOOKUP(AR28,'【記載例】シフト記号表（勤務時間帯）'!$C$5:$U$36,19,FALSE)) -> - | AS30: =IF(AS28="","",VLOOKUP(AS28,'【記載例】シフト記号表（勤務時間帯）'!$C$5:$U$36,19,FALSE)) ->  | AT30: =IF(AT28="","",VLOOKUP(AT28,'【記載例】シフト記号表（勤務時間帯）'!$C$5:$U$36,19,FALSE)) -> 7 | AU30: =IF(AU28="","",VLOOKUP(AU28,'【記載例】シフト記号表（勤務時間帯）'!$C$5:$U$36,19,FALSE)) ->  | AV30: =IF(AV28="","",VLOOKUP(AV28,'【記載例】シフト記号表（勤務時間帯）'!$C$5:$U$36,19,FALSE)) ->  | AW30: =IF(AW28="","",VLOOKUP(AW28,'【記載例】シフト記号表（勤務時間帯）'!$C$5:$U$36,19,FALSE)) ->  | AX30: =IF($BB$3="計画",SUM(S30:AT30),IF($BB$3="実績",SUM(S30:AW30),"")) -> 56 | AZ30: =IF($BB$3="計画",AX30/4,IF($BB$3="実績",【記載例】地域密着型通所介護!AX30/(【記載例】地域密着型通所介護!$BB$8/7),"")) -> 14
B31: =B28+1 -> 4 | G31: B | H31: 看護師 | L31: ○○ C男 | P31: シフト記号 | S31: r | T31: 休 | U31: r | V31: r | W31: 休 | X31: r | Z31: r | AA31: 休 | AB31: r | AC31: r | AD31: 休 | AE31: r | AG31: r | AH31: 休 | AI31: r | AJ31: r | AK31: 休 | AL31: r | AN31: r | AO31: 休 | AP31: r | AQ31: r | AR31: 休 | AS31: r | BB31: 機能訓練指導員、介護職員
C32: 看護職員 | P32: 勤務時間数 | S32: =IF(S31="","",VLOOKUP(S31,'【記載例】シフト記号表（勤務時間帯）'!$C$5:$K$36,9,FALSE)) -> 4 | T32: =IF(T31="","",VLOOKUP(T31,'【記載例】シフト記号表（勤務時間帯）'!$C$5:$K$36,9,FALSE)) -> - | U32: =IF(U31="","",VLOOKUP(U31,'【記載例】シフト記号表（勤務時間帯）'!$C$5:$K$36,9,FALSE)) -> 4 | V32: =IF(V31="","",VLOOKUP(V31,'【記載例】シフト記号表（勤務時間帯）'!$C$5:$K$36,9,FALSE)) -> 4 | W32: =IF(W31="","",VLOOKUP(W31,'【記載例】シフト記号表（勤務時間帯）'!$C$5:$K$36,9,FALSE)) -> - | X32: =IF(X31="","",VLOOKUP(X31,'【記載例】シフト記号表（勤務時間帯）'!$C$5:$K$36,9,FALSE)) -> 4 | Y32: =IF(Y31="","",VLOOKUP(Y31,'【記載例】シフト記号表（勤務時間帯）'!$C$5:$K$36,9,FALSE)) ->  | Z32: =IF(Z31="","",VLOOKUP(Z31,'【記載例】シフト記号表（勤務時間帯）'!$C$5:$K$36,9,FALSE)) -> 4 | AA32: =IF(AA31="","",VLOOKUP(AA31,'【記載例】シフト記号表（勤務時間帯）'!$C$5:$K$36,9,FALSE)) -> - | AB32: =IF(AB31="","",VLOOKUP(AB31,'【記載例】シフト記号表（勤務時間帯）'!$C$5:$K$36,9,FALSE)) -> 4 | AC32: =IF(AC31="","",VLOOKUP(AC31,'【記載例】シフト記号表（勤務時間帯）'!$C$5:$K$36,9,FALSE)) -> 4 | AD32: =IF(AD31="","",VLOOKUP(AD31,'【記載例】シフト記号表（勤務時間帯）'!$C$5:$K$36,9,FALSE)) -> - | AE32: =IF(AE31="","",VLOOKUP(AE31,'【記載例】シフト記号表（勤務時間帯）'!$C$5:$K$36,9,FALSE)) -> 4 | AF32: =IF(AF31="","",VLOOKUP(AF31,'【記載例】シフト記号表（勤務時間帯）'!$C$5:$K$36,9,FALSE)) ->  | AG32: =IF(AG31="","",VLOOKUP(AG31,'【記載例】シフト記号表（勤務時間帯）'!$C$5:$K$36,9,FALSE)) -> 4 | AH32: =IF(AH31="","",VLOOKUP(AH31,'【記載例】シフト記号表（勤務時間帯）'!$C$5:$K$36,9,FALSE)) -> - | AI32: =IF(AI31="","",VLOOKUP(AI31,'【記載例】シフト記号表（勤務時間帯）'!$C$5:$K$36,9,FALSE)) -> 4 | AJ32: =IF(AJ31="","",VLOOKUP(AJ31,'【記載例】シフト記号表（勤務時間帯）'!$C$5:$K$36,9,FALSE)) -> 4 | AK32: =IF(AK31="","",VLOOKUP(AK31,'【記載例】シフト記号表（勤務時間帯）'!$C$5:$K$36,9,FALSE)) -> - | AL32: =IF(AL31="","",VLOOKUP(AL31,'【記載例】シフト記号表（勤務時間帯）'!$C$5:$K$36,9,FALSE)) -> 4 | AM32: =IF(AM31="","",VLOOKUP(AM31,'【記載例】シフト記号表（勤務時間帯）'!$C$5:$K$36,9,FALSE)) ->  | AN32: =IF(AN31="","",VLOOKUP(AN31,'【記載例】シフト記号表（勤務時間帯）'!$C$5:$K$36,9,FALSE)) -> 4 | AO32: =IF(AO31="","",VLOOKUP(AO31,'【記載例】シフト記号表（勤務時間帯）'!$C$5:$K$36,9,FALSE)) -> - | AP32: =IF(AP31="","",VLOOKUP(AP31,'【記載例】シフト記号表（勤務時間帯）'!$C$5:$K$36,9,FALSE)) -> 4 | AQ32: =IF(AQ31="","",VLOOKUP(AQ31,'【記載例】シフト記号表（勤務時間帯）'!$C$5:$K$36,9,FALSE)) -> 4 | AR32: =IF(AR31="","",VLOOKUP(AR31,'【記載例】シフト記号表（勤務時間帯）'!$C$5:$K$36,9,FALSE)) -> - | AS32: =IF(AS31="","",VLOOKUP(AS31,'【記載例】シフト記号表（勤務時間帯）'!$C$5:$K$36,9,FALSE)) -> 4 | AT32: =IF(AT31="","",VLOOKUP(AT31,'【記載例】シフト記号表（勤務時間帯）'!$C$5:$K$36,9,FALSE)) ->  | AU32: =IF(AU31="","",VLOOKUP(AU31,'【記載例】シフト記号表（勤務時間帯）'!$C$5:$K$36,9,FALSE)) ->  | AV32: =IF(AV31="","",VLOOKUP(AV31,'【記載例】シフト記号表（勤務時間帯）'!$C$5:$K$36,9,FALSE)) ->  | AW32: =IF(AW31="","",VLOOKUP(AW31,'【記載例】シフト記号表（勤務時間帯）'!$C$5:$K$36,9,FALSE)) ->  | AX32: =IF($BB$3="計画",SUM(S32:AT32),IF($BB$3="実績",SUM(S32:AW32),"")) -> 64 | AZ32: =IF($BB$3="計画",AX32/4,IF($BB$3="実績",【記載例】地域密着型通所介護!AX32/(【記載例】地域密着型通所介護!$BB$8/7),"")) -> 16
F33: =C32 -> 看護職員 | P33: サービス提供時間内 の勤務時間数 | S33: =IF(S31="","",VLOOKUP(S31,'【記載例】シフト記号表（勤務時間帯）'!$C$5:$U$36,19,FALSE)) -> 4 | T33: =IF(T31="","",VLOOKUP(T31,'【記載例】シフト記号表（勤務時間帯）'!$C$5:$U$36,19,FALSE)) -> - | U33: =IF(U31="","",VLOOKUP(U31,'【記載例】シフト記号表（勤務時間帯）'!$C$5:$U$36,19,FALSE)) -> 4 | V33: =IF(V31="","",VLOOKUP(V31,'【記載例】シフト記号表（勤務時間帯）'!$C$5:$U$36,19,FALSE)) -> 4 | W33: =IF(W31="","",VLOOKUP(W31,'【記載例】シフト記号表（勤務時間帯）'!$C$5:$U$36,19,FALSE)) -> - | X33: =IF(X31="","",VLOOKUP(X31,'【記載例】シフト記号表（勤務時間帯）'!$C$5:$U$36,19,FALSE)) -> 4 | Y33: =IF(Y31="","",VLOOKUP(Y31,'【記載例】シフト記号表（勤務時間帯）'!$C$5:$U$36,19,FALSE)) ->  | Z33: =IF(Z31="","",VLOOKUP(Z31,'【記載例】シフト記号表（勤務時間帯）'!$C$5:$U$36,19,FALSE)) -> 4 | AA33: =IF(AA31="","",VLOOKUP(AA31,'【記載例】シフト記号表（勤務時間帯）'!$C$5:$U$36,19,FALSE)) -> - | AB33: =IF(AB31="","",VLOOKUP(AB31,'【記載例】シフト記号表（勤務時間帯）'!$C$5:$U$36,19,FALSE)) -> 4 | AC33: =IF(AC31="","",VLOOKUP(AC31,'【記載例】シフト記号表（勤務時間帯）'!$C$5:$U$36,19,FALSE)) -> 4 | AD33: =IF(AD31="","",VLOOKUP(AD31,'【記載例】シフト記号表（勤務時間帯）'!$C$5:$U$36,19,FALSE)) -> - | AE33: =IF(AE31="","",VLOOKUP(AE31,'【記載例】シフト記号表（勤務時間帯）'!$C$5:$U$36,19,FALSE)) -> 4 | AF33: =IF(AF31="","",VLOOKUP(AF31,'【記載例】シフト記号表（勤務時間帯）'!$C$5:$U$36,19,FALSE)) ->  | AG33: =IF(AG31="","",VLOOKUP(AG31,'【記載例】シフト記号表（勤務時間帯）'!$C$5:$U$36,19,FALSE)) -> 4 | AH33: =IF(AH31="","",VLOOKUP(AH31,'【記載例】シフト記号表（勤務時間帯）'!$C$5:$U$36,19,FALSE)) -> - | AI33: =IF(AI31="","",VLOOKUP(AI31,'【記載例】シフト記号表（勤務時間帯）'!$C$5:$U$36,19,FALSE)) -> 4 | AJ33: =IF(AJ31="","",VLOOKUP(AJ31,'【記載例】シフト記号表（勤務時間帯）'!$C$5:$U$36,19,FALSE)) -> 4 | AK33: =IF(AK31="","",VLOOKUP(AK31,'【記載例】シフト記号表（勤務時間帯）'!$C$5:$U$36,19,FALSE)) -> - | AL33: =IF(AL31="","",VLOOKUP(AL31,'【記載例】シフト記号表（勤務時間帯）'!$C$5:$U$36,19,FALSE)) -> 4 | AM33: =IF(AM31="","",VLOOKUP(AM31,'【記載例】シフト記号表（勤務時間帯）'!$C$5:$U$36,19,FALSE)) ->  | AN33: =IF(AN31="","",VLOOKUP(AN31,'【記載例】シフト記号表（勤務時間帯）'!$C$5:$U$36,19,FALSE)) -> 4 | AO33: =IF(AO31="","",VLOOKUP(AO31,'【記載例】シフト記号表（勤務時間帯）'!$C$5:$U$36,19,FALSE)) -> - | AP33: =IF(AP31="","",VLOOKUP(AP31,'【記載例】シフト記号表（勤務時間帯）'!$C$5:$U$36,19,FALSE)) -> 4 | AQ33: =IF(AQ31="","",VLOOKUP(AQ31,'【記載例】シフト記号表（勤務時間帯）'!$C$5:$U$36,19,FALSE)) -> 4 | AR33: =IF(AR31="","",VLOOKUP(AR31,'【記載例】シフト記号表（勤務時間帯）'!$C$5:$U$36,19,FALSE)) -> - | AS33: =IF(AS31="","",VLOOKUP(AS31,'【記載例】シフト記号表（勤務時間帯）'!$C$5:$U$36,19,FALSE)) -> 4 | AT33: =IF(AT31="","",VLOOKUP(AT31,'【記載例】シフト記号表（勤務時間帯）'!$C$5:$U$36,19,FALSE)) ->  | AU33: =IF(AU31="","",VLOOKUP(AU31,'【記載例】シフト記号表（勤務時間帯）'!$C$5:$U$36,19,FALSE)) ->  | AV33: =IF(AV31="","",VLOOKUP(AV31,'【記載例】シフト記号表（勤務時間帯）'!$C$5:$U$36,19,FALSE)) ->  | AW33: =IF(AW31="","",VLOOKUP(AW31,'【記載例】シフト記号表（勤務時間帯）'!$C$5:$U$36,19,FALSE)) ->  | AX33: =IF($BB$3="計画",SUM(S33:AT33),IF($BB$3="実績",SUM(S33:AW33),"")) -> 64 | AZ33: =IF($BB$3="計画",AX33/4,IF($BB$3="実績",【記載例】地域密着型通所介護!AX33/(【記載例】地域密着型通所介護!$BB$8/7),"")) -> 16
B34: =B31+1 -> 5 | G34: D | H34: 准看護師 | L34: ○○ D美 | P34: シフト記号 | S34: 休 | T34: r | U34: 休 | V34: 休 | W34: r | X34: 休 | Y34: r | Z34: 休 | AA34: r | AB34: 休 | AC34: 休 | AD34: r | AE34: 休 | AF34: r | AG34: 休 | AH34: r | AI34: 休 | AJ34: 休 | AK34: r | AL34: 休 | AM34: r | AN34: 休 | AO34: r | AP34: 休 | AQ34: 休 | AR34: r | AS34: 休 | AT34: r | BB34: 機能訓練指導員
C35: 看護職員 | P35: 勤務時間数 | S35: =IF(S34="","",VLOOKUP(S34,'【記載例】シフト記号表（勤務時間帯）'!$C$5:$K$36,9,FALSE)) -> - | T35: =IF(T34="","",VLOOKUP(T34,'【記載例】シフト記号表（勤務時間帯）'!$C$5:$K$36,9,FALSE)) -> 4 | U35: =IF(U34="","",VLOOKUP(U34,'【記載例】シフト記号表（勤務時間帯）'!$C$5:$K$36,9,FALSE)) -> - | V35: =IF(V34="","",VLOOKUP(V34,'【記載例】シフト記号表（勤務時間帯）'!$C$5:$K$36,9,FALSE)) -> - | W35: =IF(W34="","",VLOOKUP(W34,'【記載例】シフト記号表（勤務時間帯）'!$C$5:$K$36,9,FALSE)) -> 4 | X35: =IF(X34="","",VLOOKUP(X34,'【記載例】シフト記号表（勤務時間帯）'!$C$5:$K$36,9,FALSE)) -> - | Y35: =IF(Y34="","",VLOOKUP(Y34,'【記載例】シフト記号表（勤務時間帯）'!$C$5:$K$36,9,FALSE)) -> 4 | Z35: =IF(Z34="","",VLOOKUP(Z34,'【記載例】シフト記号表（勤務時間帯）'!$C$5:$K$36,9,FALSE)) -> - | AA35: =IF(AA34="","",VLOOKUP(AA34,'【記載例】シフト記号表（勤務時間帯）'!$C$5:$K$36,9,FALSE)) -> 4 | AB35: =IF(AB34="","",VLOOKUP(AB34,'【記載例】シフト記号表（勤務時間帯）'!$C$5:$K$36,9,FALSE)) -> - | AC35: =IF(AC34="","",VLOOKUP(AC34,'【記載例】シフト記号表（勤務時間帯）'!$C$5:$K$36,9,FALSE)) -> - | AD35: =IF(AD34="","",VLOOKUP(AD34,'【記載例】シフト記号表（勤務時間帯）'!$C$5:$K$36,9,FALSE)) -> 4 | AE35: =IF(AE34="","",VLOOKUP(AE34,'【記載例】シフト記号表（勤務時間帯）'!$C$5:$K$36,9,FALSE)) -> - | AF35: =IF(AF34="","",VLOOKUP(AF34,'【記載例】シフト記号表（勤務時間帯）'!$C$5:$K$36,9,FALSE)) -> 4 | AG35: =IF(AG34="","",VLOOKUP(AG34,'【記載例】シフト記号表（勤務時間帯）'!$C$5:$K$36,9,FALSE)) -> - | AH35: =IF(AH34="","",VLOOKUP(AH34,'【記載例】シフト記号表（勤務時間帯）'!$C$5:$K$36,9,FALSE)) -> 4 | AI35: =IF(AI34="","",VLOOKUP(AI34,'【記載例】シフト記号表（勤務時間帯）'!$C$5:$K$36,9,FALSE)) -> - | AJ35: =IF(AJ34="","",VLOOKUP(AJ34,'【記載例】シフト記号表（勤務時間帯）'!$C$5:$K$36,9,FALSE)) -> - | AK35: =IF(AK34="","",VLOOKUP(AK34,'【記載例】シフト記号表（勤務時間帯）'!$C$5:$K$36,9,FALSE)) -> 4 | AL35: =IF(AL34="","",VLOOKUP(AL34,'【記載例】シフト記号表（勤務時間帯）'!$C$5:$K$36,9,FALSE)) -> - | AM35: =IF(AM34="","",VLOOKUP(AM34,'【記載例】シフト記号表（勤務時間帯）'!$C$5:$K$36,9,FALSE)) -> 4 | AN35: =IF(AN34="","",VLOOKUP(AN34,'【記載例】シフト記号表（勤務時間帯）'!$C$5:$K$36,9,FALSE)) -> - | AO35: =IF(AO34="","",VLOOKUP(AO34,'【記載例】シフト記号表（勤務時間帯）'!$C$5:$K$36,9,FALSE)) -> 4 | AP35: =IF(AP34="","",VLOOKUP(AP34,'【記載例】シフト記号表（勤務時間帯）'!$C$5:$K$36,9,FALSE)) -> - | AQ35: =IF(AQ34="","",VLOOKUP(AQ34,'【記載例】シフト記号表（勤務時間帯）'!$C$5:$K$36,9,FALSE)) -> - | AR35: =IF(AR34="","",VLOOKUP(AR34,'【記載例】シフト記号表（勤務時間帯）'!$C$5:$K$36,9,FALSE)) -> 4 | AS35: =IF(AS34="","",VLOOKUP(AS34,'【記載例】シフト記号表（勤務時間帯）'!$C$5:$K$36,9,FALSE)) -> - | AT35: =IF(AT34="","",VLOOKUP(AT34,'【記載例】シフト記号表（勤務時間帯）'!$C$5:$K$36,9,FALSE)) -> 4 | AU35: =IF(AU34="","",VLOOKUP(AU34,'【記載例】シフト記号表（勤務時間帯）'!$C$5:$K$36,9,FALSE)) ->  | AV35: =IF(AV34="","",VLOOKUP(AV34,'【記載例】シフト記号表（勤務時間帯）'!$C$5:$K$36,9,FALSE)) ->  | AW35: =IF(AW34="","",VLOOKUP(AW34,'【記載例】シフト記号表（勤務時間帯）'!$C$5:$K$36,9,FALSE)) ->  | AX35: =IF($BB$3="計画",SUM(S35:AT35),IF($BB$3="実績",SUM(S35:AW35),"")) -> 48 | AZ35: =IF($BB$3="計画",AX35/4,IF($BB$3="実績",【記載例】地域密着型通所介護!AX35/(【記載例】地域密着型通所介護!$BB$8/7),"")) -> 12
F36: =C35 -> 看護職員 | P36: サービス提供時間内 の勤務時間数 | S36: =IF(S34="","",VLOOKUP(S34,'【記載例】シフト記号表（勤務時間帯）'!$C$5:$U$36,19,FALSE)) -> - | T36: =IF(T34="","",VLOOKUP(T34,'【記載例】シフト記号表（勤務時間帯）'!$C$5:$U$36,19,FALSE)) -> 4 | U36: =IF(U34="","",VLOOKUP(U34,'【記載例】シフト記号表（勤務時間帯）'!$C$5:$U$36,19,FALSE)) -> - | V36: =IF(V34="","",VLOOKUP(V34,'【記載例】シフト記号表（勤務時間帯）'!$C$5:$U$36,19,FALSE)) -> - | W36: =IF(W34="","",VLOOKUP(W34,'【記載例】シフト記号表（勤務時間帯）'!$C$5:$U$36,19,FALSE)) -> 4 | X36: =IF(X34="","",VLOOKUP(X34,'【記載例】シフト記号表（勤務時間帯）'!$C$5:$U$36,19,FALSE)) -> - | Y36: =IF(Y34="","",VLOOKUP(Y34,'【記載例】シフト記号表（勤務時間帯）'!$C$5:$U$36,19,FALSE)) -> 4 | Z36: =IF(Z34="","",VLOOKUP(Z34,'【記載例】シフト記号表（勤務時間帯）'!$C$5:$U$36,19,FALSE)) -> - | AA36: =IF(AA34="","",VLOOKUP(AA34,'【記載例】シフト記号表（勤務時間帯）'!$C$5:$U$36,19,FALSE)) -> 4 | AB36: =IF(AB34="","",VLOOKUP(AB34,'【記載例】シフト記号表（勤務時間帯）'!$C$5:$U$36,19,FALSE)) -> - | AC36: =IF(AC34="","",VLOOKUP(AC34,'【記載例】シフト記号表（勤務時間帯）'!$C$5:$U$36,19,FALSE)) -> - | AD36: =IF(AD34="","",VLOOKUP(AD34,'【記載例】シフト記号表（勤務時間帯）'!$C$5:$U$36,19,FALSE)) -> 4 | AE36: =IF(AE34="","",VLOOKUP(AE34,'【記載例】シフト記号表（勤務時間帯）'!$C$5:$U$36,19,FALSE)) -> - | AF36: =IF(AF34="","",VLOOKUP(AF34,'【記載例】シフト記号表（勤務時間帯）'!$C$5:$U$36,19,FALSE)) -> 4 | AG36: =IF(AG34="","",VLOOKUP(AG34,'【記載例】シフト記号表（勤務時間帯）'!$C$5:$U$36,19,FALSE)) -> - | AH36: =IF(AH34="","",VLOOKUP(AH34,'【記載例】シフト記号表（勤務時間帯）'!$C$5:$U$36,19,FALSE)) -> 4 | AI36: =IF(AI34="","",VLOOKUP(AI34,'【記載例】シフト記号表（勤務時間帯）'!$C$5:$U$36,19,FALSE)) -> - | AJ36: =IF(AJ34="","",VLOOKUP(AJ34,'【記載例】シフト記号表（勤務時間帯）'!$C$5:$U$36,19,FALSE)) -> - | AK36: =IF(AK34="","",VLOOKUP(AK34,'【記載例】シフト記号表（勤務時間帯）'!$C$5:$U$36,19,FALSE)) -> 4 | AL36: =IF(AL34="","",VLOOKUP(AL34,'【記載例】シフト記号表（勤務時間帯）'!$C$5:$U$36,19,FALSE)) -> - | AM36: =IF(AM34="","",VLOOKUP(AM34,'【記載例】シフト記号表（勤務時間帯）'!$C$5:$U$36,19,FALSE)) -> 4 | AN36: =IF(AN34="","",VLOOKUP(AN34,'【記載例】シフト記号表（勤務時間帯）'!$C$5:$U$36,19,FALSE)) -> - | AO36: =IF(AO34="","",VLOOKUP(AO34,'【記載例】シフト記号表（勤務時間帯）'!$C$5:$U$36,19,FALSE)) -> 4 | AP36: =IF(AP34="","",VLOOKUP(AP34,'【記載例】シフト記号表（勤務時間帯）'!$C$5:$U$36,19,FALSE)) -> - | AQ36: =IF(AQ34="","",VLOOKUP(AQ34,'【記載例】シフト記号表（勤務時間帯）'!$C$5:$U$36,19,FALSE)) -> - | AR36: =IF(AR34="","",VLOOKUP(AR34,'【記載例】シフト記号表（勤務時間帯）'!$C$5:$U$36,19,FALSE)) -> 4 | AS36: =IF(AS34="","",VLOOKUP(AS34,'【記載例】シフト記号表（勤務時間帯）'!$C$5:$U$36,19,FALSE)) -> - | AT36: =IF(AT34="","",VLOOKUP(AT34,'【記載例】シフト記号表（勤務時間帯）'!$C$5:$U$36,19,FALSE)) -> 4 | AU36: =IF(AU34="","",VLOOKUP(AU34,'【記載例】シフト記号表（勤務時間帯）'!$C$5:$U$36,19,FALSE)) ->  | AV36: =IF(AV34="","",VLOOKUP(AV34,'【記載例】シフト記号表（勤務時間帯）'!$C$5:$U$36,19,FALSE)) ->  | AW36: =IF(AW34="","",VLOOKUP(AW34,'【記載例】シフト記号表（勤務時間帯）'!$C$5:$U$36,19,FALSE)) ->  | AX36: =IF($BB$3="計画",SUM(S36:AT36),IF($BB$3="実績",SUM(S36:AW36),"")) -> 48 | AZ36: =IF($BB$3="計画",AX36/4,IF($BB$3="実績",【記載例】地域密着型通所介護!AX36/(【記載例】地域密着型通所介護!$BB$8/7),"")) -> 12
B37: =B34+1 -> 6 | G37: B | H37: ー | L37: ○○ B子 | P37: シフト記号 | T37: a | U37: a | V37: 休 | W37: 休 | X37: a | AA37: a | AB37: a | AC37: 休 | AD37: 休 | AE37: a | AH37: a | AI37: a | AJ37: 休 | AK37: 休 | AL37: a | AO37: a | AP37: a | AQ37: 休 | AR37: 休 | AS37: a | BB37: 生活相談員
C38: 介護職員 | P38: 勤務時間数 | S38: =IF(S37="","",VLOOKUP(S37,'【記載例】シフト記号表（勤務時間帯）'!$C$5:$K$36,9,FALSE)) ->  | T38: =IF(T37="","",VLOOKUP(T37,'【記載例】シフト記号表（勤務時間帯）'!$C$5:$K$36,9,FALSE)) -> 8 | U38: =IF(U37="","",VLOOKUP(U37,'【記載例】シフト記号表（勤務時間帯）'!$C$5:$K$36,9,FALSE)) -> 8 | V38: =IF(V37="","",VLOOKUP(V37,'【記載例】シフト記号表（勤務時間帯）'!$C$5:$K$36,9,FALSE)) -> - | W38: =IF(W37="","",VLOOKUP(W37,'【記載例】シフト記号表（勤務時間帯）'!$C$5:$K$36,9,FALSE)) -> - | X38: =IF(X37="","",VLOOKUP(X37,'【記載例】シフト記号表（勤務時間帯）'!$C$5:$K$36,9,FALSE)) -> 8 | Y38: =IF(Y37="","",VLOOKUP(Y37,'【記載例】シフト記号表（勤務時間帯）'!$C$5:$K$36,9,FALSE)) ->  | Z38: =IF(Z37="","",VLOOKUP(Z37,'【記載例】シフト記号表（勤務時間帯）'!$C$5:$K$36,9,FALSE)) ->  | AA38: =IF(AA37="","",VLOOKUP(AA37,'【記載例】シフト記号表（勤務時間帯）'!$C$5:$K$36,9,FALSE)) -> 8 | AB38: =IF(AB37="","",VLOOKUP(AB37,'【記載例】シフト記号表（勤務時間帯）'!$C$5:$K$36,9,FALSE)) -> 8 | AC38: =IF(AC37="","",VLOOKUP(AC37,'【記載例】シフト記号表（勤務時間帯）'!$C$5:$K$36,9,FALSE)) -> - | AD38: =IF(AD37="","",VLOOKUP(AD37,'【記載例】シフト記号表（勤務時間帯）'!$C$5:$K$36,9,FALSE)) -> - | AE38: =IF(AE37="","",VLOOKUP(AE37,'【記載例】シフト記号表（勤務時間帯）'!$C$5:$K$36,9,FALSE)) -> 8 | AF38: =IF(AF37="","",VLOOKUP(AF37,'【記載例】シフト記号表（勤務時間帯）'!$C$5:$K$36,9,FALSE)) ->  | AG38: =IF(AG37="","",VLOOKUP(AG37,'【記載例】シフト記号表（勤務時間帯）'!$C$5:$K$36,9,FALSE)) ->  | AH38: =IF(AH37="","",VLOOKUP(AH37,'【記載例】シフト記号表（勤務時間帯）'!$C$5:$K$36,9,FALSE)) -> 8 | AI38: =IF(AI37="","",VLOOKUP(AI37,'【記載例】シフト記号表（勤務時間帯）'!$C$5:$K$36,9,FALSE)) -> 8 | AJ38: =IF(AJ37="","",VLOOKUP(AJ37,'【記載例】シフト記号表（勤務時間帯）'!$C$5:$K$36,9,FALSE)) -> - | AK38: =IF(AK37="","",VLOOKUP(AK37,'【記載例】シフト記号表（勤務時間帯）'!$C$5:$K$36,9,FALSE)) -> - | AL38: =IF(AL37="","",VLOOKUP(AL37,'【記載例】シフト記号表（勤務時間帯）'!$C$5:$K$36,9,FALSE)) -> 8 | AM38: =IF(AM37="","",VLOOKUP(AM37,'【記載例】シフト記号表（勤務時間帯）'!$C$5:$K$36,9,FALSE)) ->  | AN38: =IF(AN37="","",VLOOKUP(AN37,'【記載例】シフト記号表（勤務時間帯）'!$C$5:$K$36,9,FALSE)) ->  | AO38: =IF(AO37="","",VLOOKUP(AO37,'【記載例】シフト記号表（勤務時間帯）'!$C$5:$K$36,9,FALSE)) -> 8 | AP38: =IF(AP37="","",VLOOKUP(AP37,'【記載例】シフト記号表（勤務時間帯）'!$C$5:$K$36,9,FALSE)) -> 8 | AQ38: =IF(AQ37="","",VLOOKUP(AQ37,'【記載例】シフト記号表（勤務時間帯）'!$C$5:$K$36,9,FALSE)) -> - | AR38: =IF(AR37="","",VLOOKUP(AR37,'【記載例】シフト記号表（勤務時間帯）'!$C$5:$K$36,9,FALSE)) -> - | AS38: =IF(AS37="","",VLOOKUP(AS37,'【記載例】シフト記号表（勤務時間帯）'!$C$5:$K$36,9,FALSE)) -> 8 | AT38: =IF(AT37="","",VLOOKUP(AT37,'【記載例】シフト記号表（勤務時間帯）'!$C$5:$K$36,9,FALSE)) ->  | AU38: =IF(AU37="","",VLOOKUP(AU37,'【記載例】シフト記号表（勤務時間帯）'!$C$5:$K$36,9,FALSE)) ->  | AV38: =IF(AV37="","",VLOOKUP(AV37,'【記載例】シフト記号表（勤務時間帯）'!$C$5:$K$36,9,FALSE)) ->  | AW38: =IF(AW37="","",VLOOKUP(AW37,'【記載例】シフト記号表（勤務時間帯）'!$C$5:$K$36,9,FALSE)) ->  | AX38: =IF($BB$3="計画",SUM(S38:AT38),IF($BB$3="実績",SUM(S38:AW38),"")) -> 96 | AZ38: =IF($BB$3="計画",AX38/4,IF($BB$3="実績",【記載例】地域密着型通所介護!AX38/(【記載例】地域密着型通所介護!$BB$8/7),"")) -> 24
F39: =C38 -> 介護職員 | P39: サービス提供時間内 の勤務時間数 | S39: =IF(S37="","",VLOOKUP(S37,'【記載例】シフト記号表（勤務時間帯）'!$C$5:$U$36,19,FALSE)) ->  | T39: =IF(T37="","",VLOOKUP(T37,'【記載例】シフト記号表（勤務時間帯）'!$C$5:$U$36,19,FALSE)) -> 7 | U39: =IF(U37="","",VLOOKUP(U37,'【記載例】シフト記号表（勤務時間帯）'!$C$5:$U$36,19,FALSE)) -> 7 | V39: =IF(V37="","",VLOOKUP(V37,'【記載例】シフト記号表（勤務時間帯）'!$C$5:$U$36,19,FALSE)) -> - | W39: =IF(W37="","",VLOOKUP(W37,'【記載例】シフト記号表（勤務時間帯）'!$C$5:$U$36,19,FALSE)) -> - | X39: =IF(X37="","",VLOOKUP(X37,'【記載例】シフト記号表（勤務時間帯）'!$C$5:$U$36,19,FALSE)) -> 7 | Y39: =IF(Y37="","",VLOOKUP(Y37,'【記載例】シフト記号表（勤務時間帯）'!$C$5:$U$36,19,FALSE)) ->  | Z39: =IF(Z37="","",VLOOKUP(Z37,'【記載例】シフト記号表（勤務時間帯）'!$C$5:$U$36,19,FALSE)) ->  | AA39: =IF(AA37="","",VLOOKUP(AA37,'【記載例】シフト記号表（勤務時間帯）'!$C$5:$U$36,19,FALSE)) -> 7 | AB39: =IF(AB37="","",VLOOKUP(AB37,'【記載例】シフト記号表（勤務時間帯）'!$C$5:$U$36,19,FALSE)) -> 7 | AC39: =IF(AC37="","",VLOOKUP(AC37,'【記載例】シフト記号表（勤務時間帯）'!$C$5:$U$36,19,FALSE)) -> - | AD39: =IF(AD37="","",VLOOKUP(AD37,'【記載例】シフト記号表（勤務時間帯）'!$C$5:$U$36,19,FALSE)) -> - | AE39: =IF(AE37="","",VLOOKUP(AE37,'【記載例】シフト記号表（勤務時間帯）'!$C$5:$U$36,19,FALSE)) -> 7 | AF39: =IF(AF37="","",VLOOKUP(AF37,'【記載例】シフト記号表（勤務時間帯）'!$C$5:$U$36,19,FALSE)) ->  | AG39: =IF(AG37="","",VLOOKUP(AG37,'【記載例】シフト記号表（勤務時間帯）'!$C$5:$U$36,19,FALSE)) ->  | AH39: =IF(AH37="","",VLOOKUP(AH37,'【記載例】シフト記号表（勤務時間帯）'!$C$5:$U$36,19,FALSE)) -> 7 | AI39: =IF(AI37="","",VLOOKUP(AI37,'【記載例】シフト記号表（勤務時間帯）'!$C$5:$U$36,19,FALSE)) -> 7 | AJ39: =IF(AJ37="","",VLOOKUP(AJ37,'【記載例】シフト記号表（勤務時間帯）'!$C$5:$U$36,19,FALSE)) -> - | AK39: =IF(AK37="","",VLOOKUP(AK37,'【記載例】シフト記号表（勤務時間帯）'!$C$5:$U$36,19,FALSE)) -> - | AL39: =IF(AL37="","",VLOOKUP(AL37,'【記載例】シフト記号表（勤務時間帯）'!$C$5:$U$36,19,FALSE)) -> 7 | AM39: =IF(AM37="","",VLOOKUP(AM37,'【記載例】シフト記号表（勤務時間帯）'!$C$5:$U$36,19,FALSE)) ->  | AN39: =IF(AN37="","",VLOOKUP(AN37,'【記載例】シフト記号表（勤務時間帯）'!$C$5:$U$36,19,FALSE)) ->  | AO39: =IF(AO37="","",VLOOKUP(AO37,'【記載例】シフト記号表（勤務時間帯）'!$C$5:$U$36,19,FALSE)) -> 7 | AP39: =IF(AP37="","",VLOOKUP(AP37,'【記載例】シフト記号表（勤務時間帯）'!$C$5:$U$36,19,FALSE)) -> 7 | AQ39: =IF(AQ37="","",VLOOKUP(AQ37,'【記載例】シフト記号表（勤務時間帯）'!$C$5:$U$36,19,FALSE)) -> - | AR39: =IF(AR37="","",VLOOKUP(AR37,'【記載例】シフト記号表（勤務時間帯）'!$C$5:$U$36,19,FALSE)) -> - | AS39: =IF(AS37="","",VLOOKUP(AS37,'【記載例】シフト記号表（勤務時間帯）'!$C$5:$U$36,19,FALSE)) -> 7 | AT39: =IF(AT37="","",VLOOKUP(AT37,'【記載例】シフト記号表（勤務時間帯）'!$C$5:$U$36,19,FALSE)) ->  | AU39: =IF(AU37="","",VLOOKUP(AU37,'【記載例】シフト記号表（勤務時間帯）'!$C$5:$U$36,19,FALSE)) ->  | AV39: =IF(AV37="","",VLOOKUP(AV37,'【記載例】シフト記号表（勤務時間帯）'!$C$5:$U$36,19,FALSE)) ->  | AW39: =IF(AW37="","",VLOOKUP(AW37,'【記載例】シフト記号表（勤務時間帯）'!$C$5:$U$36,19,FALSE)) ->  | AX39: =IF($BB$3="計画",SUM(S39:AT39),IF($BB$3="実績",SUM(S39:AW39),"")) -> 84 | AZ39: =IF($BB$3="計画",AX39/4,IF($BB$3="実績",【記載例】地域密着型通所介護!AX39/(【記載例】地域密着型通所介護!$BB$8/7),"")) -> 21
B40: =B37+1 -> 7 | G40: B | H40: ー | L40: ○○ C男 | P40: シフト記号 | T40: 休 | W40: 休 | Y40: a | AA40: 休 | AD40: 休 | AF40: a | AH40: 休 | AK40: 休 | AM40: a | AO40: 休 | AR40: 休 | AT40: a | BB40: 看護職員、機能訓練指導員
C41: 介護職員 | P41: 勤務時間数 | S41: =IF(S40="","",VLOOKUP(S40,'【記載例】シフト記号表（勤務時間帯）'!$C$5:$K$36,9,FALSE)) ->  | T41: =IF(T40="","",VLOOKUP(T40,'【記載例】シフト記号表（勤務時間帯）'!$C$5:$K$36,9,FALSE)) -> - | U41: =IF(U40="","",VLOOKUP(U40,'【記載例】シフト記号表（勤務時間帯）'!$C$5:$K$36,9,FALSE)) ->  | V41: =IF(V40="","",VLOOKUP(V40,'【記載例】シフト記号表（勤務時間帯）'!$C$5:$K$36,9,FALSE)) ->  | W41: =IF(W40="","",VLOOKUP(W40,'【記載例】シフト記号表（勤務時間帯）'!$C$5:$K$36,9,FALSE)) -> - | X41: =IF(X40="","",VLOOKUP(X40,'【記載例】シフト記号表（勤務時間帯）'!$C$5:$K$36,9,FALSE)) ->  | Y41: =IF(Y40="","",VLOOKUP(Y40,'【記載例】シフト記号表（勤務時間帯）'!$C$5:$K$36,9,FALSE)) -> 8 | Z41: =IF(Z40="","",VLOOKUP(Z40,'【記載例】シフト記号表（勤務時間帯）'!$C$5:$K$36,9,FALSE)) ->  | AA41: =IF(AA40="","",VLOOKUP(AA40,'【記載例】シフト記号表（勤務時間帯）'!$C$5:$K$36,9,FALSE)) -> - | AB41: =IF(AB40="","",VLOOKUP(AB40,'【記載例】シフト記号表（勤務時間帯）'!$C$5:$K$36,9,FALSE)) ->  | AC41: =IF(AC40="","",VLOOKUP(AC40,'【記載例】シフト記号表（勤務時間帯）'!$C$5:$K$36,9,FALSE)) ->  | AD41: =IF(AD40="","",VLOOKUP(AD40,'【記載例】シフト記号表（勤務時間帯）'!$C$5:$K$36,9,FALSE)) -> - | AE41: =IF(AE40="","",VLOOKUP(AE40,'【記載例】シフト記号表（勤務時間帯）'!$C$5:$K$36,9,FALSE)) ->  | AF41: =IF(AF40="","",VLOOKUP(AF40,'【記載例】シフト記号表（勤務時間帯）'!$C$5:$K$36,9,FALSE)) -> 8 | AG41: =IF(AG40="","",VLOOKUP(AG40,'【記載例】シフト記号表（勤務時間帯）'!$C$5:$K$36,9,FALSE)) ->  | AH41: =IF(AH40="","",VLOOKUP(AH40,'【記載例】シフト記号表（勤務時間帯）'!$C$5:$K$36,9,FALSE)) -> - | AI41: =IF(AI40="","",VLOOKUP(AI40,'【記載例】シフト記号表（勤務時間帯）'!$C$5:$K$36,9,FALSE)) ->  | AJ41: =IF(AJ40="","",VLOOKUP(AJ40,'【記載例】シフト記号表（勤務時間帯）'!$C$5:$K$36,9,FALSE)) ->  | AK41: =IF(AK40="","",VLOOKUP(AK40,'【記載例】シフト記号表（勤務時間帯）'!$C$5:$K$36,9,FALSE)) -> - | AL41: =IF(AL40="","",VLOOKUP(AL40,'【記載例】シフト記号表（勤務時間帯）'!$C$5:$K$36,9,FALSE)) ->  | AM41: =IF(AM40="","",VLOOKUP(AM40,'【記載例】シフト記号表（勤務時間帯）'!$C$5:$K$36,9,FALSE)) -> 8 | AN41: =IF(AN40="","",VLOOKUP(AN40,'【記載例】シフト記号表（勤務時間帯）'!$C$5:$K$36,9,FALSE)) ->  | AO41: =IF(AO40="","",VLOOKUP(AO40,'【記載例】シフト記号表（勤務時間帯）'!$C$5:$K$36,9,FALSE)) -> - | AP41: =IF(AP40="","",VLOOKUP(AP40,'【記載例】シフト記号表（勤務時間帯）'!$C$5:$K$36,9,FALSE)) ->  | AQ41: =IF(AQ40="","",VLOOKUP(AQ40,'【記載例】シフト記号表（勤務時間帯）'!$C$5:$K$36,9,FALSE)) ->  | AR41: =IF(AR40="","",VLOOKUP(AR40,'【記載例】シフト記号表（勤務時間帯）'!$C$5:$K$36,9,FALSE)) -> - | AS41: =IF(AS40="","",VLOOKUP(AS40,'【記載例】シフト記号表（勤務時間帯）'!$C$5:$K$36,9,FALSE)) ->  | AT41: =IF(AT40="","",VLOOKUP(AT40,'【記載例】シフト記号表（勤務時間帯）'!$C$5:$K$36,9,FALSE)) -> 8 | AU41: =IF(AU40="","",VLOOKUP(AU40,'【記載例】シフト記号表（勤務時間帯）'!$C$5:$K$36,9,FALSE)) ->  | AV41: =IF(AV40="","",VLOOKUP(AV40,'【記載例】シフト記号表（勤務時間帯）'!$C$5:$K$36,9,FALSE)) ->  | AW41: =IF(AW40="","",VLOOKUP(AW40,'【記載例】シフト記号表（勤務時間帯）'!$C$5:$K$36,9,FALSE)) ->  | AX41: =IF($BB$3="計画",SUM(S41:AT41),IF($BB$3="実績",SUM(S41:AW41),"")) -> 32 | AZ41: =IF($BB$3="計画",AX41/4,IF($BB$3="実績",【記載例】地域密着型通所介護!AX41/(【記載例】地域密着型通所介護!$BB$8/7),"")) -> 8
F42: =C41 -> 介護職員 | P42: サービス提供時間内 の勤務時間数 | S42: =IF(S40="","",VLOOKUP(S40,'【記載例】シフト記号表（勤務時間帯）'!$C$5:$U$36,19,FALSE)) ->  | T42: =IF(T40="","",VLOOKUP(T40,'【記載例】シフト記号表（勤務時間帯）'!$C$5:$U$36,19,FALSE)) -> - | U42: =IF(U40="","",VLOOKUP(U40,'【記載例】シフト記号表（勤務時間帯）'!$C$5:$U$36,19,FALSE)) ->  | V42: =IF(V40="","",VLOOKUP(V40,'【記載例】シフト記号表（勤務時間帯）'!$C$5:$U$36,19,FALSE)) ->  | W42: =IF(W40="","",VLOOKUP(W40,'【記載例】シフト記号表（勤務時間帯）'!$C$5:$U$36,19,FALSE)) -> - | X42: =IF(X40="","",VLOOKUP(X40,'【記載例】シフト記号表（勤務時間帯）'!$C$5:$U$36,19,FALSE)) ->  | Y42: =IF(Y40="","",VLOOKUP(Y40,'【記載例】シフト記号表（勤務時間帯）'!$C$5:$U$36,19,FALSE)) -> 7 | Z42: =IF(Z40="","",VLOOKUP(Z40,'【記載例】シフト記号表（勤務時間帯）'!$C$5:$U$36,19,FALSE)) ->  | AA42: =IF(AA40="","",VLOOKUP(AA40,'【記載例】シフト記号表（勤務時間帯）'!$C$5:$U$36,19,FALSE)) -> - | AB42: =IF(AB40="","",VLOOKUP(AB40,'【記載例】シフト記号表（勤務時間帯）'!$C$5:$U$36,19,FALSE)) ->  | AC42: =IF(AC40="","",VLOOKUP(AC40,'【記載例】シフト記号表（勤務時間帯）'!$C$5:$U$36,19,FALSE)) ->  | AD42: =IF(AD40="","",VLOOKUP(AD40,'【記載例】シフト記号表（勤務時間帯）'!$C$5:$U$36,19,FALSE)) -> - | AE42: =IF(AE40="","",VLOOKUP(AE40,'【記載例】シフト記号表（勤務時間帯）'!$C$5:$U$36,19,FALSE)) ->  | AF42: =IF(AF40="","",VLOOKUP(AF40,'【記載例】シフト記号表（勤務時間帯）'!$C$5:$U$36,19,FALSE)) -> 7 | AG42: =IF(AG40="","",VLOOKUP(AG40,'【記載例】シフト記号表（勤務時間帯）'!$C$5:$U$36,19,FALSE)) ->  | AH42: =IF(AH40="","",VLOOKUP(AH40,'【記載例】シフト記号表（勤務時間帯）'!$C$5:$U$36,19,FALSE)) -> - | AI42: =IF(AI40="","",VLOOKUP(AI40,'【記載例】シフト記号表（勤務時間帯）'!$C$5:$U$36,19,FALSE)) ->  | AJ42: =IF(AJ40="","",VLOOKUP(AJ40,'【記載例】シフト記号表（勤務時間帯）'!$C$5:$U$36,19,FALSE)) ->  | AK42: =IF(AK40="","",VLOOKUP(AK40,'【記載例】シフト記号表（勤務時間帯）'!$C$5:$U$36,19,FALSE)) -> - | AL42: =IF(AL40="","",VLOOKUP(AL40,'【記載例】シフト記号表（勤務時間帯）'!$C$5:$U$36,19,FALSE)) ->  | AM42: =IF(AM40="","",VLOOKUP(AM40,'【記載例】シフト記号表（勤務時間帯）'!$C$5:$U$36,19,FALSE)) -> 7 | AN42: =IF(AN40="","",VLOOKUP(AN40,'【記載例】シフト記号表（勤務時間帯）'!$C$5:$U$36,19,FALSE)) ->  | AO42: =IF(AO40="","",VLOOKUP(AO40,'【記載例】シフト記号表（勤務時間帯）'!$C$5:$U$36,19,FALSE)) -> - | AP42: =IF(AP40="","",VLOOKUP(AP40,'【記載例】シフト記号表（勤務時間帯）'!$C$5:$U$36,19,FALSE)) ->  | AQ42: =IF(AQ40="","",VLOOKUP(AQ40,'【記載例】シフト記号表（勤務時間帯）'!$C$5:$U$36,19,FALSE)) ->  | AR42: =IF(AR40="","",VLOOKUP(AR40,'【記載例】シフト記号表（勤務時間帯）'!$C$5:$U$36,19,FALSE)) -> - | AS42: =IF(AS40="","",VLOOKUP(AS40,'【記載例】シフト記号表（勤務時間帯）'!$C$5:$U$36,19,FALSE)) ->  | AT42: =IF(AT40="","",VLOOKUP(AT40,'【記載例】シフト記号表（勤務時間帯）'!$C$5:$U$36,19,FALSE)) -> 7 | AU42: =IF(AU40="","",VLOOKUP(AU40,'【記載例】シフト記号表（勤務時間帯）'!$C$5:$U$36,19,FALSE)) ->  | AV42: =IF(AV40="","",VLOOKUP(AV40,'【記載例】シフト記号表（勤務時間帯）'!$C$5:$U$36,19,FALSE)) ->  | AW42: =IF(AW40="","",VLOOKUP(AW40,'【記載例】シフト記号表（勤務時間帯）'!$C$5:$U$36,19,FALSE)) ->  | AX42: =IF($BB$3="計画",SUM(S42:AT42),IF($BB$3="実績",SUM(S42:AW42),"")) -> 28 | AZ42: =IF($BB$3="計画",AX42/4,IF($BB$3="実績",【記載例】地域密着型通所介護!AX42/(【記載例】地域密着型通所介護!$BB$8/7),"")) -> 7
B43: =B40+1 -> 8 | G43: A | H43: 介護福祉士 | L43: ○○ E次 | P43: シフト記号 | S43: a | T43: 休 | U43: a | V43: a | W43: a | X43: 休 | Y43: a | Z43: a | AA43: 休 | AB43: a | AC43: a | AD43: a | AE43: 休 | AF43: a | AG43: a | AH43: 休 | AI43: a | AJ43: a | AK43: a | AL43: 休 | AM43: a | AN43: a | AO43: 休 | AP43: a | AQ43: a | AR43: a | AS43: 休 | AT43: a
C44: 介護職員 | P44: 勤務時間数 | S44: =IF(S43="","",VLOOKUP(S43,'【記載例】シフト記号表（勤務時間帯）'!$C$5:$K$36,9,FALSE)) -> 8 | T44: =IF(T43="","",VLOOKUP(T43,'【記載例】シフト記号表（勤務時間帯）'!$C$5:$K$36,9,FALSE)) -> - | U44: =IF(U43="","",VLOOKUP(U43,'【記載例】シフト記号表（勤務時間帯）'!$C$5:$K$36,9,FALSE)) -> 8 | V44: =IF(V43="","",VLOOKUP(V43,'【記載例】シフト記号表（勤務時間帯）'!$C$5:$K$36,9,FALSE)) -> 8 | W44: =IF(W43="","",VLOOKUP(W43,'【記載例】シフト記号表（勤務時間帯）'!$C$5:$K$36,9,FALSE)) -> 8 | X44: =IF(X43="","",VLOOKUP(X43,'【記載例】シフト記号表（勤務時間帯）'!$C$5:$K$36,9,FALSE)) -> - | Y44: =IF(Y43="","",VLOOKUP(Y43,'【記載例】シフト記号表（勤務時間帯）'!$C$5:$K$36,9,FALSE)) -> 8 | Z44: =IF(Z43="","",VLOOKUP(Z43,'【記載例】シフト記号表（勤務時間帯）'!$C$5:$K$36,9,FALSE)) -> 8 | AA44: =IF(AA43="","",VLOOKUP(AA43,'【記載例】シフト記号表（勤務時間帯）'!$C$5:$K$36,9,FALSE)) -> - | AB44: =IF(AB43="","",VLOOKUP(AB43,'【記載例】シフト記号表（勤務時間帯）'!$C$5:$K$36,9,FALSE)) -> 8 | AC44: =IF(AC43="","",VLOOKUP(AC43,'【記載例】シフト記号表（勤務時間帯）'!$C$5:$K$36,9,FALSE)) -> 8 | AD44: =IF(AD43="","",VLOOKUP(AD43,'【記載例】シフト記号表（勤務時間帯）'!$C$5:$K$36,9,FALSE)) -> 8 | AE44: =IF(AE43="","",VLOOKUP(AE43,'【記載例】シフト記号表（勤務時間帯）'!$C$5:$K$36,9,FALSE)) -> - | AF44: =IF(AF43="","",VLOOKUP(AF43,'【記載例】シフト記号表（勤務時間帯）'!$C$5:$K$36,9,FALSE)) -> 8 | AG44: =IF(AG43="","",VLOOKUP(AG43,'【記載例】シフト記号表（勤務時間帯）'!$C$5:$K$36,9,FALSE)) -> 8 | AH44: =IF(AH43="","",VLOOKUP(AH43,'【記載例】シフト記号表（勤務時間帯）'!$C$5:$K$36,9,FALSE)) -> - | AI44: =IF(AI43="","",VLOOKUP(AI43,'【記載例】シフト記号表（勤務時間帯）'!$C$5:$K$36,9,FALSE)) -> 8 | AJ44: =IF(AJ43="","",VLOOKUP(AJ43,'【記載例】シフト記号表（勤務時間帯）'!$C$5:$K$36,9,FALSE)) -> 8 | AK44: =IF(AK43="","",VLOOKUP(AK43,'【記載例】シフト記号表（勤務時間帯）'!$C$5:$K$36,9,FALSE)) -> 8 | AL44: =IF(AL43="","",VLOOKUP(AL43,'【記載例】シフト記号表（勤務時間帯）'!$C$5:$K$36,9,FALSE)) -> - | AM44: =IF(AM43="","",VLOOKUP(AM43,'【記載例】シフト記号表（勤務時間帯）'!$C$5:$K$36,9,FALSE)) -> 8 | AN44: =IF(AN43="","",VLOOKUP(AN43,'【記載例】シフト記号表（勤務時間帯）'!$C$5:$K$36,9,FALSE)) -> 8 | AO44: =IF(AO43="","",VLOOKUP(AO43,'【記載例】シフト記号表（勤務時間帯）'!$C$5:$K$36,9,FALSE)) -> - | AP44: =IF(AP43="","",VLOOKUP(AP43,'【記載例】シフト記号表（勤務時間帯）'!$C$5:$K$36,9,FALSE)) -> 8 | AQ44: =IF(AQ43="","",VLOOKUP(AQ43,'【記載例】シフト記号表（勤務時間帯）'!$C$5:$K$36,9,FALSE)) -> 8 | AR44: =IF(AR43="","",VLOOKUP(AR43,'【記載例】シフト記号表（勤務時間帯）'!$C$5:$K$36,9,FALSE)) -> 8 | AS44: =IF(AS43="","",VLOOKUP(AS43,'【記載例】シフト記号表（勤務時間帯）'!$C$5:$K$36,9,FALSE)) -> - | AT44: =IF(AT43="","",VLOOKUP(AT43,'【記載例】シフト記号表（勤務時間帯）'!$C$5:$K$36,9,FALSE)) -> 8 | AU44: =IF(AU43="","",VLOOKUP(AU43,'【記載例】シフト記号表（勤務時間帯）'!$C$5:$K$36,9,FALSE)) ->  | AV44: =IF(AV43="","",VLOOKUP(AV43,'【記載例】シフト記号表（勤務時間帯）'!$C$5:$K$36,9,FALSE)) ->  | AW44: =IF(AW43="","",VLOOKUP(AW43,'【記載例】シフト記号表（勤務時間帯）'!$C$5:$K$36,9,FALSE)) ->  | AX44: =IF($BB$3="計画",SUM(S44:AT44),IF($BB$3="実績",SUM(S44:AW44),"")) -> 160 | AZ44: =IF($BB$3="計画",AX44/4,IF($BB$3="実績",【記載例】地域密着型通所介護!AX44/(【記載例】地域密着型通所介護!$BB$8/7),"")) -> 40
F45: =C44 -> 介護職員 | P45: サービス提供時間内 の勤務時間数 | S45: =IF(S43="","",VLOOKUP(S43,'【記載例】シフト記号表（勤務時間帯）'!$C$5:$U$36,19,FALSE)) -> 7 | T45: =IF(T43="","",VLOOKUP(T43,'【記載例】シフト記号表（勤務時間帯）'!$C$5:$U$36,19,FALSE)) -> - | U45: =IF(U43="","",VLOOKUP(U43,'【記載例】シフト記号表（勤務時間帯）'!$C$5:$U$36,19,FALSE)) -> 7 | V45: =IF(V43="","",VLOOKUP(V43,'【記載例】シフト記号表（勤務時間帯）'!$C$5:$U$36,19,FALSE)) -> 7 | W45: =IF(W43="","",VLOOKUP(W43,'【記載例】シフト記号表（勤務時間帯）'!$C$5:$U$36,19,FALSE)) -> 7 | X45: =IF(X43="","",VLOOKUP(X43,'【記載例】シフト記号表（勤務時間帯）'!$C$5:$U$36,19,FALSE)) -> - | Y45: =IF(Y43="","",VLOOKUP(Y43,'【記載例】シフト記号表（勤務時間帯）'!$C$5:$U$36,19,FALSE)) -> 7 | Z45: =IF(Z43="","",VLOOKUP(Z43,'【記載例】シフト記号表（勤務時間帯）'!$C$5:$U$36,19,FALSE)) -> 7 | AA45: =IF(AA43="","",VLOOKUP(AA43,'【記載例】シフト記号表（勤務時間帯）'!$C$5:$U$36,19,FALSE)) -> - | AB45: =IF(AB43="","",VLOOKUP(AB43,'【記載例】シフト記号表（勤務時間帯）'!$C$5:$U$36,19,FALSE)) -> 7 | AC45: =IF(AC43="","",VLOOKUP(AC43,'【記載例】シフト記号表（勤務時間帯）'!$C$5:$U$36,19,FALSE)) -> 7 | AD45: =IF(AD43="","",VLOOKUP(AD43,'【記載例】シフト記号表（勤務時間帯）'!$C$5:$U$36,19,FALSE)) -> 7 | AE45: =IF(AE43="","",VLOOKUP(AE43,'【記載例】シフト記号表（勤務時間帯）'!$C$5:$U$36,19,FALSE)) -> - | AF45: =IF(AF43="","",VLOOKUP(AF43,'【記載例】シフト記号表（勤務時間帯）'!$C$5:$U$36,19,FALSE)) -> 7 | AG45: =IF(AG43="","",VLOOKUP(AG43,'【記載例】シフト記号表（勤務時間帯）'!$C$5:$U$36,19,FALSE)) -> 7 | AH45: =IF(AH43="","",VLOOKUP(AH43,'【記載例】シフト記号表（勤務時間帯）'!$C$5:$U$36,19,FALSE)) -> - | AI45: =IF(AI43="","",VLOOKUP(AI43,'【記載例】シフト記号表（勤務時間帯）'!$C$5:$U$36,19,FALSE)) -> 7 | AJ45: =IF(AJ43="","",VLOOKUP(AJ43,'【記載例】シフト記号表（勤務時間帯）'!$C$5:$U$36,19,FALSE)) -> 7 | AK45: =IF(AK43="","",VLOOKUP(AK43,'【記載例】シフト記号表（勤務時間帯）'!$C$5:$U$36,19,FALSE)) -> 7 | AL45: =IF(AL43="","",VLOOKUP(AL43,'【記載例】シフト記号表（勤務時間帯）'!$C$5:$U$36,19,FALSE)) -> - | AM45: =IF(AM43="","",VLOOKUP(AM43,'【記載例】シフト記号表（勤務時間帯）'!$C$5:$U$36,19,FALSE)) -> 7 | AN45: =IF(AN43="","",VLOOKUP(AN43,'【記載例】シフト記号表（勤務時間帯）'!$C$5:$U$36,19,FALSE)) -> 7 | AO45: =IF(AO43="","",VLOOKUP(AO43,'【記載例】シフト記号表（勤務時間帯）'!$C$5:$U$36,19,FALSE)) -> - | AP45: =IF(AP43="","",VLOOKUP(AP43,'【記載例】シフト記号表（勤務時間帯）'!$C$5:$U$36,19,FALSE)) -> 7 | AQ45: =IF(AQ43="","",VLOOKUP(AQ43,'【記載例】シフト記号表（勤務時間帯）'!$C$5:$U$36,19,FALSE)) -> 7 | AR45: =IF(AR43="","",VLOOKUP(AR43,'【記載例】シフト記号表（勤務時間帯）'!$C$5:$U$36,19,FALSE)) -> 7 | AS45: =IF(AS43="","",VLOOKUP(AS43,'【記載例】シフト記号表（勤務時間帯）'!$C$5:$U$36,19,FALSE)) -> - | AT45: =IF(AT43="","",VLOOKUP(AT43,'【記載例】シフト記号表（勤務時間帯）'!$C$5:$U$36,19,FALSE)) -> 7 | AU45: =IF(AU43="","",VLOOKUP(AU43,'【記載例】シフト記号表（勤務時間帯）'!$C$5:$U$36,19,FALSE)) ->  | AV45: =IF(AV43="","",VLOOKUP(AV43,'【記載例】シフト記号表（勤務時間帯）'!$C$5:$U$36,19,FALSE)) ->  | AW45: =IF(AW43="","",VLOOKUP(AW43,'【記載例】シフト記号表（勤務時間帯）'!$C$5:$U$36,19,FALSE)) ->  | AX45: =IF($BB$3="計画",SUM(S45:AT45),IF($BB$3="実績",SUM(S45:AW45),"")) -> 140 | AZ45: =IF($BB$3="計画",AX45/4,IF($BB$3="実績",【記載例】地域密着型通所介護!AX45/(【記載例】地域密着型通所介護!$BB$8/7),"")) -> 35
B46: =B43+1 -> 9 | G46: A | H46: ー | L46: ○○ F子 | P46: シフト記号 | S46: a | T46: a | U46: 休 | V46: a | W46: a | X46: a | Y46: 休 | Z46: a | AA46: a | AC46: a | AD46: a | AE46: a | AF46: 休 | AG46: a | AH46: a | AJ46: a | AK46: a | AL46: a | AM46: 休 | AN46: a | AO46: a | AQ46: a | AR46: a | AS46: a | AT46: 休
C47: 介護職員 | P47: 勤務時間数 | S47: =IF(S46="","",VLOOKUP(S46,'【記載例】シフト記号表（勤務時間帯）'!$C$5:$K$36,9,FALSE)) -> 8 | T47: =IF(T46="","",VLOOKUP(T46,'【記載例】シフト記号表（勤務時間帯）'!$C$5:$K$36,9,FALSE)) -> 8 | U47: =IF(U46="","",VLOOKUP(U46,'【記載例】シフト記号表（勤務時間帯）'!$C$5:$K$36,9,FALSE)) -> - | V47: =IF(V46="","",VLOOKUP(V46,'【記載例】シフト記号表（勤務時間帯）'!$C$5:$K$36,9,FALSE)) -> 8 | W47: =IF(W46="","",VLOOKUP(W46,'【記載例】シフト記号表（勤務時間帯）'!$C$5:$K$36,9,FALSE)) -> 8 | X47: =IF(X46="","",VLOOKUP(X46,'【記載例】シフト記号表（勤務時間帯）'!$C$5:$K$36,9,FALSE)) -> 8 | Y47: =IF(Y46="","",VLOOKUP(Y46,'【記載例】シフト記号表（勤務時間帯）'!$C$5:$K$36,9,FALSE)) -> - | Z47: =IF(Z46="","",VLOOKUP(Z46,'【記載例】シフト記号表（勤務時間帯）'!$C$5:$K$36,9,FALSE)) -> 8 | AA47: =IF(AA46="","",VLOOKUP(AA46,'【記載例】シフト記号表（勤務時間帯）'!$C$5:$K$36,9,FALSE)) -> 8 | AB47: =IF(AB46="","",VLOOKUP(AB46,'【記載例】シフト記号表（勤務時間帯）'!$C$5:$K$36,9,FALSE)) ->  | AC47: =IF(AC46="","",VLOOKUP(AC46,'【記載例】シフト記号表（勤務時間帯）'!$C$5:$K$36,9,FALSE)) -> 8 | AD47: =IF(AD46="","",VLOOKUP(AD46,'【記載例】シフト記号表（勤務時間帯）'!$C$5:$K$36,9,FALSE)) -> 8 | AE47: =IF(AE46="","",VLOOKUP(AE46,'【記載例】シフト記号表（勤務時間帯）'!$C$5:$K$36,9,FALSE)) -> 8 | AF47: =IF(AF46="","",VLOOKUP(AF46,'【記載例】シフト記号表（勤務時間帯）'!$C$5:$K$36,9,FALSE)) -> - | AG47: =IF(AG46="","",VLOOKUP(AG46,'【記載例】シフト記号表（勤務時間帯）'!$C$5:$K$36,9,FALSE)) -> 8 | AH47: =IF(AH46="","",VLOOKUP(AH46,'【記載例】シフト記号表（勤務時間帯）'!$C$5:$K$36,9,FALSE)) -> 8 | AI47: =IF(AI46="","",VLOOKUP(AI46,'【記載例】シフト記号表（勤務時間帯）'!$C$5:$K$36,9,FALSE)) ->  | AJ47: =IF(AJ46="","",VLOOKUP(AJ46,'【記載例】シフト記号表（勤務時間帯）'!$C$5:$K$36,9,FALSE)) -> 8 | AK47: =IF(AK46="","",VLOOKUP(AK46,'【記載例】シフト記号表（勤務時間帯）'!$C$5:$K$36,9,FALSE)) -> 8 | AL47: =IF(AL46="","",VLOOKUP(AL46,'【記載例】シフト記号表（勤務時間帯）'!$C$5:$K$36,9,FALSE)) -> 8 | AM47: =IF(AM46="","",VLOOKUP(AM46,'【記載例】シフト記号表（勤務時間帯）'!$C$5:$K$36,9,FALSE)) -> - | AN47: =IF(AN46="","",VLOOKUP(AN46,'【記載例】シフト記号表（勤務時間帯）'!$C$5:$K$36,9,FALSE)) -> 8 | AO47: =IF(AO46="","",VLOOKUP(AO46,'【記載例】シフト記号表（勤務時間帯）'!$C$5:$K$36,9,FALSE)) -> 8 | AP47: =IF(AP46="","",VLOOKUP(AP46,'【記載例】シフト記号表（勤務時間帯）'!$C$5:$K$36,9,FALSE)) ->  | AQ47: =IF(AQ46="","",VLOOKUP(AQ46,'【記載例】シフト記号表（勤務時間帯）'!$C$5:$K$36,9,FALSE)) -> 8 | AR47: =IF(AR46="","",VLOOKUP(AR46,'【記載例】シフト記号表（勤務時間帯）'!$C$5:$K$36,9,FALSE)) -> 8 | AS47: =IF(AS46="","",VLOOKUP(AS46,'【記載例】シフト記号表（勤務時間帯）'!$C$5:$K$36,9,FALSE)) -> 8 | AT47: =IF(AT46="","",VLOOKUP(AT46,'【記載例】シフト記号表（勤務時間帯）'!$C$5:$K$36,9,FALSE)) -> - | AU47: =IF(AU46="","",VLOOKUP(AU46,'【記載例】シフト記号表（勤務時間帯）'!$C$5:$K$36,9,FALSE)) ->  | AV47: =IF(AV46="","",VLOOKUP(AV46,'【記載例】シフト記号表（勤務時間帯）'!$C$5:$K$36,9,FALSE)) ->  | AW47: =IF(AW46="","",VLOOKUP(AW46,'【記載例】シフト記号表（勤務時間帯）'!$C$5:$K$36,9,FALSE)) ->  | AX47: =IF($BB$3="計画",SUM(S47:AT47),IF($BB$3="実績",SUM(S47:AW47),"")) -> 160 | AZ47: =IF($BB$3="計画",AX47/4,IF($BB$3="実績",【記載例】地域密着型通所介護!AX47/(【記載例】地域密着型通所介護!$BB$8/7),"")) -> 40
F48: =C47 -> 介護職員 | P48: サービス提供時間内 の勤務時間数 | S48: =IF(S46="","",VLOOKUP(S46,'【記載例】シフト記号表（勤務時間帯）'!$C$5:$U$36,19,FALSE)) -> 7 | T48: =IF(T46="","",VLOOKUP(T46,'【記載例】シフト記号表（勤務時間帯）'!$C$5:$U$36,19,FALSE)) -> 7 | U48: =IF(U46="","",VLOOKUP(U46,'【記載例】シフト記号表（勤務時間帯）'!$C$5:$U$36,19,FALSE)) -> - | V48: =IF(V46="","",VLOOKUP(V46,'【記載例】シフト記号表（勤務時間帯）'!$C$5:$U$36,19,FALSE)) -> 7 | W48: =IF(W46="","",VLOOKUP(W46,'【記載例】シフト記号表（勤務時間帯）'!$C$5:$U$36,19,FALSE)) -> 7 | X48: =IF(X46="","",VLOOKUP(X46,'【記載例】シフト記号表（勤務時間帯）'!$C$5:$U$36,19,FALSE)) -> 7 | Y48: =IF(Y46="","",VLOOKUP(Y46,'【記載例】シフト記号表（勤務時間帯）'!$C$5:$U$36,19,FALSE)) -> - | Z48: =IF(Z46="","",VLOOKUP(Z46,'【記載例】シフト記号表（勤務時間帯）'!$C$5:$U$36,19,FALSE)) -> 7 | AA48: =IF(AA46="","",VLOOKUP(AA46,'【記載例】シフト記号表（勤務時間帯）'!$C$5:$U$36,19,FALSE)) -> 7 | AB48: =IF(AB46="","",VLOOKUP(AB46,'【記載例】シフト記号表（勤務時間帯）'!$C$5:$U$36,19,FALSE)) ->  | AC48: =IF(AC46="","",VLOOKUP(AC46,'【記載例】シフト記号表（勤務時間帯）'!$C$5:$U$36,19,FALSE)) -> 7 | AD48: =IF(AD46="","",VLOOKUP(AD46,'【記載例】シフト記号表（勤務時間帯）'!$C$5:$U$36,19,FALSE)) -> 7 | AE48: =IF(AE46="","",VLOOKUP(AE46,'【記載例】シフト記号表（勤務時間帯）'!$C$5:$U$36,19,FALSE)) -> 7 | AF48: =IF(AF46="","",VLOOKUP(AF46,'【記載例】シフト記号表（勤務時間帯）'!$C$5:$U$36,19,FALSE)) -> - | AG48: =IF(AG46="","",VLOOKUP(AG46,'【記載例】シフト記号表（勤務時間帯）'!$C$5:$U$36,19,FALSE)) -> 7 | AH48: =IF(AH46="","",VLOOKUP(AH46,'【記載例】シフト記号表（勤務時間帯）'!$C$5:$U$36,19,FALSE)) -> 7 | AI48: =IF(AI46="","",VLOOKUP(AI46,'【記載例】シフト記号表（勤務時間帯）'!$C$5:$U$36,19,FALSE)) ->  | AJ48: =IF(AJ46="","",VLOOKUP(AJ46,'【記載例】シフト記号表（勤務時間帯）'!$C$5:$U$36,19,FALSE)) -> 7 | AK48: =IF(AK46="","",VLOOKUP(AK46,'【記載例】シフト記号表（勤務時間帯）'!$C$5:$U$36,19,FALSE)) -> 7 | AL48: =IF(AL46="","",VLOOKUP(AL46,'【記載例】シフト記号表（勤務時間帯）'!$C$5:$U$36,19,FALSE)) -> 7 | AM48: =IF(AM46="","",VLOOKUP(AM46,'【記載例】シフト記号表（勤務時間帯）'!$C$5:$U$36,19,FALSE)) -> - | AN48: =IF(AN46="","",VLOOKUP(AN46,'【記載例】シフト記号表（勤務時間帯）'!$C$5:$U$36,19,FALSE)) -> 7 | AO48: =IF(AO46="","",VLOOKUP(AO46,'【記載例】シフト記号表（勤務時間帯）'!$C$5:$U$36,19,FALSE)) -> 7 | AP48: =IF(AP46="","",VLOOKUP(AP46,'【記載例】シフト記号表（勤務時間帯）'!$C$5:$U$36,19,FALSE)) ->  | AQ48: =IF(AQ46="","",VLOOKUP(AQ46,'【記載例】シフト記号表（勤務時間帯）'!$C$5:$U$36,19,FALSE)) -> 7 | AR48: =IF(AR46="","",VLOOKUP(AR46,'【記載例】シフト記号表（勤務時間帯）'!$C$5:$U$36,19,FALSE)) -> 7 | AS48: =IF(AS46="","",VLOOKUP(AS46,'【記載例】シフト記号表（勤務時間帯）'!$C$5:$U$36,19,FALSE)) -> 7 | AT48: =IF(AT46="","",VLOOKUP(AT46,'【記載例】シフト記号表（勤務時間帯）'!$C$5:$U$36,19,FALSE)) -> - | AU48: =IF(AU46="","",VLOOKUP(AU46,'【記載例】シフト記号表（勤務時間帯）'!$C$5:$U$36,19,FALSE)) ->  | AV48: =IF(AV46="","",VLOOKUP(AV46,'【記載例】シフト記号表（勤務時間帯）'!$C$5:$U$36,19,FALSE)) ->  | AW48: =IF(AW46="","",VLOOKUP(AW46,'【記載例】シフト記号表（勤務時間帯）'!$C$5:$U$36,19,FALSE)) ->  | AX48: =IF($BB$3="計画",SUM(S48:AT48),IF($BB$3="実績",SUM(S48:AW48),"")) -> 140 | AZ48: =IF($BB$3="計画",AX48/4,IF($BB$3="実績",【記載例】地域密着型通所介護!AX48/(【記載例】地域密着型通所介護!$BB$8/7),"")) -> 35
B49: =B46+1 -> 10 | G49: B | H49: 看護師 | L49: ○○ C男 | P49: シフト記号 | S49: w | T49: 休 | U49: w | V49: w | W49: 休 | X49: w | Z49: w | AA49: 休 | AB49: w | AC49: w | AD49: 休 | AE49: w | AG49: w | AH49: 休 | AI49: w | AJ49: w | AK49: 休 | AL49: w | AN49: w | AO49: 休 | AP49: w | AQ49: w | AR49: 休 | AS49: w | BB49: 看護職員、介護職員
C50: 機能訓練指導員 | P50: 勤務時間数 | S50: =IF(S49="","",VLOOKUP(S49,'【記載例】シフト記号表（勤務時間帯）'!$C$5:$K$36,9,FALSE)) -> 4 | T50: =IF(T49="","",VLOOKUP(T49,'【記載例】シフト記号表（勤務時間帯）'!$C$5:$K$36,9,FALSE)) -> - | U50: =IF(U49="","",VLOOKUP(U49,'【記載例】シフト記号表（勤務時間帯）'!$C$5:$K$36,9,FALSE)) -> 4 | V50: =IF(V49="","",VLOOKUP(V49,'【記載例】シフト記号表（勤務時間帯）'!$C$5:$K$36,9,FALSE)) -> 4 | W50: =IF(W49="","",VLOOKUP(W49,'【記載例】シフト記号表（勤務時間帯）'!$C$5:$K$36,9,FALSE)) -> - | X50: =IF(X49="","",VLOOKUP(X49,'【記載例】シフト記号表（勤務時間帯）'!$C$5:$K$36,9,FALSE)) -> 4 | Y50: =IF(Y49="","",VLOOKUP(Y49,'【記載例】シフト記号表（勤務時間帯）'!$C$5:$K$36,9,FALSE)) ->  | Z50: =IF(Z49="","",VLOOKUP(Z49,'【記載例】シフト記号表（勤務時間帯）'!$C$5:$K$36,9,FALSE)) -> 4 | AA50: =IF(AA49="","",VLOOKUP(AA49,'【記載例】シフト記号表（勤務時間帯）'!$C$5:$K$36,9,FALSE)) -> - | AB50: =IF(AB49="","",VLOOKUP(AB49,'【記載例】シフト記号表（勤務時間帯）'!$C$5:$K$36,9,FALSE)) -> 4 | AC50: =IF(AC49="","",VLOOKUP(AC49,'【記載例】シフト記号表（勤務時間帯）'!$C$5:$K$36,9,FALSE)) -> 4 | AD50: =IF(AD49="","",VLOOKUP(AD49,'【記載例】シフト記号表（勤務時間帯）'!$C$5:$K$36,9,FALSE)) -> - | AE50: =IF(AE49="","",VLOOKUP(AE49,'【記載例】シフト記号表（勤務時間帯）'!$C$5:$K$36,9,FALSE)) -> 4 | AF50: =IF(AF49="","",VLOOKUP(AF49,'【記載例】シフト記号表（勤務時間帯）'!$C$5:$K$36,9,FALSE)) ->  | AG50: =IF(AG49="","",VLOOKUP(AG49,'【記載例】シフト記号表（勤務時間帯）'!$C$5:$K$36,9,FALSE)) -> 4 | AH50: =IF(AH49="","",VLOOKUP(AH49,'【記載例】シフト記号表（勤務時間帯）'!$C$5:$K$36,9,FALSE)) -> - | AI50: =IF(AI49="","",VLOOKUP(AI49,'【記載例】シフト記号表（勤務時間帯）'!$C$5:$K$36,9,FALSE)) -> 4 | AJ50: =IF(AJ49="","",VLOOKUP(AJ49,'【記載例】シフト記号表（勤務時間帯）'!$C$5:$K$36,9,FALSE)) -> 4 | AK50: =IF(AK49="","",VLOOKUP(AK49,'【記載例】シフト記号表（勤務時間帯）'!$C$5:$K$36,9,FALSE)) -> - | AL50: =IF(AL49="","",VLOOKUP(AL49,'【記載例】シフト記号表（勤務時間帯）'!$C$5:$K$36,9,FALSE)) -> 4 | AM50: =IF(AM49="","",VLOOKUP(AM49,'【記載例】シフト記号表（勤務時間帯）'!$C$5:$K$36,9,FALSE)) ->  | AN50: =IF(AN49="","",VLOOKUP(AN49,'【記載例】シフト記号表（勤務時間帯）'!$C$5:$K$36,9,FALSE)) -> 4 | AO50: =IF(AO49="","",VLOOKUP(AO49,'【記載例】シフト記号表（勤務時間帯）'!$C$5:$K$36,9,FALSE)) -> - | AP50: =IF(AP49="","",VLOOKUP(AP49,'【記載例】シフト記号表（勤務時間帯）'!$C$5:$K$36,9,FALSE)) -> 4 | AQ50: =IF(AQ49="","",VLOOKUP(AQ49,'【記載例】シフト記号表（勤務時間帯）'!$C$5:$K$36,9,FALSE)) -> 4 | AR50: =IF(AR49="","",VLOOKUP(AR49,'【記載例】シフト記号表（勤務時間帯）'!$C$5:$K$36,9,FALSE)) -> - | AS50: =IF(AS49="","",VLOOKUP(AS49,'【記載例】シフト記号表（勤務時間帯）'!$C$5:$K$36,9,FALSE)) -> 4 | AT50: =IF(AT49="","",VLOOKUP(AT49,'【記載例】シフト記号表（勤務時間帯）'!$C$5:$K$36,9,FALSE)) ->  | AU50: =IF(AU49="","",VLOOKUP(AU49,'【記載例】シフト記号表（勤務時間帯）'!$C$5:$K$36,9,FALSE)) ->  | AV50: =IF(AV49="","",VLOOKUP(AV49,'【記載例】シフト記号表（勤務時間帯）'!$C$5:$K$36,9,FALSE)) ->  | AW50: =IF(AW49="","",VLOOKUP(AW49,'【記載例】シフト記号表（勤務時間帯）'!$C$5:$K$36,9,FALSE)) ->  | AX50: =IF($BB$3="計画",SUM(S50:AT50),IF($BB$3="実績",SUM(S50:AW50),"")) -> 64 | AZ50: =IF($BB$3="計画",AX50/4,IF($BB$3="実績",【記載例】地域密着型通所介護!AX50/(【記載例】地域密着型通所介護!$BB$8/7),"")) -> 16
F51: =C50 -> 機能訓練指導員 | P51: サービス提供時間内 の勤務時間数 | S51: =IF(S49="","",VLOOKUP(S49,'【記載例】シフト記号表（勤務時間帯）'!$C$5:$U$36,19,FALSE)) -> 3 | T51: =IF(T49="","",VLOOKUP(T49,'【記載例】シフト記号表（勤務時間帯）'!$C$5:$U$36,19,FALSE)) -> - | U51: =IF(U49="","",VLOOKUP(U49,'【記載例】シフト記号表（勤務時間帯）'!$C$5:$U$36,19,FALSE)) -> 3 | V51: =IF(V49="","",VLOOKUP(V49,'【記載例】シフト記号表（勤務時間帯）'!$C$5:$U$36,19,FALSE)) -> 3 | W51: =IF(W49="","",VLOOKUP(W49,'【記載例】シフト記号表（勤務時間帯）'!$C$5:$U$36,19,FALSE)) -> - | X51: =IF(X49="","",VLOOKUP(X49,'【記載例】シフト記号表（勤務時間帯）'!$C$5:$U$36,19,FALSE)) -> 3 | Y51: =IF(Y49="","",VLOOKUP(Y49,'【記載例】シフト記号表（勤務時間帯）'!$C$5:$U$36,19,FALSE)) ->  | Z51: =IF(Z49="","",VLOOKUP(Z49,'【記載例】シフト記号表（勤務時間帯）'!$C$5:$U$36,19,FALSE)) -> 3 | AA51: =IF(AA49="","",VLOOKUP(AA49,'【記載例】シフト記号表（勤務時間帯）'!$C$5:$U$36,19,FALSE)) -> - | AB51: =IF(AB49="","",VLOOKUP(AB49,'【記載例】シフト記号表（勤務時間帯）'!$C$5:$U$36,19,FALSE)) -> 3 | AC51: =IF(AC49="","",VLOOKUP(AC49,'【記載例】シフト記号表（勤務時間帯）'!$C$5:$U$36,19,FALSE)) -> 3 | AD51: =IF(AD49="","",VLOOKUP(AD49,'【記載例】シフト記号表（勤務時間帯）'!$C$5:$U$36,19,FALSE)) -> - | AE51: =IF(AE49="","",VLOOKUP(AE49,'【記載例】シフト記号表（勤務時間帯）'!$C$5:$U$36,19,FALSE)) -> 3 | AF51: =IF(AF49="","",VLOOKUP(AF49,'【記載例】シフト記号表（勤務時間帯）'!$C$5:$U$36,19,FALSE)) ->  | AG51: =IF(AG49="","",VLOOKUP(AG49,'【記載例】シフト記号表（勤務時間帯）'!$C$5:$U$36,19,FALSE)) -> 3 | AH51: =IF(AH49="","",VLOOKUP(AH49,'【記載例】シフト記号表（勤務時間帯）'!$C$5:$U$36,19,FALSE)) -> - | AI51: =IF(AI49="","",VLOOKUP(AI49,'【記載例】シフト記号表（勤務時間帯）'!$C$5:$U$36,19,FALSE)) -> 3 | AJ51: =IF(AJ49="","",VLOOKUP(AJ49,'【記載例】シフト記号表（勤務時間帯）'!$C$5:$U$36,19,FALSE)) -> 3 | AK51: =IF(AK49="","",VLOOKUP(AK49,'【記載例】シフト記号表（勤務時間帯）'!$C$5:$U$36,19,FALSE)) -> - | AL51: =IF(AL49="","",VLOOKUP(AL49,'【記載例】シフト記号表（勤務時間帯）'!$C$5:$U$36,19,FALSE)) -> 3 | AM51: =IF(AM49="","",VLOOKUP(AM49,'【記載例】シフト記号表（勤務時間帯）'!$C$5:$U$36,19,FALSE)) ->  | AN51: =IF(AN49="","",VLOOKUP(AN49,'【記載例】シフト記号表（勤務時間帯）'!$C$5:$U$36,19,FALSE)) -> 3 | AO51: =IF(AO49="","",VLOOKUP(AO49,'【記載例】シフト記号表（勤務時間帯）'!$C$5:$U$36,19,FALSE)) -> - | AP51: =IF(AP49="","",VLOOKUP(AP49,'【記載例】シフト記号表（勤務時間帯）'!$C$5:$U$36,19,FALSE)) -> 3 | AQ51: =IF(AQ49="","",VLOOKUP(AQ49,'【記載例】シフト記号表（勤務時間帯）'!$C$5:$U$36,19,FALSE)) -> 3 | AR51: =IF(AR49="","",VLOOKUP(AR49,'【記載例】シフト記号表（勤務時間帯）'!$C$5:$U$36,19,FALSE)) -> - | AS51: =IF(AS49="","",VLOOKUP(AS49,'【記載例】シフト記号表（勤務時間帯）'!$C$5:$U$36,19,FALSE)) -> 3 | AT51: =IF(AT49="","",VLOOKUP(AT49,'【記載例】シフト記号表（勤務時間帯）'!$C$5:$U$36,19,FALSE)) ->  | AU51: =IF(AU49="","",VLOOKUP(AU49,'【記載例】シフト記号表（勤務時間帯）'!$C$5:$U$36,19,FALSE)) ->  | AV51: =IF(AV49="","",VLOOKUP(AV49,'【記載例】シフト記号表（勤務時間帯）'!$C$5:$U$36,19,FALSE)) ->  | AW51: =IF(AW49="","",VLOOKUP(AW49,'【記載例】シフト記号表（勤務時間帯）'!$C$5:$U$36,19,FALSE)) ->  | AX51: =IF($BB$3="計画",SUM(S51:AT51),IF($BB$3="実績",SUM(S51:AW51),"")) -> 48 | AZ51: =IF($BB$3="計画",AX51/4,IF($BB$3="実績",【記載例】地域密着型通所介護!AX51/(【記載例】地域密着型通所介護!$BB$8/7),"")) -> 12
B52: =B49+1 -> 11 | G52: D | H52: 看護師 | L52: ○○ D美 | P52: シフト記号 | S52: 休 | T52: w | U52: 休 | V52: 休 | W52: w | X52: 休 | Y52: w | Z52: 休 | AA52: w | AB52: 休 | AC52: 休 | AD52: w | AE52: 休 | AF52: w | AG52: 休 | AH52: w | AI52: 休 | AJ52: 休 | AK52: w | AL52: 休 | AM52: w | AN52: 休 | AO52: w | AP52: 休 | AQ52: 休 | AR52: w | AS52: 休 | AT52: w | BB52: 看護職員
C53: 機能訓練指導員 | P53: 勤務時間数 | S53: =IF(S52="","",VLOOKUP(S52,'【記載例】シフト記号表（勤務時間帯）'!$C$5:$K$36,9,FALSE)) -> - | T53: =IF(T52="","",VLOOKUP(T52,'【記載例】シフト記号表（勤務時間帯）'!$C$5:$K$36,9,FALSE)) -> 4 | U53: =IF(U52="","",VLOOKUP(U52,'【記載例】シフト記号表（勤務時間帯）'!$C$5:$K$36,9,FALSE)) -> - | V53: =IF(V52="","",VLOOKUP(V52,'【記載例】シフト記号表（勤務時間帯）'!$C$5:$K$36,9,FALSE)) -> - | W53: =IF(W52="","",VLOOKUP(W52,'【記載例】シフト記号表（勤務時間帯）'!$C$5:$K$36,9,FALSE)) -> 4 | X53: =IF(X52="","",VLOOKUP(X52,'【記載例】シフト記号表（勤務時間帯）'!$C$5:$K$36,9,FALSE)) -> - | Y53: =IF(Y52="","",VLOOKUP(Y52,'【記載例】シフト記号表（勤務時間帯）'!$C$5:$K$36,9,FALSE)) -> 4 | Z53: =IF(Z52="","",VLOOKUP(Z52,'【記載例】シフト記号表（勤務時間帯）'!$C$5:$K$36,9,FALSE)) -> - | AA53: =IF(AA52="","",VLOOKUP(AA52,'【記載例】シフト記号表（勤務時間帯）'!$C$5:$K$36,9,FALSE)) -> 4 | AB53: =IF(AB52="","",VLOOKUP(AB52,'【記載例】シフト記号表（勤務時間帯）'!$C$5:$K$36,9,FALSE)) -> - | AC53: =IF(AC52="","",VLOOKUP(AC52,'【記載例】シフト記号表（勤務時間帯）'!$C$5:$K$36,9,FALSE)) -> - | AD53: =IF(AD52="","",VLOOKUP(AD52,'【記載例】シフト記号表（勤務時間帯）'!$C$5:$K$36,9,FALSE)) -> 4 | AE53: =IF(AE52="","",VLOOKUP(AE52,'【記載例】シフト記号表（勤務時間帯）'!$C$5:$K$36,9,FALSE)) -> - | AF53: =IF(AF52="","",VLOOKUP(AF52,'【記載例】シフト記号表（勤務時間帯）'!$C$5:$K$36,9,FALSE)) -> 4 | AG53: =IF(AG52="","",VLOOKUP(AG52,'【記載例】シフト記号表（勤務時間帯）'!$C$5:$K$36,9,FALSE)) -> - | AH53: =IF(AH52="","",VLOOKUP(AH52,'【記載例】シフト記号表（勤務時間帯）'!$C$5:$K$36,9,FALSE)) -> 4 | AI53: =IF(AI52="","",VLOOKUP(AI52,'【記載例】シフト記号表（勤務時間帯）'!$C$5:$K$36,9,FALSE)) -> - | AJ53: =IF(AJ52="","",VLOOKUP(AJ52,'【記載例】シフト記号表（勤務時間帯）'!$C$5:$K$36,9,FALSE)) -> - | AK53: =IF(AK52="","",VLOOKUP(AK52,'【記載例】シフト記号表（勤務時間帯）'!$C$5:$K$36,9,FALSE)) -> 4 | AL53: =IF(AL52="","",VLOOKUP(AL52,'【記載例】シフト記号表（勤務時間帯）'!$C$5:$K$36,9,FALSE)) -> - | AM53: =IF(AM52="","",VLOOKUP(AM52,'【記載例】シフト記号表（勤務時間帯）'!$C$5:$K$36,9,FALSE)) -> 4 | AN53: =IF(AN52="","",VLOOKUP(AN52,'【記載例】シフト記号表（勤務時間帯）'!$C$5:$K$36,9,FALSE)) -> - | AO53: =IF(AO52="","",VLOOKUP(AO52,'【記載例】シフト記号表（勤務時間帯）'!$C$5:$K$36,9,FALSE)) -> 4 | AP53: =IF(AP52="","",VLOOKUP(AP52,'【記載例】シフト記号表（勤務時間帯）'!$C$5:$K$36,9,FALSE)) -> - | AQ53: =IF(AQ52="","",VLOOKUP(AQ52,'【記載例】シフト記号表（勤務時間帯）'!$C$5:$K$36,9,FALSE)) -> - | AR53: =IF(AR52="","",VLOOKUP(AR52,'【記載例】シフト記号表（勤務時間帯）'!$C$5:$K$36,9,FALSE)) -> 4 | AS53: =IF(AS52="","",VLOOKUP(AS52,'【記載例】シフト記号表（勤務時間帯）'!$C$5:$K$36,9,FALSE)) -> - | AT53: =IF(AT52="","",VLOOKUP(AT52,'【記載例】シフト記号表（勤務時間帯）'!$C$5:$K$36,9,FALSE)) -> 4 | AU53: =IF(AU52="","",VLOOKUP(AU52,'【記載例】シフト記号表（勤務時間帯）'!$C$5:$K$36,9,FALSE)) ->  | AV53: =IF(AV52="","",VLOOKUP(AV52,'【記載例】シフト記号表（勤務時間帯）'!$C$5:$K$36,9,FALSE)) ->  | AW53: =IF(AW52="","",VLOOKUP(AW52,'【記載例】シフト記号表（勤務時間帯）'!$C$5:$K$36,9,FALSE)) ->  | AX53: =IF($BB$3="計画",SUM(S53:AT53),IF($BB$3="実績",SUM(S53:AW53),"")) -> 48 | AZ53: =IF($BB$3="計画",AX53/4,IF($BB$3="実績",【記載例】地域密着型通所介護!AX53/(【記載例】地域密着型通所介護!$BB$8/7),"")) -> 12
F54: =C53 -> 機能訓練指導員 | P54: サービス提供時間内 の勤務時間数 | S54: =IF(S52="","",VLOOKUP(S52,'【記載例】シフト記号表（勤務時間帯）'!$C$5:$U$36,19,FALSE)) -> - | T54: =IF(T52="","",VLOOKUP(T52,'【記載例】シフト記号表（勤務時間帯）'!$C$5:$U$36,19,FALSE)) -> 3 | U54: =IF(U52="","",VLOOKUP(U52,'【記載例】シフト記号表（勤務時間帯）'!$C$5:$U$36,19,FALSE)) -> - | V54: =IF(V52="","",VLOOKUP(V52,'【記載例】シフト記号表（勤務時間帯）'!$C$5:$U$36,19,FALSE)) -> - | W54: =IF(W52="","",VLOOKUP(W52,'【記載例】シフト記号表（勤務時間帯）'!$C$5:$U$36,19,FALSE)) -> 3 | X54: =IF(X52="","",VLOOKUP(X52,'【記載例】シフト記号表（勤務時間帯）'!$C$5:$U$36,19,FALSE)) -> - | Y54: =IF(Y52="","",VLOOKUP(Y52,'【記載例】シフト記号表（勤務時間帯）'!$C$5:$U$36,19,FALSE)) -> 3 | Z54: =IF(Z52="","",VLOOKUP(Z52,'【記載例】シフト記号表（勤務時間帯）'!$C$5:$U$36,19,FALSE)) -> - | AA54: =IF(AA52="","",VLOOKUP(AA52,'【記載例】シフト記号表（勤務時間帯）'!$C$5:$U$36,19,FALSE)) -> 3 | AB54: =IF(AB52="","",VLOOKUP(AB52,'【記載例】シフト記号表（勤務時間帯）'!$C$5:$U$36,19,FALSE)) -> - | AC54: =IF(AC52="","",VLOOKUP(AC52,'【記載例】シフト記号表（勤務時間帯）'!$C$5:$U$36,19,FALSE)) -> - | AD54: =IF(AD52="","",VLOOKUP(AD52,'【記載例】シフト記号表（勤務時間帯）'!$C$5:$U$36,19,FALSE)) -> 3 | AE54: =IF(AE52="","",VLOOKUP(AE52,'【記載例】シフト記号表（勤務時間帯）'!$C$5:$U$36,19,FALSE)) -> - | AF54: =IF(AF52="","",VLOOKUP(AF52,'【記載例】シフト記号表（勤務時間帯）'!$C$5:$U$36,19,FALSE)) -> 3 | AG54: =IF(AG52="","",VLOOKUP(AG52,'【記載例】シフト記号表（勤務時間帯）'!$C$5:$U$36,19,FALSE)) -> - | AH54: =IF(AH52="","",VLOOKUP(AH52,'【記載例】シフト記号表（勤務時間帯）'!$C$5:$U$36,19,FALSE)) -> 3 | AI54: =IF(AI52="","",VLOOKUP(AI52,'【記載例】シフト記号表（勤務時間帯）'!$C$5:$U$36,19,FALSE)) -> - | AJ54: =IF(AJ52="","",VLOOKUP(AJ52,'【記載例】シフト記号表（勤務時間帯）'!$C$5:$U$36,19,FALSE)) -> - | AK54: =IF(AK52="","",VLOOKUP(AK52,'【記載例】シフト記号表（勤務時間帯）'!$C$5:$U$36,19,FALSE)) -> 3 | AL54: =IF(AL52="","",VLOOKUP(AL52,'【記載例】シフト記号表（勤務時間帯）'!$C$5:$U$36,19,FALSE)) -> - | AM54: =IF(AM52="","",VLOOKUP(AM52,'【記載例】シフト記号表（勤務時間帯）'!$C$5:$U$36,19,FALSE)) -> 3 | AN54: =IF(AN52="","",VLOOKUP(AN52,'【記載例】シフト記号表（勤務時間帯）'!$C$5:$U$36,19,FALSE)) -> - | AO54: =IF(AO52="","",VLOOKUP(AO52,'【記載例】シフト記号表（勤務時間帯）'!$C$5:$U$36,19,FALSE)) -> 3 | AP54: =IF(AP52="","",VLOOKUP(AP52,'【記載例】シフト記号表（勤務時間帯）'!$C$5:$U$36,19,FALSE)) -> - | AQ54: =IF(AQ52="","",VLOOKUP(AQ52,'【記載例】シフト記号表（勤務時間帯）'!$C$5:$U$36,19,FALSE)) -> - | AR54: =IF(AR52="","",VLOOKUP(AR52,'【記載例】シフト記号表（勤務時間帯）'!$C$5:$U$36,19,FALSE)) -> 3 | AS54: =IF(AS52="","",VLOOKUP(AS52,'【記載例】シフト記号表（勤務時間帯）'!$C$5:$U$36,19,FALSE)) -> - | AT54: =IF(AT52="","",VLOOKUP(AT52,'【記載例】シフト記号表（勤務時間帯）'!$C$5:$U$36,19,FALSE)) -> 3 | AU54: =IF(AU52="","",VLOOKUP(AU52,'【記載例】シフト記号表（勤務時間帯）'!$C$5:$U$36,19,FALSE)) ->  | AV54: =IF(AV52="","",VLOOKUP(AV52,'【記載例】シフト記号表（勤務時間帯）'!$C$5:$U$36,19,FALSE)) ->  | AW54: =IF(AW52="","",VLOOKUP(AW52,'【記載例】シフト記号表（勤務時間帯）'!$C$5:$U$36,19,FALSE)) ->  | AX54: =IF($BB$3="計画",SUM(S54:AT54),IF($BB$3="実績",SUM(S54:AW54),"")) -> 36 | AZ54: =IF($BB$3="計画",AX54/4,IF($BB$3="実績",【記載例】地域密着型通所介護!AX54/(【記載例】地域密着型通所介護!$BB$8/7),"")) -> 9
B55: =B52+1 -> 12 | P55: シフト記号
P56: 勤務時間数 | S56: =IF(S55="","",VLOOKUP(S55,'【記載例】シフト記号表（勤務時間帯）'!$C$5:$K$36,9,FALSE)) ->  | T56: =IF(T55="","",VLOOKUP(T55,'【記載例】シフト記号表（勤務時間帯）'!$C$5:$K$36,9,FALSE)) ->  | U56: =IF(U55="","",VLOOKUP(U55,'【記載例】シフト記号表（勤務時間帯）'!$C$5:$K$36,9,FALSE)) ->  | V56: =IF(V55="","",VLOOKUP(V55,'【記載例】シフト記号表（勤務時間帯）'!$C$5:$K$36,9,FALSE)) ->  | W56: =IF(W55="","",VLOOKUP(W55,'【記載例】シフト記号表（勤務時間帯）'!$C$5:$K$36,9,FALSE)) ->  | X56: =IF(X55="","",VLOOKUP(X55,'【記載例】シフト記号表（勤務時間帯）'!$C$5:$K$36,9,FALSE)) ->  | Y56: =IF(Y55="","",VLOOKUP(Y55,'【記載例】シフト記号表（勤務時間帯）'!$C$5:$K$36,9,FALSE)) ->  | Z56: =IF(Z55="","",VLOOKUP(Z55,'【記載例】シフト記号表（勤務時間帯）'!$C$5:$K$36,9,FALSE)) ->  | AA56: =IF(AA55="","",VLOOKUP(AA55,'【記載例】シフト記号表（勤務時間帯）'!$C$5:$K$36,9,FALSE)) ->  | AB56: =IF(AB55="","",VLOOKUP(AB55,'【記載例】シフト記号表（勤務時間帯）'!$C$5:$K$36,9,FALSE)) ->  | AC56: =IF(AC55="","",VLOOKUP(AC55,'【記載例】シフト記号表（勤務時間帯）'!$C$5:$K$36,9,FALSE)) ->  | AD56: =IF(AD55="","",VLOOKUP(AD55,'【記載例】シフト記号表（勤務時間帯）'!$C$5:$K$36,9,FALSE)) ->  | AE56: =IF(AE55="","",VLOOKUP(AE55,'【記載例】シフト記号表（勤務時間帯）'!$C$5:$K$36,9,FALSE)) ->  | AF56: =IF(AF55="","",VLOOKUP(AF55,'【記載例】シフト記号表（勤務時間帯）'!$C$5:$K$36,9,FALSE)) ->  | AG56: =IF(AG55="","",VLOOKUP(AG55,'【記載例】シフト記号表（勤務時間帯）'!$C$5:$K$36,9,FALSE)) ->  | AH56: =IF(AH55="","",VLOOKUP(AH55,'【記載例】シフト記号表（勤務時間帯）'!$C$5:$K$36,9,FALSE)) ->  | AI56: =IF(AI55="","",VLOOKUP(AI55,'【記載例】シフト記号表（勤務時間帯）'!$C$5:$K$36,9,FALSE)) ->  | AJ56: =IF(AJ55="","",VLOOKUP(AJ55,'【記載例】シフト記号表（勤務時間帯）'!$C$5:$K$36,9,FALSE)) ->  | AK56: =IF(AK55="","",VLOOKUP(AK55,'【記載例】シフト記号表（勤務時間帯）'!$C$5:$K$36,9,FALSE)) ->  | AL56: =IF(AL55="","",VLOOKUP(AL55,'【記載例】シフト記号表（勤務時間帯）'!$C$5:$K$36,9,FALSE)) ->  | AM56: =IF(AM55="","",VLOOKUP(AM55,'【記載例】シフト記号表（勤務時間帯）'!$C$5:$K$36,9,FALSE)) ->  | AN56: =IF(AN55="","",VLOOKUP(AN55,'【記載例】シフト記号表（勤務時間帯）'!$C$5:$K$36,9,FALSE)) ->  | AO56: =IF(AO55="","",VLOOKUP(AO55,'【記載例】シフト記号表（勤務時間帯）'!$C$5:$K$36,9,FALSE)) ->  | AP56: =IF(AP55="","",VLOOKUP(AP55,'【記載例】シフト記号表（勤務時間帯）'!$C$5:$K$36,9,FALSE)) ->  | AQ56: =IF(AQ55="","",VLOOKUP(AQ55,'【記載例】シフト記号表（勤務時間帯）'!$C$5:$K$36,9,FALSE)) ->  | AR56: =IF(AR55="","",VLOOKUP(AR55,'【記載例】シフト記号表（勤務時間帯）'!$C$5:$K$36,9,FALSE)) ->  | AS56: =IF(AS55="","",VLOOKUP(AS55,'【記載例】シフト記号表（勤務時間帯）'!$C$5:$K$36,9,FALSE)) ->  | AT56: =IF(AT55="","",VLOOKUP(AT55,'【記載例】シフト記号表（勤務時間帯）'!$C$5:$K$36,9,FALSE)) ->  | AU56: =IF(AU55="","",VLOOKUP(AU55,'【記載例】シフト記号表（勤務時間帯）'!$C$5:$K$36,9,FALSE)) ->  | AV56: =IF(AV55="","",VLOOKUP(AV55,'【記載例】シフト記号表（勤務時間帯）'!$C$5:$K$36,9,FALSE)) ->  | AW56: =IF(AW55="","",VLOOKUP(AW55,'【記載例】シフト記号表（勤務時間帯）'!$C$5:$K$36,9,FALSE)) ->  | AX56: =IF($BB$3="計画",SUM(S56:AT56),IF($BB$3="実績",SUM(S56:AW56),"")) -> 0 | AZ56: =IF($BB$3="計画",AX56/4,IF($BB$3="実績",【記載例】地域密着型通所介護!AX56/(【記載例】地域密着型通所介護!$BB$8/7),"")) -> 0
F57: =C56 -> 0 | P57: サービス提供時間内 の勤務時間数 | S57: =IF(S55="","",VLOOKUP(S55,'【記載例】シフト記号表（勤務時間帯）'!$C$5:$U$36,19,FALSE)) ->  | T57: =IF(T55="","",VLOOKUP(T55,'【記載例】シフト記号表（勤務時間帯）'!$C$5:$U$36,19,FALSE)) ->  | U57: =IF(U55="","",VLOOKUP(U55,'【記載例】シフト記号表（勤務時間帯）'!$C$5:$U$36,19,FALSE)) ->  | V57: =IF(V55="","",VLOOKUP(V55,'【記載例】シフト記号表（勤務時間帯）'!$C$5:$U$36,19,FALSE)) ->  | W57: =IF(W55="","",VLOOKUP(W55,'【記載例】シフト記号表（勤務時間帯）'!$C$5:$U$36,19,FALSE)) ->  | X57: =IF(X55="","",VLOOKUP(X55,'【記載例】シフト記号表（勤務時間帯）'!$C$5:$U$36,19,FALSE)) ->  | Y57: =IF(Y55="","",VLOOKUP(Y55,'【記載例】シフト記号表（勤務時間帯）'!$C$5:$U$36,19,FALSE)) ->  | Z57: =IF(Z55="","",VLOOKUP(Z55,'【記載例】シフト記号表（勤務時間帯）'!$C$5:$U$36,19,FALSE)) ->  | AA57: =IF(AA55="","",VLOOKUP(AA55,'【記載例】シフト記号表（勤務時間帯）'!$C$5:$U$36,19,FALSE)) ->  | AB57: =IF(AB55="","",VLOOKUP(AB55,'【記載例】シフト記号表（勤務時間帯）'!$C$5:$U$36,19,FALSE)) ->  | AC57: =IF(AC55="","",VLOOKUP(AC55,'【記載例】シフト記号表（勤務時間帯）'!$C$5:$U$36,19,FALSE)) ->  | AD57: =IF(AD55="","",VLOOKUP(AD55,'【記載例】シフト記号表（勤務時間帯）'!$C$5:$U$36,19,FALSE)) ->  | AE57: =IF(AE55="","",VLOOKUP(AE55,'【記載例】シフト記号表（勤務時間帯）'!$C$5:$U$36,19,FALSE)) ->  | AF57: =IF(AF55="","",VLOOKUP(AF55,'【記載例】シフト記号表（勤務時間帯）'!$C$5:$U$36,19,FALSE)) ->  | AG57: =IF(AG55="","",VLOOKUP(AG55,'【記載例】シフト記号表（勤務時間帯）'!$C$5:$U$36,19,FALSE)) ->  | AH57: =IF(AH55="","",VLOOKUP(AH55,'【記載例】シフト記号表（勤務時間帯）'!$C$5:$U$36,19,FALSE)) ->  | AI57: =IF(AI55="","",VLOOKUP(AI55,'【記載例】シフト記号表（勤務時間帯）'!$C$5:$U$36,19,FALSE)) ->  | AJ57: =IF(AJ55="","",VLOOKUP(AJ55,'【記載例】シフト記号表（勤務時間帯）'!$C$5:$U$36,19,FALSE)) ->  | AK57: =IF(AK55="","",VLOOKUP(AK55,'【記載例】シフト記号表（勤務時間帯）'!$C$5:$U$36,19,FALSE)) ->  | AL57: =IF(AL55="","",VLOOKUP(AL55,'【記載例】シフト記号表（勤務時間帯）'!$C$5:$U$36,19,FALSE)) ->  | AM57: =IF(AM55="","",VLOOKUP(AM55,'【記載例】シフト記号表（勤務時間帯）'!$C$5:$U$36,19,FALSE)) ->  | AN57: =IF(AN55="","",VLOOKUP(AN55,'【記載例】シフト記号表（勤務時間帯）'!$C$5:$U$36,19,FALSE)) ->  | AO57: =IF(AO55="","",VLOOKUP(AO55,'【記載例】シフト記号表（勤務時間帯）'!$C$5:$U$36,19,FALSE)) ->  | AP57: =IF(AP55="","",VLOOKUP(AP55,'【記載例】シフト記号表（勤務時間帯）'!$C$5:$U$36,19,FALSE)) ->  | AQ57: =IF(AQ55="","",VLOOKUP(AQ55,'【記載例】シフト記号表（勤務時間帯）'!$C$5:$U$36,19,FALSE)) ->  | AR57: =IF(AR55="","",VLOOKUP(AR55,'【記載例】シフト記号表（勤務時間帯）'!$C$5:$U$36,19,FALSE)) ->  | AS57: =IF(AS55="","",VLOOKUP(AS55,'【記載例】シフト記号表（勤務時間帯）'!$C$5:$U$36,19,FALSE)) ->  | AT57: =IF(AT55="","",VLOOKUP(AT55,'【記載例】シフト記号表（勤務時間帯）'!$C$5:$U$36,19,FALSE)) ->  | AU57: =IF(AU55="","",VLOOKUP(AU55,'【記載例】シフト記号表（勤務時間帯）'!$C$5:$U$36,19,FALSE)) ->  | AV57: =IF(AV55="","",VLOOKUP(AV55,'【記載例】シフト記号表（勤務時間帯）'!$C$5:$U$36,19,FALSE)) ->  | AW57: =IF(AW55="","",VLOOKUP(AW55,'【記載例】シフト記号表（勤務時間帯）'!$C$5:$U$36,19,FALSE)) ->  | AX57: =IF($BB$3="計画",SUM(S57:AT57),IF($BB$3="実績",SUM(S57:AW57),"")) -> 0 | AZ57: =IF($BB$3="計画",AX57/4,IF($BB$3="実績",【記載例】地域密着型通所介護!AX57/(【記載例】地域密着型通所介護!$BB$8/7),"")) -> 0
B58: =B55+1 -> 13 | P58: シフト記号
P59: 勤務時間数 | S59: =IF(S58="","",VLOOKUP(S58,'【記載例】シフト記号表（勤務時間帯）'!$C$5:$K$36,9,FALSE)) ->  | T59: =IF(T58="","",VLOOKUP(T58,'【記載例】シフト記号表（勤務時間帯）'!$C$5:$K$36,9,FALSE)) ->  | U59: =IF(U58="","",VLOOKUP(U58,'【記載例】シフト記号表（勤務時間帯）'!$C$5:$K$36,9,FALSE)) ->  | V59: =IF(V58="","",VLOOKUP(V58,'【記載例】シフト記号表（勤務時間帯）'!$C$5:$K$36,9,FALSE)) ->  | W59: =IF(W58="","",VLOOKUP(W58,'【記載例】シフト記号表（勤務時間帯）'!$C$5:$K$36,9,FALSE)) ->  | X59: =IF(X58="","",VLOOKUP(X58,'【記載例】シフト記号表（勤務時間帯）'!$C$5:$K$36,9,FALSE)) ->  | Y59: =IF(Y58="","",VLOOKUP(Y58,'【記載例】シフト記号表（勤務時間帯）'!$C$5:$K$36,9,FALSE)) ->  | Z59: =IF(Z58="","",VLOOKUP(Z58,'【記載例】シフト記号表（勤務時間帯）'!$C$5:$K$36,9,FALSE)) ->  | AA59: =IF(AA58="","",VLOOKUP(AA58,'【記載例】シフト記号表（勤務時間帯）'!$C$5:$K$36,9,FALSE)) ->  | AB59: =IF(AB58="","",VLOOKUP(AB58,'【記載例】シフト記号表（勤務時間帯）'!$C$5:$K$36,9,FALSE)) ->  | AC59: =IF(AC58="","",VLOOKUP(AC58,'【記載例】シフト記号表（勤務時間帯）'!$C$5:$K$36,9,FALSE)) ->  | AD59: =IF(AD58="","",VLOOKUP(AD58,'【記載例】シフト記号表（勤務時間帯）'!$C$5:$K$36,9,FALSE)) ->  | AE59: =IF(AE58="","",VLOOKUP(AE58,'【記載例】シフト記号表（勤務時間帯）'!$C$5:$K$36,9,FALSE)) ->  | AF59: =IF(AF58="","",VLOOKUP(AF58,'【記載例】シフト記号表（勤務時間帯）'!$C$5:$K$36,9,FALSE)) ->  | AG59: =IF(AG58="","",VLOOKUP(AG58,'【記載例】シフト記号表（勤務時間帯）'!$C$5:$K$36,9,FALSE)) ->  | AH59: =IF(AH58="","",VLOOKUP(AH58,'【記載例】シフト記号表（勤務時間帯）'!$C$5:$K$36,9,FALSE)) ->  | AI59: =IF(AI58="","",VLOOKUP(AI58,'【記載例】シフト記号表（勤務時間帯）'!$C$5:$K$36,9,FALSE)) ->  | AJ59: =IF(AJ58="","",VLOOKUP(AJ58,'【記載例】シフト記号表（勤務時間帯）'!$C$5:$K$36,9,FALSE)) ->  | AK59: =IF(AK58="","",VLOOKUP(AK58,'【記載例】シフト記号表（勤務時間帯）'!$C$5:$K$36,9,FALSE)) ->  | AL59: =IF(AL58="","",VLOOKUP(AL58,'【記載例】シフト記号表（勤務時間帯）'!$C$5:$K$36,9,FALSE)) ->  | AM59: =IF(AM58="","",VLOOKUP(AM58,'【記載例】シフト記号表（勤務時間帯）'!$C$5:$K$36,9,FALSE)) ->  | AN59: =IF(AN58="","",VLOOKUP(AN58,'【記載例】シフト記号表（勤務時間帯）'!$C$5:$K$36,9,FALSE)) ->  | AO59: =IF(AO58="","",VLOOKUP(AO58,'【記載例】シフト記号表（勤務時間帯）'!$C$5:$K$36,9,FALSE)) ->  | AP59: =IF(AP58="","",VLOOKUP(AP58,'【記載例】シフト記号表（勤務時間帯）'!$C$5:$K$36,9,FALSE)) ->  | AQ59: =IF(AQ58="","",VLOOKUP(AQ58,'【記載例】シフト記号表（勤務時間帯）'!$C$5:$K$36,9,FALSE)) ->  | AR59: =IF(AR58="","",VLOOKUP(AR58,'【記載例】シフト記号表（勤務時間帯）'!$C$5:$K$36,9,FALSE)) ->  | AS59: =IF(AS58="","",VLOOKUP(AS58,'【記載例】シフト記号表（勤務時間帯）'!$C$5:$K$36,9,FALSE)) ->  | AT59: =IF(AT58="","",VLOOKUP(AT58,'【記載例】シフト記号表（勤務時間帯）'!$C$5:$K$36,9,FALSE)) ->  | AU59: =IF(AU58="","",VLOOKUP(AU58,'【記載例】シフト記号表（勤務時間帯）'!$C$5:$K$36,9,FALSE)) ->  | AV59: =IF(AV58="","",VLOOKUP(AV58,'【記載例】シフト記号表（勤務時間帯）'!$C$5:$K$36,9,FALSE)) ->  | AW59: =IF(AW58="","",VLOOKUP(AW58,'【記載例】シフト記号表（勤務時間帯）'!$C$5:$K$36,9,FALSE)) ->  | AX59: =IF($BB$3="計画",SUM(S59:AT59),IF($BB$3="実績",SUM(S59:AW59),"")) -> 0 | AZ59: =IF($BB$3="計画",AX59/4,IF($BB$3="実績",【記載例】地域密着型通所介護!AX59/(【記載例】地域密着型通所介護!$BB$8/7),"")) -> 0
F60: =C59 -> 0 | P60: サービス提供時間内 の勤務時間数 | S60: =IF(S58="","",VLOOKUP(S58,'【記載例】シフト記号表（勤務時間帯）'!$C$5:$U$36,19,FALSE)) ->  | T60: =IF(T58="","",VLOOKUP(T58,'【記載例】シフト記号表（勤務時間帯）'!$C$5:$U$36,19,FALSE)) ->  | U60: =IF(U58="","",VLOOKUP(U58,'【記載例】シフト記号表（勤務時間帯）'!$C$5:$U$36,19,FALSE)) ->  | V60: =IF(V58="","",VLOOKUP(V58,'【記載例】シフト記号表（勤務時間帯）'!$C$5:$U$36,19,FALSE)) ->  | W60: =IF(W58="","",VLOOKUP(W58,'【記載例】シフト記号表（勤務時間帯）'!$C$5:$U$36,19,FALSE)) ->  | X60: =IF(X58="","",VLOOKUP(X58,'【記載例】シフト記号表（勤務時間帯）'!$C$5:$U$36,19,FALSE)) ->  | Y60: =IF(Y58="","",VLOOKUP(Y58,'【記載例】シフト記号表（勤務時間帯）'!$C$5:$U$36,19,FALSE)) ->  | Z60: =IF(Z58="","",VLOOKUP(Z58,'【記載例】シフト記号表（勤務時間帯）'!$C$5:$U$36,19,FALSE)) ->  | AA60: =IF(AA58="","",VLOOKUP(AA58,'【記載例】シフト記号表（勤務時間帯）'!$C$5:$U$36,19,FALSE)) ->  | AB60: =IF(AB58="","",VLOOKUP(AB58,'【記載例】シフト記号表（勤務時間帯）'!$C$5:$U$36,19,FALSE)) ->  | AC60: =IF(AC58="","",VLOOKUP(AC58,'【記載例】シフト記号表（勤務時間帯）'!$C$5:$U$36,19,FALSE)) ->  | AD60: =IF(AD58="","",VLOOKUP(AD58,'【記載例】シフト記号表（勤務時間帯）'!$C$5:$U$36,19,FALSE)) ->  | AE60: =IF(AE58="","",VLOOKUP(AE58,'【記載例】シフト記号表（勤務時間帯）'!$C$5:$U$36,19,FALSE)) ->  | AF60: =IF(AF58="","",VLOOKUP(AF58,'【記載例】シフト記号表（勤務時間帯）'!$C$5:$U$36,19,FALSE)) ->  | AG60: =IF(AG58="","",VLOOKUP(AG58,'【記載例】シフト記号表（勤務時間帯）'!$C$5:$U$36,19,FALSE)) ->  | AH60: =IF(AH58="","",VLOOKUP(AH58,'【記載例】シフト記号表（勤務時間帯）'!$C$5:$U$36,19,FALSE)) ->  | AI60: =IF(AI58="","",VLOOKUP(AI58,'【記載例】シフト記号表（勤務時間帯）'!$C$5:$U$36,19,FALSE)) ->  | AJ60: =IF(AJ58="","",VLOOKUP(AJ58,'【記載例】シフト記号表（勤務時間帯）'!$C$5:$U$36,19,FALSE)) ->  | AK60: =IF(AK58="","",VLOOKUP(AK58,'【記載例】シフト記号表（勤務時間帯）'!$C$5:$U$36,19,FALSE)) ->  | AL60: =IF(AL58="","",VLOOKUP(AL58,'【記載例】シフト記号表（勤務時間帯）'!$C$5:$U$36,19,FALSE)) ->  | AM60: =IF(AM58="","",VLOOKUP(AM58,'【記載例】シフト記号表（勤務時間帯）'!$C$5:$U$36,19,FALSE)) ->  | AN60: =IF(AN58="","",VLOOKUP(AN58,'【記載例】シフト記号表（勤務時間帯）'!$C$5:$U$36,19,FALSE)) ->  | AO60: =IF(AO58="","",VLOOKUP(AO58,'【記載例】シフト記号表（勤務時間帯）'!$C$5:$U$36,19,FALSE)) ->  | AP60: =IF(AP58="","",VLOOKUP(AP58,'【記載例】シフト記号表（勤務時間帯）'!$C$5:$U$36,19,FALSE)) ->  | AQ60: =IF(AQ58="","",VLOOKUP(AQ58,'【記載例】シフト記号表（勤務時間帯）'!$C$5:$U$36,19,FALSE)) ->  | AR60: =IF(AR58="","",VLOOKUP(AR58,'【記載例】シフト記号表（勤務時間帯）'!$C$5:$U$36,19,FALSE)) ->  | AS60: =IF(AS58="","",VLOOKUP(AS58,'【記載例】シフト記号表（勤務時間帯）'!$C$5:$U$36,19,FALSE)) ->  | AT60: =IF(AT58="","",VLOOKUP(AT58,'【記載例】シフト記号表（勤務時間帯）'!$C$5:$U$36,19,FALSE)) ->  | AU60: =IF(AU58="","",VLOOKUP(AU58,'【記載例】シフト記号表（勤務時間帯）'!$C$5:$U$36,19,FALSE)) ->  | AV60: =IF(AV58="","",VLOOKUP(AV58,'【記載例】シフト記号表（勤務時間帯）'!$C$5:$U$36,19,FALSE)) ->  | AW60: =IF(AW58="","",VLOOKUP(AW58,'【記載例】シフト記号表（勤務時間帯）'!$C$5:$U$36,19,FALSE)) ->  | AX60: =IF($BB$3="計画",SUM(S60:AT60),IF($BB$3="実績",SUM(S60:AW60),"")) -> 0 | AZ60: =IF($BB$3="計画",AX60/4,IF($BB$3="実績",【記載例】地域密着型通所介護!AX60/(【記載例】地域密着型通所介護!$BB$8/7),"")) -> 0
H62: (15) サービス提供時間内の勤務延時間数（生活相談員） | S62: =IF(SUMIF($F$22:$F$60, "生活相談員", S22:S60)=0,"",SUMIF($F$22:$F$60,"生活相談員",S22:S60)) -> 7 | T62: 7 | U62: 7 | V62: 7 | W62: 7 | X62: 7 | Y62: 7 | Z62: 7 | AA62: 7 | AB62: 7 | AC62: 7 | AD62: 7 | AE62: 7 | AF62: 7 | AG62: 7 | AH62: 7 | AI62: 7 | AJ62: 7 | AK62: 7 | AL62: 7 | AM62: 7 | AN62: 7 | AO62: 7 | AP62: 7 | AQ62: 7 | AR62: 7 | AS62: 7 | AT62: 7 | AX62: =IF(SUMIF($C$22:$C$60, "生活相談員", AX22:AY60)=0,"",SUMIF($C$22:$C$60,"生活相談員",AX22:AY60)) -> 224 | AZ62: =IF(AX62="","",IF($BB$3="計画",AX62/4,IF($BB$3="実績",AX62/(【記載例】地域密着型通所介護!$BB$8/7),""))) -> 56
H63: (16) サービス提供時間内の勤務延時間数（看護職員） | S63: =IF(SUMIF($F$22:$F$60, "看護職員", S22:S60)=0,"",SUMIF($F$22:$F$60, "看護職員", S22:S60)) -> 4 | T63: =IF(SUMIF($F$22:$F$60, "看護職員", T22:T60)=0,"",SUMIF($F$22:$F$60, "看護職員", T22:T60)) -> 4 | U63: 4 | V63: 4 | W63: 4 | X63: 4 | Y63: 4 | Z63: 4 | AA63: 4 | AB63: 4 | AC63: 4 | AD63: 4 | AE63: 4 | AF63: 4 | AG63: 4 | AH63: 4 | AI63: 4 | AJ63: 4 | AK63: 4 | AL63: 4 | AM63: 4 | AN63: 4 | AO63: 4 | AP63: 4 | AQ63: 4 | AR63: 4 | AS63: 4 | AT63: 4 | AX63: =IF(SUMIF($C$22:$C$60, "看護職員", AX22:AX60)=0,"",SUMIF($C$22:$C$60, "看護職員", AX22:AX60)) -> 112 | AZ63: =IF(AX63="","",IF($BB$3="計画",AX63/4,IF($BB$3="実績",AX63/(【記載例】地域密着型通所介護!$BB$8/7),""))) -> 28
H64: (17) サービス提供時間内の勤務延時間数（介護職員） | S64: =IF(SUMIF($F$22:$F$60, "介護職員", S22:S60)=0,"",SUMIF($F$22:$F$60, "介護職員", S22:S60)) -> 14 | T64: 14 | U64: 14 | V64: 14 | W64: 14 | X64: 14 | Y64: 14 | Z64: 14 | AA64: 14 | AB64: 14 | AC64: 14 | AD64: 14 | AE64: 14 | AF64: 14 | AG64: 14 | AH64: 14 | AI64: 14 | AJ64: 14 | AK64: 14 | AL64: 14 | AM64: 14 | AN64: 14 | AO64: 14 | AP64: 14 | AQ64: 14 | AR64: 14 | AS64: 14 | AT64: 14 | AX64: =IF(SUMIF($C$22:$C$60, "介護職員", AX22:AX60)=0,"",SUMIF($C$22:$C$60, "介護職員", AX22:AX60)) -> 448 | AZ64: =IF(AX64="","",IF($BB$3="計画",AX64/4,IF($BB$3="実績",AX64/(【記載例】地域密着型通所介護!$BB$8/7),""))) -> 112
H65: (18) 利用者数 | S65: 18 | T65: 18 | U65: 18 | V65: 18 | W65: 18 | X65: 18 | Y65: 18 | Z65: 18 | AA65: 18 | AB65: 18 | AC65: 18 | AD65: 18 | AE65: 18 | AF65: 18 | AG65: 18 | AH65: 18 | AI65: 18 | AJ65: 18 | AK65: 18 | AL65: 18 | AM65: 18 | AN65: 18 | AO65: 18 | AP65: 18 | AQ65: 18 | AR65: 18 | AS65: 18 | AT65: 18
H66: (19) サービス提供時間（平均提供時間） | S66: 7 | T66: 7 | U66: 7 | V66: 7 | W66: 7 | X66: 7 | Y66: 7 | Z66: 7 | AA66: 7 | AB66: 7 | AC66: 7 | AD66: 7 | AE66: 7 | AF66: 7 | AG66: 7 | AH66: 7 | AI66: 7 | AJ66: 7 | AK66: 7 | AL66: 7 | AM66: 7 | AN66: 7 | AO66: 7 | AP66: 7 | AQ66: 7 | AR66: 7 | AS66: 7 | AT66: 7
H67: =IF(AU8>10,"(20) 確保すべき介護職員の勤務時間数","(20)確保すべき介護職員・看護職員の勤務時間数") -> (20) 確保すべき介護職員の勤務時間数 | S67: =IF(S66<>"",IF(S65>15,((S65-15)/5+1)*S66,S66),"") -> 11.2 | T67: =IF(T66<>"",IF(T65>15,((T65-15)/5+1)*T66,T66),"") -> 11.2 | U67: 11.2 | V67: 11.2 | W67: 11.2 | X67: 11.2 | Y67: 11.2 | Z67: 11.2 | AA67: 11.2 | AB67: 11.2 | AC67: 11.2 | AD67: 11.2 | AE67: 11.2 | AF67: 11.2 | AG67: 11.2 | AH67: 11.2 | AI67: 11.2 | AJ67: 11.2 | AK67: 11.2 | AL67: 11.2 | AM67: 11.2 | AN67: 11.2 | AO67: 11.2 | AP67: 11.2 | AQ67: 11.2 | AR67: 11.2 | AS67: 11.2 | AT67: 11.2
H68: =IF(AU8>10,"(21) 確保すべき介護職員の勤務時間数の判定","(21)確保すべき介護職員・看護職員の勤務時間数の判定") -> (21) 確保すべき介護職員の勤務時間数の判定 | S68: =IF($AU$8>10,IF(S67="","",IF(S64>=S67,"○","×")),IF(S67="","",IF((S64+S63)>=S67,"○","×"))) -> ○ | T68: =IF($AU$8>10,IF(T67="","",IF(T64>=T67,"○","×")),IF(T67="","",IF((T64+T63)>=T67,"○","×"))) -> ○ | U68: ○ | V68: ○ | W68: ○ | X68: ○ | Y68: ○ | Z68: ○ | AA68: ○ | AB68: ○ | AC68: ○ | AD68: ○ | AE68: ○ | AF68: ○ | AG68: ○ | AH68: ○ | AI68: ○ | AJ68: ○ | AK68: ○ | AL68: ○ | AM68: ○ | AN68: ○ | AO68: ○ | AP68: ○ | AQ68: ○ | AR68: ○ | AS68: ○ | AT68: ○
B69: (22) 1日の職種別人員内訳 | L69: 生活相談員 | S69: =IF($L69="","",IF(COUNTIFS($F$22:$F$60,$L69,S$22:S$60,">0")=0,"",COUNTIFS($F$22:$F$60,$L69,S$22:S$60,">0"))) -> 1 | T69: =IF($L69="","",IF(COUNTIFS($F$22:$F$60,$L69,T$22:T$60,">0")=0,"",COUNTIFS($F$22:$F$60,$L69,T$22:T$60,">0"))) -> 1 | U69: 1 | V69: 1 | W69: 1 | X69: 1 | Y69: 1 | Z69: 1 | AA69: 1 | AB69: 1 | AC69: 1 | AD69: 1 | AE69: 1 | AF69: 1 | AG69: 1 | AH69: 1 | AI69: 1 | AJ69: 1 | AK69: 1 | AL69: 1 | AM69: 1 | AN69: 1 | AO69: 1 | AP69: 1 | AQ69: 1 | AR69: 1 | AS69: 1 | AT69: 1
L70: 看護職員 | S70: =IF($L70="","",IF(COUNTIFS($F$22:$F$60,$L70,S$22:S$60,">0")=0,"",COUNTIFS($F$22:$F$60,$L70,S$22:S$60,">0"))) -> 1 | T70: =IF($L70="","",IF(COUNTIFS($F$22:$F$60,$L70,T$22:T$60,">0")=0,"",COUNTIFS($F$22:$F$60,$L70,T$22:T$60,">0"))) -> 1 | U70: 1 | V70: 1 | W70: 1 | X70: 1 | Y70: 1 | Z70: 1 | AA70: 1 | AB70: 1 | AC70: 1 | AD70: 1 | AE70: 1 | AF70: 1 | AG70: 1 | AH70: 1 | AI70: 1 | AJ70: 1 | AK70: 1 | AL70: 1 | AM70: 1 | AN70: 1 | AO70: 1 | AP70: 1 | AQ70: 1 | AR70: 1 | AS70: 1 | AT70: 1
L71: 介護職員 | S71: 2 | T71: 2 | U71: 2 | V71: 2 | W71: 2 | X71: =IF($L71="","",IF(COUNTIFS($F$22:$F$60,$L71,X$22:X$60,">0")=0,"",COUNTIFS($F$22:$F$60,$L71,X$22:X$60,">0"))) -> 2 | Y71: 2 | Z71: 2 | AA71: 2 | AB71: 2 | AC71: 2 | AD71: 2 | AE71: 2 | AF71: 2 | AG71: 2 | AH71: 2 | AI71: 2 | AJ71: 2 | AK71: 2 | AL71: 2 | AM71: 2 | AN71: 2 | AO71: 2 | AP71: 2 | AQ71: 2 | AR71: 2 | AS71: 2 | AT71: 2
L72: 機能訓練指導員 | S72: 1 | T72: 1 | U72: 1 | V72: 1 | W72: 1 | X72: 1 | Y72: 1 | Z72: 1 | AA72: 1 | AB72: 1 | AC72: 1 | AD72: 1 | AE72: 1 | AF72: 1 | AG72: 1 | AH72: 1 | AI72: 1 | AJ72: 1 | AK72: 1 | AL72: 1 | AM72: 1 | AN72: 1 | AO72: 1 | AP72: 1 | AQ72: 1 | AR72: 1 | AS72: 1 | AT72: 1

Sheet 【記載例】シフト記号表（勤務時間帯）
B1: ≪要 提出≫
B2: ■シフト記号表（勤務時間帯） | E2: ※24時間表記 | I2: 休憩時間1時間は「1:00」、休憩時間45分は「00:45」と入力してください。
E3: 勤務時間 | M3: サービス提供時間 | Q3: サービス提供時間内の勤務時間
B4: （記号の意味） | C4: 記号 | E4: 始業時間 | G4: 終業時間 | I4: うち、休憩時間 | K4: 勤務時間 | M4: 開始 | O4: 終了 | Q4: 開始 | S4: 終了 | U4: 勤務時間
B5: 休：休暇 | C5: 休 | D5: ： | E5: - | F5: ～ | G5: - | H5: （ | I5: - | J5: ） | K5: - | M5: - | N5: ～ | O5: - | Q5: - | R5: ～ | S5: - | U5: -
B6: 出：出張 | C6: 出 | D6: ： | E6: - | F6: ～ | G6: - | H6: （ | I6: - | J6: ） | K6: - | M6: - | N6: ～ | O6: - | Q6: - | R6: ～ | S6: - | U6: -
B7: 研：研修 | C7: 研 | D7: ： | E7: - | F7: ～ | G7: - | H7: （ | I7: - | J7: ） | K7: - | M7: - | N7: ～ | O7: - | Q7: - | R7: ～ | S7: - | U7: -
C8: a | D8: ： | E8: 09:00:00 | F8: ～ | G8: 18:00:00 | H8: （ | I8: 01:00:00 | J8: ） | K8: =(G8-E8-I8)*24 -> 8 | M8: 09:30:00 | N8: ～ | O8: 16:30:00 | Q8: =IF(E8<M8,M8,E8) -> 09:30:00 | R8: ～ | S8: =IF(G8>O8,O8,G8) -> 16:30:00 | U8: =(S8-Q8)*24 -> 7
C9: b | D9: ： | F9: ～ | H9: （ | I9: 00:00:00 | J9: ） | K9: =(G9-E9-I9)*24 -> 0 | M9: 09:30:00 | N9: ～ | O9: 16:30:00 | Q9: =IF(E9<M9,M9,E9) -> 09:30:00 | R9: ～ | S9: =IF(G9>O9,O9,G9) -> 00:00:00 | U9: =(S9-Q9)*24 -> -9.5
C10: c | D10: ： | F10: ～ | H10: （ | I10: 00:00:00 | J10: ） | K10: =(G10-E10-I10)*24 -> 0 | M10: 09:30:00 | N10: ～ | O10: 16:30:00 | Q10: 09:30:00 | R10: ～ | S10: 00:00:00 | U10: -9.5
C11: d | D11: ： | F11: ～ | H11: （ | I11: 00:00:00 | J11: ） | K11: 0 | M11: 09:30:00 | N11: ～ | O11: 16:30:00 | Q11: 09:30:00 | R11: ～ | S11: 00:00:00 | U11: -9.5
C12: e | D12: ： | F12: ～ | H12: （ | I12: 00:00:00 | J12: ） | K12: 0 | M12: 09:30:00 | N12: ～ | O12: 16:30:00 | Q12: 09:30:00 | R12: ～ | S12: 00:00:00 | U12: -9.5
C13: f | D13: ： | F13: ～ | H13: （ | I13: 00:00:00 | J13: ） | K13: 0 | M13: 09:30:00 | N13: ～ | O13: 16:30:00 | Q13: 09:30:00 | R13: ～ | S13: 00:00:00 | U13: -9.5
C14: g | D14: ： | F14: ～ | H14: （ | I14: 00:00:00 | J14: ） | K14: 0 | M14: 09:30:00 | N14: ～ | O14: 16:30:00 | Q14: 09:30:00 | R14: ～ | S14: =IF(G14>O14,O14,G14) -> 00:00:00 | U14: -9.5
C15: h | D15: ： | F15: ～ | H15: （ | I15: 00:00:00 | J15: ） | K15: 0 | M15: 09:30:00 | N15: ～ | O15: 16:30:00 | Q15: 09:30:00 | R15: ～ | S15: 00:00:00 | U15: -9.5
C16: i | D16: ： | F16: ～ | H16: （ | I16: 00:00:00 | J16: ） | K16: 0 | M16: 09:30:00 | N16: ～ | O16: 16:30:00 | Q16: 09:30:00 | R16: ～ | S16: 00:00:00 | U16: -9.5
C17: j | D17: ： | F17: ～ | H17: （ | I17: 00:00:00 | J17: ） | K17: 0 | M17: 09:30:00 | N17: ～ | O17: 16:30:00 | Q17: 09:30:00 | R17: ～ | S17: 00:00:00 | U17: -9.5
C18: k | D18: ： | F18: ～ | H18: （ | I18: 00:00:00 | J18: ） | K18: 0 | M18: 09:30:00 | N18: ～ | O18: 16:30:00 | Q18: 09:30:00 | R18: ～ | S18: 00:00:00 | U18: -9.5
C19: l | D19: ： | F19: ～ | H19: （ | I19: 00:00:00 | J19: ） | K19: 0 | M19: 09:30:00 | N19: ～ | O19: 16:30:00 | Q19: 09:30:00 | R19: ～ | S19: 00:00:00 | U19: -9.5
C20: m | D20: ： | F20: ～ | H20: （ | I20: 00:00:00 | J20: ） | K20: 0 | M20: 09:30:00 | N20: ～ | O20: 16:30:00 | Q20: 09:30:00 | R20: ～ | S20: 00:00:00 | U20: -9.5
C21: n | D21: ： | F21: ～ | H21: （ | I21: 00:00:00 | J21: ） | K21: 0 | M21: 09:30:00 | N21: ～ | O21: 16:30:00 | Q21: 09:30:00 | R21: ～ | S21: 00:00:00 | U21: -9.5
C22: o | D22: ： | F22: ～ | H22: （ | J22: ） | K22: 1 | N22: ～ | R22: ～ | U22: 1
C23: p | D23: ： | F23: ～ | H23: （ | J23: ） | K23: 2 | N23: ～ | R23: ～ | U23: 2
C24: q | D24: ： | F24: ～ | H24: （ | J24: ） | K24: 3 | N24: ～ | R24: ～ | U24: 3
C25: r | D25: ： | F25: ～ | H25: （ | J25: ） | K25: 4 | N25: ～ | R25: ～ | U25: 4
C26: s | D26: ： | F26: ～ | H26: （ | J26: ） | K26: 5 | N26: ～ | R26: ～ | U26: 5
C27: t | D27: ： | F27: ～ | H27: （ | J27: ） | K27: 6 | N27: ～ | R27: ～ | U27: 6
C28: u | D28: ： | F28: ～ | H28: （ | J28: ） | K28: 7 | N28: ～ | R28: ～ | U28: 7
C29: v | D29: ： | F29: ～ | H29: （ | J29: ） | K29: 8 | N29: ～ | R29: ～ | U29: 7
C30: w | D30: ： | F30: ～ | H30: （ | J30: ） | K30: 4 | N30: ～ | R30: ～ | U30: 3
C31: x | D31: ： | F31: ～ | H31: （ | J31: ） | N31: ～ | R31: ～
C32: y | D32: ： | F32: ～ | H32: （ | J32: ） | N32: ～ | R32: ～
C33: z | D33: ： | F33: ～ | H33: （ | J33: ） | K33: =(G33-E33-I33)*24 -> 0 | N33: ～ | Q33: =IF(E33<M33,M33,E33) -> 00:00:00 | R33: ～ | S33: =IF(G33>O33,O33,G33) -> 00:00:00 | U33: =(S33-Q33)*24 -> 0
C34: 早退(1) | D34: ： | F34: ～ | H34: （ | J34: ） | K34: 0 | N34: ～ | Q34: 00:00:00 | R34: ～ | S34: 00:00:00 | U34: 0 | W34: 実績で早退者がいた場合に使用
C35: 早退(2) | D35: ： | F35: ～ | H35: （ | J35: ） | K35: 0 | N35: ～ | Q35: 00:00:00 | R35: ～ | S35: 00:00:00 | U35: 0 | W35: 実績で早退者がいた場合に使用
C36: az | D36: ： | F36: ～ | H36: （ | J36: ） | K36: 0 | N36: ～ | Q36: 00:00:00 | R36: ～ | S36: 00:00:00 | U36: 0

Sheet 地域密着型通所介護
C1: （参考様式） | H1: 従業者の勤務の体制及び勤務形態一覧表 | AO1: サービス種別（ | AP1: 地域密着型通所介護 | BF1: ）
Y2: 令和 | Z2: 2 | AB2: ( | AC2: =IF(Z2=0,"",YEAR(DATE(2018+Z2,1,1))) -> 2020 | AE2: ) | AF2: 年 | AG2: 7 | AI2: 月 | AO2: 事業所名（ | AP2: ○○デイサービス | BF2: ）
BA3: (1) | BB3: 計画
B6: (2) 事業所の営業日 | AH6: (3) 事業所における常勤の従業者が勤務すべき時間数 | AT6: 8 | AV6: 時間/日 | AX6: 40 | AZ6: 時間/週 | BB6: 160 | BD6: 時間/月
B7: 月 | C7: 火 | D7: 水 | E7: 木 | G7: 金 | H7: 土 | I7: 日 | J7: 祝 | L7: サービス提供時間（送迎時間を除く）
B8: ○ | C8: ○ | D8: ○ | E8: ○ | G8: ○ | H8: ○ | I8: ○ | J8: ○ | K8: ⇒ | O8: ～ | S8: （計 | T8: =(P8-L8)*24 -> 0 | V8: 時間） | AR8: (4) 利用定員 | AW8: 人 | AY8: 当月の日数 | BB8: =DAY(EOMONTH(DATE(AC2,AG2,1),0)) -> 31 | BD8: 日
B10: － | C10: － | D10: － | E10: － | G10: － | H10: － | I10: － | J10: － | K10: ⇒ | O10: ～ | S10: （計 | T10: =(P10-L10)*24 -> 0 | V10: 時間） | AZ10: (5) 事業所全体のサービス提供単位数 | BB10: 1 | BE10: 単位
B12: 備考（休業日等） | BB12: 1 | BE12: 単位目
AT14: (6) 当該サービス提供単位のサービス提供時間 | AX14: ～ | BB14: （計 | BC14: =(AY14-AU14)*24 -> 0 | BE14: 時間）
B17: No | C17: (7) 職種 | G17: (8) 勤務 形態 | H17: (9) 資格 | L17: (10) 氏 名 | S17: (11) 勤 務 時 間 数 | AX17: =IF(BB3="計画","(12) 1～4週目の勤務時間数合計","(12) 1か月の勤務時間数 合計") -> (12) 1～4週目の勤務時間数合計 | AZ17: (13) 週平均 勤務時間 数 | BB17: (14) 兼務状況 （兼務先及び兼務する 職務の内容）
S18: 1週目 | Z18: 2週目 | AG18: 3週目 | AN18: 4週目 | AU18: 5週目
S19: 1 | T19: 2 | U19: 3 | V19: 4 | W19: 5 | X19: 6 | Y19: 7 | Z19: 8 | AA19: 9 | AB19: 10 | AC19: 11 | AD19: 12 | AE19: 13 | AF19: 14 | AG19: 15 | AH19: 16 | AI19: 17 | AJ19: 18 | AK19: 19 | AL19: 20 | AM19: 21 | AN19: 22 | AO19: 23 | AP19: 24 | AQ19: 25 | AR19: 26 | AS19: 27 | AT19: 28 | AU19: =IF($BB$3="実績",IF(DAY(DATE($AC$2,$AG$2,29))=29,29,""),"") ->  | AV19: =IF($BB$3="実績",IF(DAY(DATE($AC$2,$AG$2,30))=30,30,""),"") ->  | AW19: =IF($BB$3="実績",IF(DAY(DATE($AC$2,$AG$2,31))=31,31,""),"") -> 
S20: =WEEKDAY(DATE($AC$2,$AG$2,1)) -> 4 | T20: =WEEKDAY(DATE($AC$2,$AG$2,2)) -> 5 | U20: =WEEKDAY(DATE($AC$2,$AG$2,3)) -> 6 | V20: =WEEKDAY(DATE($AC$2,$AG$2,4)) -> 7 | W20: =WEEKDAY(DATE($AC$2,$AG$2,5)) -> 1 | X20: =WEEKDAY(DATE($AC$2,$AG$2,6)) -> 2 | Y20: =WEEKDAY(DATE($AC$2,$AG$2,7)) -> 3 | Z20: =WEEKDAY(DATE($AC$2,$AG$2,8)) -> 4 | AA20: =WEEKDAY(DATE($AC$2,$AG$2,9)) -> 5 | AB20: =WEEKDAY(DATE($AC$2,$AG$2,10)) -> 6 | AC20: =WEEKDAY(DATE($AC$2,$AG$2,11)) -> 7 | AD20: =WEEKDAY(DATE($AC$2,$AG$2,12)) -> 1 | AE20: =WEEKDAY(DATE($AC$2,$AG$2,13)) -> 2 | AF20: =WEEKDAY(DATE($AC$2,$AG$2,14)) -> 3 | AG20: =WEEKDAY(DATE($AC$2,$AG$2,15)) -> 4 | AH20: =WEEKDAY(DATE($AC$2,$AG$2,16)) -> 5 | AI20: =WEEKDAY(DATE($AC$2,$AG$2,17)) -> 6 | AJ20: =WEEKDAY(DATE($AC$2,$AG$2,18)) -> 7 | AK20: =WEEKDAY(DATE($AC$2,$AG$2,19)) -> 1 | AL20: =WEEKDAY(DATE($AC$2,$AG$2,20)) -> 2 | AM20: =WEEKDAY(DATE($AC$2,$AG$2,21)) -> 3 | AN20: =WEEKDAY(DATE($AC$2,$AG$2,22)) -> 4 | AO20: =WEEKDAY(DATE($AC$2,$AG$2,23)) -> 5 | AP20: =WEEKDAY(DATE($AC$2,$AG$2,24)) -> 6 | AQ20: =WEEKDAY(DATE($AC$2,$AG$2,25)) -> 7 | AR20: =WEEKDAY(DATE($AC$2,$AG$2,26)) -> 1 | AS20: =WEEKDAY(DATE($AC$2,$AG$2,27)) -> 2 | AT20: =WEEKDAY(DATE($AC$2,$AG$2,28)) -> 3 | AU20: =IF(AU19=29,WEEKDAY(DATE($AC$2,$AG$2,29)),0) -> 0 | AV20: =IF(AV19=30,WEEKDAY(DATE($AC$2,$AG$2,30)),0) -> 0 | AW20: =IF(AW19=31,WEEKDAY(DATE($AC$2,$AG$2,31)),0) -> 0
S21: =IF(S20=1,"日",IF(S20=2,"月",IF(S20=3,"火",IF(S20=4,"水",IF(S20=5,"木",IF(S20=6,"金","土")))))) -> 水 | T21: =IF(T20=1,"日",IF(T20=2,"月",IF(T20=3,"火",IF(T20=4,"水",IF(T20=5,"木",IF(T20=6,"金","土")))))) -> 木 | U21: 金 | V21: 土 | W21: 日 | X21: 月 | Y21: 火 | Z21: =IF(Z20=1,"日",IF(Z20=2,"月",IF(Z20=3,"火",IF(Z20=4,"水",IF(Z20=5,"木",IF(Z20=6,"金","土")))))) -> 水 | AA21: 木 | AB21: 金 | AC21: 土 | AD21: 日 | AE21: 月 | AF21: 火 | AG21: =IF(AG20=1,"日",IF(AG20=2,"月",IF(AG20=3,"火",IF(AG20=4,"水",IF(AG20=5,"木",IF(AG20=6,"金","土")))))) -> 水 | AH21: 木 | AI21: 金 | AJ21: 土 | AK21: 日 | AL21: 月 | AM21: 火 | AN21: =IF(AN20=1,"日",IF(AN20=2,"月",IF(AN20=3,"火",IF(AN20=4,"水",IF(AN20=5,"木",IF(AN20=6,"金","土")))))) -> 水 | AO21: 木 | AP21: 金 | AQ21: 土 | AR21: 日 | AS21: 月 | AT21: 火 | AU21: =IF(AU20=1,"日",IF(AU20=2,"月",IF(AU20=3,"火",IF(AU20=4,"水",IF(AU20=5,"木",IF(AU20=6,"金",IF(AU20=0,"","土"))))))) ->  | AV21: =IF(AV20=1,"日",IF(AV20=2,"月",IF(AV20=3,"火",IF(AV20=4,"水",IF(AV20=5,"木",IF(AV20=6,"金",IF(AV20=0,"","土"))))))) ->  | AW21: =IF(AW20=1,"日",IF(AW20=2,"月",IF(AW20=3,"火",IF(AW20=4,"水",IF(AW20=5,"木",IF(AW20=6,"金",IF(AW20=0,"","土"))))))) -> 
B22: 1 | P22: シフト記号
P23: 勤務時間数 | S23: =IF(S22="","",VLOOKUP(S22,'シフト記号表（勤務時間帯)'!$C$5:$K$36,9,FALSE)) ->  | T23: =IF(T22="","",VLOOKUP(T22,'シフト記号表（勤務時間帯)'!$C$5:$K$36,9,FALSE)) ->  | U23: =IF(U22="","",VLOOKUP(U22,'シフト記号表（勤務時間帯)'!$C$5:$K$36,9,FALSE)) ->  | V23: =IF(V22="","",VLOOKUP(V22,'シフト記号表（勤務時間帯)'!$C$5:$K$36,9,FALSE)) ->  | W23: =IF(W22="","",VLOOKUP(W22,'シフト記号表（勤務時間帯)'!$C$5:$K$36,9,FALSE)) ->  | X23: =IF(X22="","",VLOOKUP(X22,'シフト記号表（勤務時間帯)'!$C$5:$K$36,9,FALSE)) ->  | Y23: =IF(Y22="","",VLOOKUP(Y22,'シフト記号表（勤務時間帯)'!$C$5:$K$36,9,FALSE)) ->  | Z23: =IF(Z22="","",VLOOKUP(Z22,'シフト記号表（勤務時間帯)'!$C$5:$K$36,9,FALSE)) ->  | AA23: =IF(AA22="","",VLOOKUP(AA22,'シフト記号表（勤務時間帯)'!$C$5:$K$36,9,FALSE)) ->  | AB23: =IF(AB22="","",VLOOKUP(AB22,'シフト記号表（勤務時間帯)'!$C$5:$K$36,9,FALSE)) ->  | AC23: =IF(AC22="","",VLOOKUP(AC22,'シフト記号表（勤務時間帯)'!$C$5:$K$36,9,FALSE)) ->  | AD23: =IF(AD22="","",VLOOKUP(AD22,'シフト記号表（勤務時間帯)'!$C$5:$K$36,9,FALSE)) ->  | AE23: =IF(AE22="","",VLOOKUP(AE22,'シフト記号表（勤務時間帯)'!$C$5:$K$36,9,FALSE)) ->  | AF23: =IF(AF22="","",VLOOKUP(AF22,'シフト記号表（勤務時間帯)'!$C$5:$K$36,9,FALSE)) ->  | AG23: =IF(AG22="","",VLOOKUP(AG22,'シフト記号表（勤務時間帯)'!$C$5:$K$36,9,FALSE)) ->  | AH23: =IF(AH22="","",VLOOKUP(AH22,'シフト記号表（勤務時間帯)'!$C$5:$K$36,9,FALSE)) ->  | AI23: =IF(AI22="","",VLOOKUP(AI22,'シフト記号表（勤務時間帯)'!$C$5:$K$36,9,FALSE)) ->  | AJ23: =IF(AJ22="","",VLOOKUP(AJ22,'シフト記号表（勤務時間帯)'!$C$5:$K$36,9,FALSE)) ->  | AK23: =IF(AK22="","",VLOOKUP(AK22,'シフト記号表（勤務時間帯)'!$C$5:$K$36,9,FALSE)) ->  | AL23: =IF(AL22="","",VLOOKUP(AL22,'シフト記号表（勤務時間帯)'!$C$5:$K$36,9,FALSE)) ->  | AM23: =IF(AM22="","",VLOOKUP(AM22,'シフト記号表（勤務時間帯)'!$C$5:$K$36,9,FALSE)) ->  | AN23: =IF(AN22="","",VLOOKUP(AN22,'シフト記号表（勤務時間帯)'!$C$5:$K$36,9,FALSE)) ->  | AO23: =IF(AO22="","",VLOOKUP(AO22,'シフト記号表（勤務時間帯)'!$C$5:$K$36,9,FALSE)) ->  | AP23: =IF(AP22="","",VLOOKUP(AP22,'シフト記号表（勤務時間帯)'!$C$5:$K$36,9,FALSE)) ->  | AQ23: =IF(AQ22="","",VLOOKUP(AQ22,'シフト記号表（勤務時間帯)'!$C$5:$K$36,9,FALSE)) ->  | AR23: =IF(AR22="","",VLOOKUP(AR22,'シフト記号表（勤務時間帯)'!$C$5:$K$36,9,FALSE)) ->  | AS23: =IF(AS22="","",VLOOKUP(AS22,'シフト記号表（勤務時間帯)'!$C$5:$K$36,9,FALSE)) ->  | AT23: =IF(AT22="","",VLOOKUP(AT22,'シフト記号表（勤務時間帯)'!$C$5:$K$36,9,FALSE)) ->  | AU23: =IF(AU22="","",VLOOKUP(AU22,'シフト記号表（勤務時間帯)'!$C$5:$K$36,9,FALSE)) ->  | AV23: =IF(AV22="","",VLOOKUP(AV22,'シフト記号表（勤務時間帯)'!$C$5:$K$36,9,FALSE)) ->  | AW23: =IF(AW22="","",VLOOKUP(AW22,'シフト記号表（勤務時間帯)'!$C$5:$K$36,9,FALSE)) ->  | AX23: =IF($BB$3="計画",SUM(S23:AT23),IF($BB$3="実績",SUM(S23:AW23),"")) -> 0 | AZ23: =IF($BB$3="計画",AX23/4,IF($BB$3="実績",【記載例】地域密着型通所介護!AX23/(【記載例】地域密着型通所介護!$BB$8/7),"")) -> 0
F24: =C23 -> 0 | P24: サービス提供時間内 の勤務時間数 | S24: =IF(S22="","",VLOOKUP(S22,'シフト記号表（勤務時間帯)'!$C$5:$U$36,19,FALSE)) ->  | T24: =IF(T22="","",VLOOKUP(T22,'シフト記号表（勤務時間帯)'!$C$5:$U$36,19,FALSE)) ->  | U24: =IF(U22="","",VLOOKUP(U22,'シフト記号表（勤務時間帯)'!$C$5:$U$36,19,FALSE)) ->  | V24: =IF(V22="","",VLOOKUP(V22,'シフト記号表（勤務時間帯)'!$C$5:$U$36,19,FALSE)) ->  | W24: =IF(W22="","",VLOOKUP(W22,'シフト記号表（勤務時間帯)'!$C$5:$U$36,19,FALSE)) ->  | X24: =IF(X22="","",VLOOKUP(X22,'シフト記号表（勤務時間帯)'!$C$5:$U$36,19,FALSE)) ->  | Y24: =IF(Y22="","",VLOOKUP(Y22,'シフト記号表（勤務時間帯)'!$C$5:$U$36,19,FALSE)) ->  | Z24: =IF(Z22="","",VLOOKUP(Z22,'シフト記号表（勤務時間帯)'!$C$5:$U$36,19,FALSE)) ->  | AA24: =IF(AA22="","",VLOOKUP(AA22,'シフト記号表（勤務時間帯)'!$C$5:$U$36,19,FALSE)) ->  | AB24: =IF(AB22="","",VLOOKUP(AB22,'シフト記号表（勤務時間帯)'!$C$5:$U$36,19,FALSE)) ->  | AC24: =IF(AC22="","",VLOOKUP(AC22,'シフト記号表（勤務時間帯)'!$C$5:$U$36,19,FALSE)) ->  | AD24: =IF(AD22="","",VLOOKUP(AD22,'シフト記号表（勤務時間帯)'!$C$5:$U$36,19,FALSE)) ->  | AE24: =IF(AE22="","",VLOOKUP(AE22,'シフト記号表（勤務時間帯)'!$C$5:$U$36,19,FALSE)) ->  | AF24: =IF(AF22="","",VLOOKUP(AF22,'シフト記号表（勤務時間帯)'!$C$5:$U$36,19,FALSE)) ->  | AG24: =IF(AG22="","",VLOOKUP(AG22,'シフト記号表（勤務時間帯)'!$C$5:$U$36,19,FALSE)) ->  | AH24: =IF(AH22="","",VLOOKUP(AH22,'シフト記号表（勤務時間帯)'!$C$5:$U$36,19,FALSE)) ->  | AI24: =IF(AI22="","",VLOOKUP(AI22,'シフト記号表（勤務時間帯)'!$C$5:$U$36,19,FALSE)) ->  | AJ24: =IF(AJ22="","",VLOOKUP(AJ22,'シフト記号表（勤務時間帯)'!$C$5:$U$36,19,FALSE)) ->  | AK24: =IF(AK22="","",VLOOKUP(AK22,'シフト記号表（勤務時間帯)'!$C$5:$U$36,19,FALSE)) ->  | AL24: =IF(AL22="","",VLOOKUP(AL22,'シフト記号表（勤務時間帯)'!$C$5:$U$36,19,FALSE)) ->  | AM24: =IF(AM22="","",VLOOKUP(AM22,'シフト記号表（勤務時間帯)'!$C$5:$U$36,19,FALSE)) ->  | AN24: =IF(AN22="","",VLOOKUP(AN22,'シフト記号表（勤務時間帯)'!$C$5:$U$36,19,FALSE)) ->  | AO24: =IF(AO22="","",VLOOKUP(AO22,'シフト記号表（勤務時間帯)'!$C$5:$U$36,19,FALSE)) ->  | AP24: =IF(AP22="","",VLOOKUP(AP22,'シフト記号表（勤務時間帯)'!$C$5:$U$36,19,FALSE)) ->  | AQ24: =IF(AQ22="","",VLOOKUP(AQ22,'シフト記号表（勤務時間帯)'!$C$5:$U$36,19,FALSE)) ->  | AR24: =IF(AR22="","",VLOOKUP(AR22,'シフト記号表（勤務時間帯)'!$C$5:$U$36,19,FALSE)) ->  | AS24: =IF(AS22="","",VLOOKUP(AS22,'シフト記号表（勤務時間帯)'!$C$5:$U$36,19,FALSE)) ->  | AT24: =IF(AT22="","",VLOOKUP(AT22,'シフト記号表（勤務時間帯)'!$C$5:$U$36,19,FALSE)) ->  | AU24: =IF(AU22="","",VLOOKUP(AU22,'シフト記号表（勤務時間帯)'!$C$5:$U$36,19,FALSE)) ->  | AV24: =IF(AV22="","",VLOOKUP(AV22,'シフト記号表（勤務時間帯)'!$C$5:$U$36,19,FALSE)) ->  | AW24: =IF(AW22="","",VLOOKUP(AW22,'シフト記号表（勤務時間帯)'!$C$5:$U$36,19,FALSE)) ->  | AX24: =IF($BB$3="計画",SUM(S24:AT24),IF($BB$3="実績",SUM(S24:AW24),"")) -> 0 | AZ24: =IF($BB$3="計画",AX24/4,IF($BB$3="実績",【記載例】地域密着型通所介護!AX24/(【記載例】地域密着型通所介護!$BB$8/7),"")) -> 0
B25: =B22+1 -> 2 | P25: シフト記号
P26: 勤務時間数 | S26: =IF(S25="","",VLOOKUP(S25,'シフト記号表（勤務時間帯)'!$C$5:$K$36,9,FALSE)) ->  | T26: =IF(T25="","",VLOOKUP(T25,'シフト記号表（勤務時間帯)'!$C$5:$K$36,9,FALSE)) ->  | U26: =IF(U25="","",VLOOKUP(U25,'シフト記号表（勤務時間帯)'!$C$5:$K$36,9,FALSE)) ->  | V26: =IF(V25="","",VLOOKUP(V25,'シフト記号表（勤務時間帯)'!$C$5:$K$36,9,FALSE)) ->  | W26: =IF(W25="","",VLOOKUP(W25,'シフト記号表（勤務時間帯)'!$C$5:$K$36,9,FALSE)) ->  | X26: =IF(X25="","",VLOOKUP(X25,'シフト記号表（勤務時間帯)'!$C$5:$K$36,9,FALSE)) ->  | Y26: =IF(Y25="","",VLOOKUP(Y25,'シフト記号表（勤務時間帯)'!$C$5:$K$36,9,FALSE)) ->  | Z26: =IF(Z25="","",VLOOKUP(Z25,'シフト記号表（勤務時間帯)'!$C$5:$K$36,9,FALSE)) ->  | AA26: =IF(AA25="","",VLOOKUP(AA25,'シフト記号表（勤務時間帯)'!$C$5:$K$36,9,FALSE)) ->  | AB26: =IF(AB25="","",VLOOKUP(AB25,'シフト記号表（勤務時間帯)'!$C$5:$K$36,9,FALSE)) ->  | AC26: =IF(AC25="","",VLOOKUP(AC25,'シフト記号表（勤務時間帯)'!$C$5:$K$36,9,FALSE)) ->  | AD26: =IF(AD25="","",VLOOKUP(AD25,'シフト記号表（勤務時間帯)'!$C$5:$K$36,9,FALSE)) ->  | AE26: =IF(AE25="","",VLOOKUP(AE25,'シフト記号表（勤務時間帯)'!$C$5:$K$36,9,FALSE)) ->  | AF26: =IF(AF25="","",VLOOKUP(AF25,'シフト記号表（勤務時間帯)'!$C$5:$K$36,9,FALSE)) ->  | AG26: =IF(AG25="","",VLOOKUP(AG25,'シフト記号表（勤務時間帯)'!$C$5:$K$36,9,FALSE)) ->  | AH26: =IF(AH25="","",VLOOKUP(AH25,'シフト記号表（勤務時間帯)'!$C$5:$K$36,9,FALSE)) ->  | AI26: =IF(AI25="","",VLOOKUP(AI25,'シフト記号表（勤務時間帯)'!$C$5:$K$36,9,FALSE)) ->  | AJ26: =IF(AJ25="","",VLOOKUP(AJ25,'シフト記号表（勤務時間帯)'!$C$5:$K$36,9,FALSE)) ->  | AK26: =IF(AK25="","",VLOOKUP(AK25,'シフト記号表（勤務時間帯)'!$C$5:$K$36,9,FALSE)) ->  | AL26: =IF(AL25="","",VLOOKUP(AL25,'シフト記号表（勤務時間帯)'!$C$5:$K$36,9,FALSE)) ->  | AM26: =IF(AM25="","",VLOOKUP(AM25,'シフト記号表（勤務時間帯)'!$C$5:$K$36,9,FALSE)) ->  | AN26: =IF(AN25="","",VLOOKUP(AN25,'シフト記号表（勤務時間帯)'!$C$5:$K$36,9,FALSE)) ->  | AO26: =IF(AO25="","",VLOOKUP(AO25,'シフト記号表（勤務時間帯)'!$C$5:$K$36,9,FALSE)) ->  | AP26: =IF(AP25="","",VLOOKUP(AP25,'シフト記号表（勤務時間帯)'!$C$5:$K$36,9,FALSE)) ->  | AQ26: =IF(AQ25="","",VLOOKUP(AQ25,'シフト記号表（勤務時間帯)'!$C$5:$K$36,9,FALSE)) ->  | AR26: =IF(AR25="","",VLOOKUP(AR25,'シフト記号表（勤務時間帯)'!$C$5:$K$36,9,FALSE)) ->  | AS26: =IF(AS25="","",VLOOKUP(AS25,'シフト記号表（勤務時間帯)'!$C$5:$K$36,9,FALSE)) ->  | AT26: =IF(AT25="","",VLOOKUP(AT25,'シフト記号表（勤務時間帯)'!$C$5:$K$36,9,FALSE)) ->  | AU26: =IF(AU25="","",VLOOKUP(AU25,'シフト記号表（勤務時間帯)'!$C$5:$K$36,9,FALSE)) ->  | AV26: =IF(AV25="","",VLOOKUP(AV25,'シフト記号表（勤務時間帯)'!$C$5:$K$36,9,FALSE)) ->  | AW26: =IF(AW25="","",VLOOKUP(AW25,'シフト記号表（勤務時間帯)'!$C$5:$K$36,9,FALSE)) ->  | AX26: =IF($BB$3="計画",SUM(S26:AT26),IF($BB$3="実績",SUM(S26:AW26),"")) -> 0 | AZ26: =IF($BB$3="計画",AX26/4,IF($BB$3="実績",【記載例】地域密着型通所介護!AX26/(【記載例】地域密着型通所介護!$BB$8/7),"")) -> 0
F27: =C26 -> 0 | P27: サービス提供時間内 の勤務時間数 | S27: =IF(S25="","",VLOOKUP(S25,'シフト記号表（勤務時間帯)'!$C$5:$U$36,19,FALSE)) ->  | T27: =IF(T25="","",VLOOKUP(T25,'シフト記号表（勤務時間帯)'!$C$5:$U$36,19,FALSE)) ->  | U27: =IF(U25="","",VLOOKUP(U25,'シフト記号表（勤務時間帯)'!$C$5:$U$36,19,FALSE)) ->  | V27: =IF(V25="","",VLOOKUP(V25,'シフト記号表（勤務時間帯)'!$C$5:$U$36,19,FALSE)) ->  | W27: =IF(W25="","",VLOOKUP(W25,'シフト記号表（勤務時間帯)'!$C$5:$U$36,19,FALSE)) ->  | X27: =IF(X25="","",VLOOKUP(X25,'シフト記号表（勤務時間帯)'!$C$5:$U$36,19,FALSE)) ->  | Y27: =IF(Y25="","",VLOOKUP(Y25,'シフト記号表（勤務時間帯)'!$C$5:$U$36,19,FALSE)) ->  | Z27: =IF(Z25="","",VLOOKUP(Z25,'シフト記号表（勤務時間帯)'!$C$5:$U$36,19,FALSE)) ->  | AA27: =IF(AA25="","",VLOOKUP(AA25,'シフト記号表（勤務時間帯)'!$C$5:$U$36,19,FALSE)) ->  | AB27: =IF(AB25="","",VLOOKUP(AB25,'シフト記号表（勤務時間帯)'!$C$5:$U$36,19,FALSE)) ->  | AC27: =IF(AC25="","",VLOOKUP(AC25,'シフト記号表（勤務時間帯)'!$C$5:$U$36,19,FALSE)) ->  | AD27: =IF(AD25="","",VLOOKUP(AD25,'シフト記号表（勤務時間帯)'!$C$5:$U$36,19,FALSE)) ->  | AE27: =IF(AE25="","",VLOOKUP(AE25,'シフト記号表（勤務時間帯)'!$C$5:$U$36,19,FALSE)) ->  | AF27: =IF(AF25="","",VLOOKUP(AF25,'シフト記号表（勤務時間帯)'!$C$5:$U$36,19,FALSE)) ->  | AG27: =IF(AG25="","",VLOOKUP(AG25,'シフト記号表（勤務時間帯)'!$C$5:$U$36,19,FALSE)) ->  | AH27: =IF(AH25="","",VLOOKUP(AH25,'シフト記号表（勤務時間帯)'!$C$5:$U$36,19,FALSE)) ->  | AI27: =IF(AI25="","",VLOOKUP(AI25,'シフト記号表（勤務時間帯)'!$C$5:$U$36,19,FALSE)) ->  | AJ27: =IF(AJ25="","",VLOOKUP(AJ25,'シフト記号表（勤務時間帯)'!$C$5:$U$36,19,FALSE)) ->  | AK27: =IF(AK25="","",VLOOKUP(AK25,'シフト記号表（勤務時間帯)'!$C$5:$U$36,19,FALSE)) ->  | AL27: =IF(AL25="","",VLOOKUP(AL25,'シフト記号表（勤務時間帯)'!$C$5:$U$36,19,FALSE)) ->  | AM27: =IF(AM25="","",VLOOKUP(AM25,'シフト記号表（勤務時間帯)'!$C$5:$U$36,19,FALSE)) ->  | AN27: =IF(AN25="","",VLOOKUP(AN25,'シフト記号表（勤務時間帯)'!$C$5:$U$36,19,FALSE)) ->  | AO27: =IF(AO25="","",VLOOKUP(AO25,'シフト記号表（勤務時間帯)'!$C$5:$U$36,19,FALSE)) ->  | AP27: =IF(AP25="","",VLOOKUP(AP25,'シフト記号表（勤務時間帯)'!$C$5:$U$36,19,FALSE)) ->  | AQ27: =IF(AQ25="","",VLOOKUP(AQ25,'シフト記号表（勤務時間帯)'!$C$5:$U$36,19,FALSE)) ->  | AR27: =IF(AR25="","",VLOOKUP(AR25,'シフト記号表（勤務時間帯)'!$C$5:$U$36,19,FALSE)) ->  | AS27: =IF(AS25="","",VLOOKUP(AS25,'シフト記号表（勤務時間帯)'!$C$5:$U$36,19,FALSE)) ->  | AT27: =IF(AT25="","",VLOOKUP(AT25,'シフト記号表（勤務時間帯)'!$C$5:$U$36,19,FALSE)) ->  | AU27: =IF(AU25="","",VLOOKUP(AU25,'シフト記号表（勤務時間帯)'!$C$5:$U$36,19,FALSE)) ->  | AV27: =IF(AV25="","",VLOOKUP(AV25,'シフト記号表（勤務時間帯)'!$C$5:$U$36,19,FALSE)) ->  | AW27: =IF(AW25="","",VLOOKUP(AW25,'シフト記号表（勤務時間帯)'!$C$5:$U$36,19,FALSE)) ->  | AX27: =IF($BB$3="計画",SUM(S27:AT27),IF($BB$3="実績",SUM(S27:AW27),"")) -> 0 | AZ27: =IF($BB$3="計画",AX27/4,IF($BB$3="実績",【記載例】地域密着型通所介護!AX27/(【記載例】地域密着型通所介護!$BB$8/7),"")) -> 0
B28: =B25+1 -> 3 | P28: シフト記号
P29: 勤務時間数 | S29: =IF(S28="","",VLOOKUP(S28,'シフト記号表（勤務時間帯)'!$C$5:$K$36,9,FALSE)) ->  | T29: =IF(T28="","",VLOOKUP(T28,'シフト記号表（勤務時間帯)'!$C$5:$K$36,9,FALSE)) ->  | U29: =IF(U28="","",VLOOKUP(U28,'シフト記号表（勤務時間帯)'!$C$5:$K$36,9,FALSE)) ->  | V29: =IF(V28="","",VLOOKUP(V28,'シフト記号表（勤務時間帯)'!$C$5:$K$36,9,FALSE)) ->  | W29: =IF(W28="","",VLOOKUP(W28,'シフト記号表（勤務時間帯)'!$C$5:$K$36,9,FALSE)) ->  | X29: =IF(X28="","",VLOOKUP(X28,'シフト記号表（勤務時間帯)'!$C$5:$K$36,9,FALSE)) ->  | Y29: =IF(Y28="","",VLOOKUP(Y28,'シフト記号表（勤務時間帯)'!$C$5:$K$36,9,FALSE)) ->  | Z29: =IF(Z28="","",VLOOKUP(Z28,'シフト記号表（勤務時間帯)'!$C$5:$K$36,9,FALSE)) ->  | AA29: =IF(AA28="","",VLOOKUP(AA28,'シフト記号表（勤務時間帯)'!$C$5:$K$36,9,FALSE)) ->  | AB29: =IF(AB28="","",VLOOKUP(AB28,'シフト記号表（勤務時間帯)'!$C$5:$K$36,9,FALSE)) ->  | AC29: =IF(AC28="","",VLOOKUP(AC28,'シフト記号表（勤務時間帯)'!$C$5:$K$36,9,FALSE)) ->  | AD29: =IF(AD28="","",VLOOKUP(AD28,'シフト記号表（勤務時間帯)'!$C$5:$K$36,9,FALSE)) ->  | AE29: =IF(AE28="","",VLOOKUP(AE28,'シフト記号表（勤務時間帯)'!$C$5:$K$36,9,FALSE)) ->  | AF29: =IF(AF28="","",VLOOKUP(AF28,'シフト記号表（勤務時間帯)'!$C$5:$K$36,9,FALSE)) ->  | AG29: =IF(AG28="","",VLOOKUP(AG28,'シフト記号表（勤務時間帯)'!$C$5:$K$36,9,FALSE)) ->  | AH29: =IF(AH28="","",VLOOKUP(AH28,'シフト記号表（勤務時間帯)'!$C$5:$K$36,9,FALSE)) ->  | AI29: =IF(AI28="","",VLOOKUP(AI28,'シフト記号表（勤務時間帯)'!$C$5:$K$36,9,FALSE)) ->  | AJ29: =IF(AJ28="","",VLOOKUP(AJ28,'シフト記号表（勤務時間帯)'!$C$5:$K$36,9,FALSE)) ->  | AK29: =IF(AK28="","",VLOOKUP(AK28,'シフト記号表（勤務時間帯)'!$C$5:$K$36,9,FALSE)) ->  | AL29: =IF(AL28="","",VLOOKUP(AL28,'シフト記号表（勤務時間帯)'!$C$5:$K$36,9,FALSE)) ->  | AM29: =IF(AM28="","",VLOOKUP(AM28,'シフト記号表（勤務時間帯)'!$C$5:$K$36,9,FALSE)) ->  | AN29: =IF(AN28="","",VLOOKUP(AN28,'シフト記号表（勤務時間帯)'!$C$5:$K$36,9,FALSE)) ->  | AO29: =IF(AO28="","",VLOOKUP(AO28,'シフト記号表（勤務時間帯)'!$C$5:$K$36,9,FALSE)) ->  | AP29: =IF(AP28="","",VLOOKUP(AP28,'シフト記号表（勤務時間帯)'!$C$5:$K$36,9,FALSE)) ->  | AQ29: =IF(AQ28="","",VLOOKUP(AQ28,'シフト記号表（勤務時間帯)'!$C$5:$K$36,9,FALSE)) ->  | AR29: =IF(AR28="","",VLOOKUP(AR28,'シフト記号表（勤務時間帯)'!$C$5:$K$36,9,FALSE)) ->  | AS29: =IF(AS28="","",VLOOKUP(AS28,'シフト記号表（勤務時間帯)'!$C$5:$K$36,9,FALSE)) ->  | AT29: =IF(AT28="","",VLOOKUP(AT28,'シフト記号表（勤務時間帯)'!$C$5:$K$36,9,FALSE)) ->  | AU29: =IF(AU28="","",VLOOKUP(AU28,'シフト記号表（勤務時間帯)'!$C$5:$K$36,9,FALSE)) ->  | AV29: =IF(AV28="","",VLOOKUP(AV28,'シフト記号表（勤務時間帯)'!$C$5:$K$36,9,FALSE)) ->  | AW29: =IF(AW28="","",VLOOKUP(AW28,'シフト記号表（勤務時間帯)'!$C$5:$K$36,9,FALSE)) ->  | AX29: =IF($BB$3="計画",SUM(S29:AT29),IF($BB$3="実績",SUM(S29:AW29),"")) -> 0 | AZ29: =IF($BB$3="計画",AX29/4,IF($BB$3="実績",【記載例】地域密着型通所介護!AX29/(【記載例】地域密着型通所介護!$BB$8/7),"")) -> 0
F30: =C29 -> 0 | P30: サービス提供時間内 の勤務時間数 | S30: =IF(S28="","",VLOOKUP(S28,'シフト記号表（勤務時間帯)'!$C$5:$U$36,19,FALSE)) ->  | T30: =IF(T28="","",VLOOKUP(T28,'シフト記号表（勤務時間帯)'!$C$5:$U$36,19,FALSE)) ->  | U30: =IF(U28="","",VLOOKUP(U28,'シフト記号表（勤務時間帯)'!$C$5:$U$36,19,FALSE)) ->  | V30: =IF(V28="","",VLOOKUP(V28,'シフト記号表（勤務時間帯)'!$C$5:$U$36,19,FALSE)) ->  | W30: =IF(W28="","",VLOOKUP(W28,'シフト記号表（勤務時間帯)'!$C$5:$U$36,19,FALSE)) ->  | X30: =IF(X28="","",VLOOKUP(X28,'シフト記号表（勤務時間帯)'!$C$5:$U$36,19,FALSE)) ->  | Y30: =IF(Y28="","",VLOOKUP(Y28,'シフト記号表（勤務時間帯)'!$C$5:$U$36,19,FALSE)) ->  | Z30: =IF(Z28="","",VLOOKUP(Z28,'シフト記号表（勤務時間帯)'!$C$5:$U$36,19,FALSE)) ->  | AA30: =IF(AA28="","",VLOOKUP(AA28,'シフト記号表（勤務時間帯)'!$C$5:$U$36,19,FALSE)) ->  | AB30: =IF(AB28="","",VLOOKUP(AB28,'シフト記号表（勤務時間帯)'!$C$5:$U$36,19,FALSE)) ->  | AC30: =IF(AC28="","",VLOOKUP(AC28,'シフト記号表（勤務時間帯)'!$C$5:$U$36,19,FALSE)) ->  | AD30: =IF(AD28="","",VLOOKUP(AD28,'シフト記号表（勤務時間帯)'!$C$5:$U$36,19,FALSE)) ->  | AE30: =IF(AE28="","",VLOOKUP(AE28,'シフト記号表（勤務時間帯)'!$C$5:$U$36,19,FALSE)) ->  | AF30: =IF(AF28="","",VLOOKUP(AF28,'シフト記号表（勤務時間帯)'!$C$5:$U$36,19,FALSE)) ->  | AG30: =IF(AG28="","",VLOOKUP(AG28,'シフト記号表（勤務時間帯)'!$C$5:$U$36,19,FALSE)) ->  | AH30: =IF(AH28="","",VLOOKUP(AH28,'シフト記号表（勤務時間帯)'!$C$5:$U$36,19,FALSE)) ->  | AI30: =IF(AI28="","",VLOOKUP(AI28,'シフト記号表（勤務時間帯)'!$C$5:$U$36,19,FALSE)) ->  | AJ30: =IF(AJ28="","",VLOOKUP(AJ28,'シフト記号表（勤務時間帯)'!$C$5:$U$36,19,FALSE)) ->  | AK30: =IF(AK28="","",VLOOKUP(AK28,'シフト記号表（勤務時間帯)'!$C$5:$U$36,19,FALSE)) ->  | AL30: =IF(AL28="","",VLOOKUP(AL28,'シフト記号表（勤務時間帯)'!$C$5:$U$36,19,FALSE)) ->  | AM30: =IF(AM28="","",VLOOKUP(AM28,'シフト記号表（勤務時間帯)'!$C$5:$U$36,19,FALSE)) ->  | AN30: =IF(AN28="","",VLOOKUP(AN28,'シフト記号表（勤務時間帯)'!$C$5:$U$36,19,FALSE)) ->  | AO30: =IF(AO28="","",VLOOKUP(AO28,'シフト記号表（勤務時間帯)'!$C$5:$U$36,19,FALSE)) ->  | AP30: =IF(AP28="","",VLOOKUP(AP28,'シフト記号表（勤務時間帯)'!$C$5:$U$36,19,FALSE)) ->  | AQ30: =IF(AQ28="","",VLOOKUP(AQ28,'シフト記号表（勤務時間帯)'!$C$5:$U$36,19,FALSE)) ->  | AR30: =IF(AR28="","",VLOOKUP(AR28,'シフト記号表（勤務時間帯)'!$C$5:$U$36,19,FALSE)) ->  | AS30: =IF(AS28="","",VLOOKUP(AS28,'シフト記号表（勤務時間帯)'!$C$5:$U$36,19,FALSE)) ->  | AT30: =IF(AT28="","",VLOOKUP(AT28,'シフト記号表（勤務時間帯)'!$C$5:$U$36,19,FALSE)) ->  | AU30: =IF(AU28="","",VLOOKUP(AU28,'シフト記号表（勤務時間帯)'!$C$5:$U$36,19,FALSE)) ->  | AV30: =IF(AV28="","",VLOOKUP(AV28,'シフト記号表（勤務時間帯)'!$C$5:$U$36,19,FALSE)) ->  | AW30: =IF(AW28="","",VLOOKUP(AW28,'シフト記号表（勤務時間帯)'!$C$5:$U$36,19,FALSE)) ->  | AX30: =IF($BB$3="計画",SUM(S30:AT30),IF($BB$3="実績",SUM(S30:AW30),"")) -> 0 | AZ30: =IF($BB$3="計画",AX30/4,IF($BB$3="実績",【記載例】地域密着型通所介護!AX30/(【記載例】地域密着型通所介護!$BB$8/7),"")) -> 0
B31: =B28+1 -> 4 | P31: シフト記号
P32: 勤務時間数 | S32: =IF(S31="","",VLOOKUP(S31,'シフト記号表（勤務時間帯)'!$C$5:$K$36,9,FALSE)) ->  | T32: =IF(T31="","",VLOOKUP(T31,'シフト記号表（勤務時間帯)'!$C$5:$K$36,9,FALSE)) ->  | U32: =IF(U31="","",VLOOKUP(U31,'シフト記号表（勤務時間帯)'!$C$5:$K$36,9,FALSE)) ->  | V32: =IF(V31="","",VLOOKUP(V31,'シフト記号表（勤務時間帯)'!$C$5:$K$36,9,FALSE)) ->  | W32: =IF(W31="","",VLOOKUP(W31,'シフト記号表（勤務時間帯)'!$C$5:$K$36,9,FALSE)) ->  | X32: =IF(X31="","",VLOOKUP(X31,'シフト記号表（勤務時間帯)'!$C$5:$K$36,9,FALSE)) ->  | Y32: =IF(Y31="","",VLOOKUP(Y31,'シフト記号表（勤務時間帯)'!$C$5:$K$36,9,FALSE)) ->  | Z32: =IF(Z31="","",VLOOKUP(Z31,'シフト記号表（勤務時間帯)'!$C$5:$K$36,9,FALSE)) ->  | AA32: =IF(AA31="","",VLOOKUP(AA31,'シフト記号表（勤務時間帯)'!$C$5:$K$36,9,FALSE)) ->  | AB32: =IF(AB31="","",VLOOKUP(AB31,'シフト記号表（勤務時間帯)'!$C$5:$K$36,9,FALSE)) ->  | AC32: =IF(AC31="","",VLOOKUP(AC31,'シフト記号表（勤務時間帯)'!$C$5:$K$36,9,FALSE)) ->  | AD32: =IF(AD31="","",VLOOKUP(AD31,'シフト記号表（勤務時間帯)'!$C$5:$K$36,9,FALSE)) ->  | AE32: =IF(AE31="","",VLOOKUP(AE31,'シフト記号表（勤務時間帯)'!$C$5:$K$36,9,FALSE)) ->  | AF32: =IF(AF31="","",VLOOKUP(AF31,'シフト記号表（勤務時間帯)'!$C$5:$K$36,9,FALSE)) ->  | AG32: =IF(AG31="","",VLOOKUP(AG31,'シフト記号表（勤務時間帯)'!$C$5:$K$36,9,FALSE)) ->  | AH32: =IF(AH31="","",VLOOKUP(AH31,'シフト記号表（勤務時間帯)'!$C$5:$K$36,9,FALSE)) ->  | AI32: =IF(AI31="","",VLOOKUP(AI31,'シフト記号表（勤務時間帯)'!$C$5:$K$36,9,FALSE)) ->  | AJ32: =IF(AJ31="","",VLOOKUP(AJ31,'シフト記号表（勤務時間帯)'!$C$5:$K$36,9,FALSE)) ->  | AK32: =IF(AK31="","",VLOOKUP(AK31,'シフト記号表（勤務時間帯)'!$C$5:$K$36,9,FALSE)) ->  | AL32: =IF(AL31="","",VLOOKUP(AL31,'シフト記号表（勤務時間帯)'!$C$5:$K$36,9,FALSE)) ->  | AM32: =IF(AM31="","",VLOOKUP(AM31,'シフト記号表（勤務時間帯)'!$C$5:$K$36,9,FALSE)) ->  | AN32: =IF(AN31="","",VLOOKUP(AN31,'シフト記号表（勤務時間帯)'!$C$5:$K$36,9,FALSE)) ->  | AO32: =IF(AO31="","",VLOOKUP(AO31,'シフト記号表（勤務時間帯)'!$C$5:$K$36,9,FALSE)) ->  | AP32: =IF(AP31="","",VLOOKUP(AP31,'シフト記号表（勤務時間帯)'!$C$5:$K$36,9,FALSE)) ->  | AQ32: =IF(AQ31="","",VLOOKUP(AQ31,'シフト記号表（勤務時間帯)'!$C$5:$K$36,9,FALSE)) ->  | AR32: =IF(AR31="","",VLOOKUP(AR31,'シフト記号表（勤務時間帯)'!$C$5:$K$36,9,FALSE)) ->  | AS32: =IF(AS31="","",VLOOKUP(AS31,'シフト記号表（勤務時間帯)'!$C$5:$K$36,9,FALSE)) ->  | AT32: =IF(AT31="","",VLOOKUP(AT31,'シフト記号表（勤務時間帯)'!$C$5:$K$36,9,FALSE)) ->  | AU32: =IF(AU31="","",VLOOKUP(AU31,'シフト記号表（勤務時間帯)'!$C$5:$K$36,9,FALSE)) ->  | AV32: =IF(AV31="","",VLOOKUP(AV31,'シフト記号表（勤務時間帯)'!$C$5:$K$36,9,FALSE)) ->  | AW32: =IF(AW31="","",VLOOKUP(AW31,'シフト記号表（勤務時間帯)'!$C$5:$K$36,9,FALSE)) ->  | AX32: =IF($BB$3="計画",SUM(S32:AT32),IF($BB$3="実績",SUM(S32:AW32),"")) -> 0 | AZ32: =IF($BB$3="計画",AX32/4,IF($BB$3="実績",【記載例】地域密着型通所介護!AX32/(【記載例】地域密着型通所介護!$BB$8/7),"")) -> 0
F33: =C32 -> 0 | P33: サービス提供時間内 の勤務時間数 | S33: =IF(S31="","",VLOOKUP(S31,'シフト記号表（勤務時間帯)'!$C$5:$U$36,19,FALSE)) ->  | T33: =IF(T31="","",VLOOKUP(T31,'シフト記号表（勤務時間帯)'!$C$5:$U$36,19,FALSE)) ->  | U33: =IF(U31="","",VLOOKUP(U31,'シフト記号表（勤務時間帯)'!$C$5:$U$36,19,FALSE)) ->  | V33: =IF(V31="","",VLOOKUP(V31,'シフト記号表（勤務時間帯)'!$C$5:$U$36,19,FALSE)) ->  | W33: =IF(W31="","",VLOOKUP(W31,'シフト記号表（勤務時間帯)'!$C$5:$U$36,19,FALSE)) ->  | X33: =IF(X31="","",VLOOKUP(X31,'シフト記号表（勤務時間帯)'!$C$5:$U$36,19,FALSE)) ->  | Y33: =IF(Y31="","",VLOOKUP(Y31,'シフト記号表（勤務時間帯)'!$C$5:$U$36,19,FALSE)) ->  | Z33: =IF(Z31="","",VLOOKUP(Z31,'シフト記号表（勤務時間帯)'!$C$5:$U$36,19,FALSE)) ->  | AA33: =IF(AA31="","",VLOOKUP(AA31,'シフト記号表（勤務時間帯)'!$C$5:$U$36,19,FALSE)) ->  | AB33: =IF(AB31="","",VLOOKUP(AB31,'シフト記号表（勤務時間帯)'!$C$5:$U$36,19,FALSE)) ->  | AC33: =IF(AC31="","",VLOOKUP(AC31,'シフト記号表（勤務時間帯)'!$C$5:$U$36,19,FALSE)) ->  | AD33: =IF(AD31="","",VLOOKUP(AD31,'シフト記号表（勤務時間帯)'!$C$5:$U$36,19,FALSE)) ->  | AE33: =IF(AE31="","",VLOOKUP(AE31,'シフト記号表（勤務時間帯)'!$C$5:$U$36,19,FALSE)) ->  | AF33: =IF(AF31="","",VLOOKUP(AF31,'シフト記号表（勤務時間帯)'!$C$5:$U$36,19,FALSE)) ->  | AG33: =IF(AG31="","",VLOOKUP(AG31,'シフト記号表（勤務時間帯)'!$C$5:$U$36,19,FALSE)) ->  | AH33: =IF(AH31="","",VLOOKUP(AH31,'シフト記号表（勤務時間帯)'!$C$5:$U$36,19,FALSE)) ->  | AI33: =IF(AI31="","",VLOOKUP(AI31,'シフト記号表（勤務時間帯)'!$C$5:$U$36,19,FALSE)) ->  | AJ33: =IF(AJ31="","",VLOOKUP(AJ31,'シフト記号表（勤務時間帯)'!$C$5:$U$36,19,FALSE)) ->  | AK33: =IF(AK31="","",VLOOKUP(AK31,'シフト記号表（勤務時間帯)'!$C$5:$U$36,19,FALSE)) ->  | AL33: =IF(AL31="","",VLOOKUP(AL31,'シフト記号表（勤務時間帯)'!$C$5:$U$36,19,FALSE)) ->  | AM33: =IF(AM31="","",VLOOKUP(AM31,'シフト記号表（勤務時間帯)'!$C$5:$U$36,19,FALSE)) ->  | AN33: =IF(AN31="","",VLOOKUP(AN31,'シフト記号表（勤務時間帯)'!$C$5:$U$36,19,FALSE)) ->  | AO33: =IF(AO31="","",VLOOKUP(AO31,'シフト記号表（勤務時間帯)'!$C$5:$U$36,19,FALSE)) ->  | AP33: =IF(AP31="","",VLOOKUP(AP31,'シフト記号表（勤務時間帯)'!$C$5:$U$36,19,FALSE)) ->  | AQ33: =IF(AQ31="","",VLOOKUP(AQ31,'シフト記号表（勤務時間帯)'!$C$5:$U$36,19,FALSE)) ->  | AR33: =IF(AR31="","",VLOOKUP(AR31,'シフト記号表（勤務時間帯)'!$C$5:$U$36,19,FALSE)) ->  | AS33: =IF(AS31="","",VLOOKUP(AS31,'シフト記号表（勤務時間帯)'!$C$5:$U$36,19,FALSE)) ->  | AT33: =IF(AT31="","",VLOOKUP(AT31,'シフト記号表（勤務時間帯)'!$C$5:$U$36,19,FALSE)) ->  | AU33: =IF(AU31="","",VLOOKUP(AU31,'シフト記号表（勤務時間帯)'!$C$5:$U$36,19,FALSE)) ->  | AV33: =IF(AV31="","",VLOOKUP(AV31,'シフト記号表（勤務時間帯)'!$C$5:$U$36,19,FALSE)) ->  | AW33: =IF(AW31="","",VLOOKUP(AW31,'シフト記号表（勤務時間帯)'!$C$5:$U$36,19,FALSE)) ->  | AX33: =IF($BB$3="計画",SUM(S33:AT33),IF($BB$3="実績",SUM(S33:AW33),"")) -> 0 | AZ33: =IF($BB$3="計画",AX33/4,IF($BB$3="実績",【記載例】地域密着型通所介護!AX33/(【記載例】地域密着型通所介護!$BB$8/7),"")) -> 0
B34: =B31+1 -> 5 | P34: シフト記号
P35: 勤務時間数 | S35: =IF(S34="","",VLOOKUP(S34,'シフト記号表（勤務時間帯)'!$C$5:$K$36,9,FALSE)) ->  | T35: =IF(T34="","",VLOOKUP(T34,'シフト記号表（勤務時間帯)'!$C$5:$K$36,9,FALSE)) ->  | U35: =IF(U34="","",VLOOKUP(U34,'シフト記号表（勤務時間帯)'!$C$5:$K$36,9,FALSE)) ->  | V35: =IF(V34="","",VLOOKUP(V34,'シフト記号表（勤務時間帯)'!$C$5:$K$36,9,FALSE)) ->  | W35: =IF(W34="","",VLOOKUP(W34,'シフト記号表（勤務時間帯)'!$C$5:$K$36,9,FALSE)) ->  | X35: =IF(X34="","",VLOOKUP(X34,'シフト記号表（勤務時間帯)'!$C$5:$K$36,9,FALSE)) ->  | Y35: =IF(Y34="","",VLOOKUP(Y34,'シフト記号表（勤務時間帯)'!$C$5:$K$36,9,FALSE)) ->  | Z35: =IF(Z34="","",VLOOKUP(Z34,'シフト記号表（勤務時間帯)'!$C$5:$K$36,9,FALSE)) ->  | AA35: =IF(AA34="","",VLOOKUP(AA34,'シフト記号表（勤務時間帯)'!$C$5:$K$36,9,FALSE)) ->  | AB35: =IF(AB34="","",VLOOKUP(AB34,'シフト記号表（勤務時間帯)'!$C$5:$K$36,9,FALSE)) ->  | AC35: =IF(AC34="","",VLOOKUP(AC34,'シフト記号表（勤務時間帯)'!$C$5:$K$36,9,FALSE)) ->  | AD35: =IF(AD34="","",VLOOKUP(AD34,'シフト記号表（勤務時間帯)'!$C$5:$K$36,9,FALSE)) ->  | AE35: =IF(AE34="","",VLOOKUP(AE34,'シフト記号表（勤務時間帯)'!$C$5:$K$36,9,FALSE)) ->  | AF35: =IF(AF34="","",VLOOKUP(AF34,'シフト記号表（勤務時間帯)'!$C$5:$K$36,9,FALSE)) ->  | AG35: =IF(AG34="","",VLOOKUP(AG34,'シフト記号表（勤務時間帯)'!$C$5:$K$36,9,FALSE)) ->  | AH35: =IF(AH34="","",VLOOKUP(AH34,'シフト記号表（勤務時間帯)'!$C$5:$K$36,9,FALSE)) ->  | AI35: =IF(AI34="","",VLOOKUP(AI34,'シフト記号表（勤務時間帯)'!$C$5:$K$36,9,FALSE)) ->  | AJ35: =IF(AJ34="","",VLOOKUP(AJ34,'シフト記号表（勤務時間帯)'!$C$5:$K$36,9,FALSE)) ->  | AK35: =IF(AK34="","",VLOOKUP(AK34,'シフト記号表（勤務時間帯)'!$C$5:$K$36,9,FALSE)) ->  | AL35: =IF(AL34="","",VLOOKUP(AL34,'シフト記号表（勤務時間帯)'!$C$5:$K$36,9,FALSE)) ->  | AM35: =IF(AM34="","",VLOOKUP(AM34,'シフト記号表（勤務時間帯)'!$C$5:$K$36,9,FALSE)) ->  | AN35: =IF(AN34="","",VLOOKUP(AN34,'シフト記号表（勤務時間帯)'!$C$5:$K$36,9,FALSE)) ->  | AO35: =IF(AO34="","",VLOOKUP(AO34,'シフト記号表（勤務時間帯)'!$C$5:$K$36,9,FALSE)) ->  | AP35: =IF(AP34="","",VLOOKUP(AP34,'シフト記号表（勤務時間帯)'!$C$5:$K$36,9,FALSE)) ->  | AQ35: =IF(AQ34="","",VLOOKUP(AQ34,'シフト記号表（勤務時間帯)'!$C$5:$K$36,9,FALSE)) ->  | AR35: =IF(AR34="","",VLOOKUP(AR34,'シフト記号表（勤務時間帯)'!$C$5:$K$36,9,FALSE)) ->  | AS35: =IF(AS34="","",VLOOKUP(AS34,'シフト記号表（勤務時間帯)'!$C$5:$K$36,9,FALSE)) ->  | AT35: =IF(AT34="","",VLOOKUP(AT34,'シフト記号表（勤務時間帯)'!$C$5:$K$36,9,FALSE)) ->  | AU35: =IF(AU34="","",VLOOKUP(AU34,'シフト記号表（勤務時間帯)'!$C$5:$K$36,9,FALSE)) ->  | AV35: =IF(AV34="","",VLOOKUP(AV34,'シフト記号表（勤務時間帯)'!$C$5:$K$36,9,FALSE)) ->  | AW35: =IF(AW34="","",VLOOKUP(AW34,'シフト記号表（勤務時間帯)'!$C$5:$K$36,9,FALSE)) ->  | AX35: =IF($BB$3="計画",SUM(S35:AT35),IF($BB$3="実績",SUM(S35:AW35),"")) -> 0 | AZ35: =IF($BB$3="計画",AX35/4,IF($BB$3="実績",【記載例】地域密着型通所介護!AX35/(【記載例】地域密着型通所介護!$BB$8/7),"")) -> 0
F36: =C35 -> 0 | P36: サービス提供時間内 の勤務時間数 | S36: =IF(S34="","",VLOOKUP(S34,'シフト記号表（勤務時間帯)'!$C$5:$U$36,19,FALSE)) ->  | T36: =IF(T34="","",VLOOKUP(T34,'シフト記号表（勤務時間帯)'!$C$5:$U$36,19,FALSE)) ->  | U36: =IF(U34="","",VLOOKUP(U34,'シフト記号表（勤務時間帯)'!$C$5:$U$36,19,FALSE)) ->  | V36: =IF(V34="","",VLOOKUP(V34,'シフト記号表（勤務時間帯)'!$C$5:$U$36,19,FALSE)) ->  | W36: =IF(W34="","",VLOOKUP(W34,'シフト記号表（勤務時間帯)'!$C$5:$U$36,19,FALSE)) ->  | X36: =IF(X34="","",VLOOKUP(X34,'シフト記号表（勤務時間帯)'!$C$5:$U$36,19,FALSE)) ->  | Y36: =IF(Y34="","",VLOOKUP(Y34,'シフト記号表（勤務時間帯)'!$C$5:$U$36,19,FALSE)) ->  | Z36: =IF(Z34="","",VLOOKUP(Z34,'シフト記号表（勤務時間帯)'!$C$5:$U$36,19,FALSE)) ->  | AA36: =IF(AA34="","",VLOOKUP(AA34,'シフト記号表（勤務時間帯)'!$C$5:$U$36,19,FALSE)) ->  | AB36: =IF(AB34="","",VLOOKUP(AB34,'シフト記号表（勤務時間帯)'!$C$5:$U$36,19,FALSE)) ->  | AC36: =IF(AC34="","",VLOOKUP(AC34,'シフト記号表（勤務時間帯)'!$C$5:$U$36,19,FALSE)) ->  | AD36: =IF(AD34="","",VLOOKUP(AD34,'シフト記号表（勤務時間帯)'!$C$5:$U$36,19,FALSE)) ->  | AE36: =IF(AE34="","",VLOOKUP(AE34,'シフト記号表（勤務時間帯)'!$C$5:$U$36,19,FALSE)) ->  | AF36: =IF(AF34="","",VLOOKUP(AF34,'シフト記号表（勤務時間帯)'!$C$5:$U$36,19,FALSE)) ->  | AG36: =IF(AG34="","",VLOOKUP(AG34,'シフト記号表（勤務時間帯)'!$C$5:$U$36,19,FALSE)) ->  | AH36: =IF(AH34="","",VLOOKUP(AH34,'シフト記号表（勤務時間帯)'!$C$5:$U$36,19,FALSE)) ->  | AI36: =IF(AI34="","",VLOOKUP(AI34,'シフト記号表（勤務時間帯)'!$C$5:$U$36,19,FALSE)) ->  | AJ36: =IF(AJ34="","",VLOOKUP(AJ34,'シフト記号表（勤務時間帯)'!$C$5:$U$36,19,FALSE)) ->  | AK36: =IF(AK34="","",VLOOKUP(AK34,'シフト記号表（勤務時間帯)'!$C$5:$U$36,19,FALSE)) ->  | AL36: =IF(AL34="","",VLOOKUP(AL34,'シフト記号表（勤務時間帯)'!$C$5:$U$36,19,FALSE)) ->  | AM36: =IF(AM34="","",VLOOKUP(AM34,'シフト記号表（勤務時間帯)'!$C$5:$U$36,19,FALSE)) ->  | AN36: =IF(AN34="","",VLOOKUP(AN34,'シフト記号表（勤務時間帯)'!$C$5:$U$36,19,FALSE)) ->  | AO36: =IF(AO34="","",VLOOKUP(AO34,'シフト記号表（勤務時間帯)'!$C$5:$U$36,19,FALSE)) ->  | AP36: =IF(AP34="","",VLOOKUP(AP34,'シフト記号表（勤務時間帯)'!$C$5:$U$36,19,FALSE)) ->  | AQ36: =IF(AQ34="","",VLOOKUP(AQ34,'シフト記号表（勤務時間帯)'!$C$5:$U$36,19,FALSE)) ->  | AR36: =IF(AR34="","",VLOOKUP(AR34,'シフト記号表（勤務時間帯)'!$C$5:$U$36,19,FALSE)) ->  | AS36: =IF(AS34="","",VLOOKUP(AS34,'シフト記号表（勤務時間帯)'!$C$5:$U$36,19,FALSE)) ->  | AT36: =IF(AT34="","",VLOOKUP(AT34,'シフト記号表（勤務時間帯)'!$C$5:$U$36,19,FALSE)) ->  | AU36: =IF(AU34="","",VLOOKUP(AU34,'シフト記号表（勤務時間帯)'!$C$5:$U$36,19,FALSE)) ->  | AV36: =IF(AV34="","",VLOOKUP(AV34,'シフト記号表（勤務時間帯)'!$C$5:$U$36,19,FALSE)) ->  | AW36: =IF(AW34="","",VLOOKUP(AW34,'シフト記号表（勤務時間帯)'!$C$5:$U$36,19,FALSE)) ->  | AX36: =IF($BB$3="計画",SUM(S36:AT36),IF($BB$3="実績",SUM(S36:AW36),"")) -> 0 | AZ36: =IF($BB$3="計画",AX36/4,IF($BB$3="実績",【記載例】地域密着型通所介護!AX36/(【記載例】地域密着型通所介護!$BB$8/7),"")) -> 0
B37: =B34+1 -> 6 | P37: シフト記号
P38: 勤務時間数 | S38: =IF(S37="","",VLOOKUP(S37,'シフト記号表（勤務時間帯)'!$C$5:$K$36,9,FALSE)) ->  | T38: =IF(T37="","",VLOOKUP(T37,'シフト記号表（勤務時間帯)'!$C$5:$K$36,9,FALSE)) ->  | U38: =IF(U37="","",VLOOKUP(U37,'シフト記号表（勤務時間帯)'!$C$5:$K$36,9,FALSE)) ->  | V38: =IF(V37="","",VLOOKUP(V37,'シフト記号表（勤務時間帯)'!$C$5:$K$36,9,FALSE)) ->  | W38: =IF(W37="","",VLOOKUP(W37,'シフト記号表（勤務時間帯)'!$C$5:$K$36,9,FALSE)) ->  | X38: =IF(X37="","",VLOOKUP(X37,'シフト記号表（勤務時間帯)'!$C$5:$K$36,9,FALSE)) ->  | Y38: =IF(Y37="","",VLOOKUP(Y37,'シフト記号表（勤務時間帯)'!$C$5:$K$36,9,FALSE)) ->  | Z38: =IF(Z37="","",VLOOKUP(Z37,'シフト記号表（勤務時間帯)'!$C$5:$K$36,9,FALSE)) ->  | AA38: =IF(AA37="","",VLOOKUP(AA37,'シフト記号表（勤務時間帯)'!$C$5:$K$36,9,FALSE)) ->  | AB38: =IF(AB37="","",VLOOKUP(AB37,'シフト記号表（勤務時間帯)'!$C$5:$K$36,9,FALSE)) ->  | AC38: =IF(AC37="","",VLOOKUP(AC37,'シフト記号表（勤務時間帯)'!$C$5:$K$36,9,FALSE)) ->  | AD38: =IF(AD37="","",VLOOKUP(AD37,'シフト記号表（勤務時間帯)'!$C$5:$K$36,9,FALSE)) ->  | AE38: =IF(AE37="","",VLOOKUP(AE37,'シフト記号表（勤務時間帯)'!$C$5:$K$36,9,FALSE)) ->  | AF38: =IF(AF37="","",VLOOKUP(AF37,'シフト記号表（勤務時間帯)'!$C$5:$K$36,9,FALSE)) ->  | AG38: =IF(AG37="","",VLOOKUP(AG37,'シフト記号表（勤務時間帯)'!$C$5:$K$36,9,FALSE)) ->  | AH38: =IF(AH37="","",VLOOKUP(AH37,'シフト記号表（勤務時間帯)'!$C$5:$K$36,9,FALSE)) ->  | AI38: =IF(AI37="","",VLOOKUP(AI37,'シフト記号表（勤務時間帯)'!$C$5:$K$36,9,FALSE)) ->  | AJ38: =IF(AJ37="","",VLOOKUP(AJ37,'シフト記号表（勤務時間帯)'!$C$5:$K$36,9,FALSE)) ->  | AK38: =IF(AK37="","",VLOOKUP(AK37,'シフト記号表（勤務時間帯)'!$C$5:$K$36,9,FALSE)) ->  | AL38: =IF(AL37="","",VLOOKUP(AL37,'シフト記号表（勤務時間帯)'!$C$5:$K$36,9,FALSE)) ->  | AM38: =IF(AM37="","",VLOOKUP(AM37,'シフト記号表（勤務時間帯)'!$C$5:$K$36,9,FALSE)) ->  | AN38: =IF(AN37="","",VLOOKUP(AN37,'シフト記号表（勤務時間帯)'!$C$5:$K$36,9,FALSE)) ->  | AO38: =IF(AO37="","",VLOOKUP(AO37,'シフト記号表（勤務時間帯)'!$C$5:$K$36,9,FALSE)) ->  | AP38: =IF(AP37="","",VLOOKUP(AP37,'シフト記号表（勤務時間帯)'!$C$5:$K$36,9,FALSE)) ->  | AQ38: =IF(AQ37="","",VLOOKUP(AQ37,'シフト記号表（勤務時間帯)'!$C$5:$K$36,9,FALSE)) ->  | AR38: =IF(AR37="","",VLOOKUP(AR37,'シフト記号表（勤務時間帯)'!$C$5:$K$36,9,FALSE)) ->  | AS38: =IF(AS37="","",VLOOKUP(AS37,'シフト記号表（勤務時間帯)'!$C$5:$K$36,9,FALSE)) ->  | AT38: =IF(AT37="","",VLOOKUP(AT37,'シフト記号表（勤務時間帯)'!$C$5:$K$36,9,FALSE)) ->  | AU38: =IF(AU37="","",VLOOKUP(AU37,'シフト記号表（勤務時間帯)'!$C$5:$K$36,9,FALSE)) ->  | AV38: =IF(AV37="","",VLOOKUP(AV37,'シフト記号表（勤務時間帯)'!$C$5:$K$36,9,FALSE)) ->  | AW38: =IF(AW37="","",VLOOKUP(AW37,'シフト記号表（勤務時間帯)'!$C$5:$K$36,9,FALSE)) ->  | AX38: =IF($BB$3="計画",SUM(S38:AT38),IF($BB$3="実績",SUM(S38:AW38),"")) -> 0 | AZ38: =IF($BB$3="計画",AX38/4,IF($BB$3="実績",【記載例】地域密着型通所介護!AX38/(【記載例】地域密着型通所介護!$BB$8/7),"")) -> 0
F39: =C38 -> 0 | P39: サービス提供時間内 の勤務時間数 | S39: =IF(S37="","",VLOOKUP(S37,'シフト記号表（勤務時間帯)'!$C$5:$U$36,19,FALSE)) ->  | T39: =IF(T37="","",VLOOKUP(T37,'シフト記号表（勤務時間帯)'!$C$5:$U$36,19,FALSE)) ->  | U39: =IF(U37="","",VLOOKUP(U37,'シフト記号表（勤務時間帯)'!$C$5:$U$36,19,FALSE)) ->  | V39: =IF(V37="","",VLOOKUP(V37,'シフト記号表（勤務時間帯)'!$C$5:$U$36,19,FALSE)) ->  | W39: =IF(W37="","",VLOOKUP(W37,'シフト記号表（勤務時間帯)'!$C$5:$U$36,19,FALSE)) ->  | X39: =IF(X37="","",VLOOKUP(X37,'シフト記号表（勤務時間帯)'!$C$5:$U$36,19,FALSE)) ->  | Y39: =IF(Y37="","",VLOOKUP(Y37,'シフト記号表（勤務時間帯)'!$C$5:$U$36,19,FALSE)) ->  | Z39: =IF(Z37="","",VLOOKUP(Z37,'シフト記号表（勤務時間帯)'!$C$5:$U$36,19,FALSE)) ->  | AA39: =IF(AA37="","",VLOOKUP(AA37,'シフト記号表（勤務時間帯)'!$C$5:$U$36,19,FALSE)) ->  | AB39: =IF(AB37="","",VLOOKUP(AB37,'シフト記号表（勤務時間帯)'!$C$5:$U$36,19,FALSE)) ->  | AC39: =IF(AC37="","",VLOOKUP(AC37,'シフト記号表（勤務時間帯)'!$C$5:$U$36,19,FALSE)) ->  | AD39: =IF(AD37="","",VLOOKUP(AD37,'シフト記号表（勤務時間帯)'!$C$5:$U$36,19,FALSE)) ->  | AE39: =IF(AE37="","",VLOOKUP(AE37,'シフト記号表（勤務時間帯)'!$C$5:$U$36,19,FALSE)) ->  | AF39: =IF(AF37="","",VLOOKUP(AF37,'シフト記号表（勤務時間帯)'!$C$5:$U$36,19,FALSE)) ->  | AG39: =IF(AG37="","",VLOOKUP(AG37,'シフト記号表（勤務時間帯)'!$C$5:$U$36,19,FALSE)) ->  | AH39: =IF(AH37="","",VLOOKUP(AH37,'シフト記号表（勤務時間帯)'!$C$5:$U$36,19,FALSE)) ->  | AI39: =IF(AI37="","",VLOOKUP(AI37,'シフト記号表（勤務時間帯)'!$C$5:$U$36,19,FALSE)) ->  | AJ39: =IF(AJ37="","",VLOOKUP(AJ37,'シフト記号表（勤務時間帯)'!$C$5:$U$36,19,FALSE)) ->  | AK39: =IF(AK37="","",VLOOKUP(AK37,'シフト記号表（勤務時間帯)'!$C$5:$U$36,19,FALSE)) ->  | AL39: =IF(AL37="","",VLOOKUP(AL37,'シフト記号表（勤務時間帯)'!$C$5:$U$36,19,FALSE)) ->  | AM39: =IF(AM37="","",VLOOKUP(AM37,'シフト記号表（勤務時間帯)'!$C$5:$U$36,19,FALSE)) ->  | AN39: =IF(AN37="","",VLOOKUP(AN37,'シフト記号表（勤務時間帯)'!$C$5:$U$36,19,FALSE)) ->  | AO39: =IF(AO37="","",VLOOKUP(AO37,'シフト記号表（勤務時間帯)'!$C$5:$U$36,19,FALSE)) ->  | AP39: =IF(AP37="","",VLOOKUP(AP37,'シフト記号表（勤務時間帯)'!$C$5:$U$36,19,FALSE)) ->  | AQ39: =IF(AQ37="","",VLOOKUP(AQ37,'シフト記号表（勤務時間帯)'!$C$5:$U$36,19,FALSE)) ->  | AR39: =IF(AR37="","",VLOOKUP(AR37,'シフト記号表（勤務時間帯)'!$C$5:$U$36,19,FALSE)) ->  | AS39: =IF(AS37="","",VLOOKUP(AS37,'シフト記号表（勤務時間帯)'!$C$5:$U$36,19,FALSE)) ->  | AT39: =IF(AT37="","",VLOOKUP(AT37,'シフト記号表（勤務時間帯)'!$C$5:$U$36,19,FALSE)) ->  | AU39: =IF(AU37="","",VLOOKUP(AU37,'シフト記号表（勤務時間帯)'!$C$5:$U$36,19,FALSE)) ->  | AV39: =IF(AV37="","",VLOOKUP(AV37,'シフト記号表（勤務時間帯)'!$C$5:$U$36,19,FALSE)) ->  | AW39: =IF(AW37="","",VLOOKUP(AW37,'シフト記号表（勤務時間帯)'!$C$5:$U$36,19,FALSE)) ->  | AX39: =IF($BB$3="計画",SUM(S39:AT39),IF($BB$3="実績",SUM(S39:AW39),"")) -> 0 | AZ39: =IF($BB$3="計画",AX39/4,IF($BB$3="実績",【記載例】地域密着型通所介護!AX39/(【記載例】地域密着型通所介護!$BB$8/7),"")) -> 0
B40: =B37+1 -> 7 | P40: シフト記号
P41: 勤務時間数 | S41: =IF(S40="","",VLOOKUP(S40,'シフト記号表（勤務時間帯)'!$C$5:$K$36,9,FALSE)) ->  | T41: =IF(T40="","",VLOOKUP(T40,'シフト記号表（勤務時間帯)'!$C$5:$K$36,9,FALSE)) ->  | U41: =IF(U40="","",VLOOKUP(U40,'シフト記号表（勤務時間帯)'!$C$5:$K$36,9,FALSE)) ->  | V41: =IF(V40="","",VLOOKUP(V40,'シフト記号表（勤務時間帯)'!$C$5:$K$36,9,FALSE)) ->  | W41: =IF(W40="","",VLOOKUP(W40,'シフト記号表（勤務時間帯)'!$C$5:$K$36,9,FALSE)) ->  | X41: =IF(X40="","",VLOOKUP(X40,'シフト記号表（勤務時間帯)'!$C$5:$K$36,9,FALSE)) ->  | Y41: =IF(Y40="","",VLOOKUP(Y40,'シフト記号表（勤務時間帯)'!$C$5:$K$36,9,FALSE)) ->  | Z41: =IF(Z40="","",VLOOKUP(Z40,'シフト記号表（勤務時間帯)'!$C$5:$K$36,9,FALSE)) ->  | AA41: =IF(AA40="","",VLOOKUP(AA40,'シフト記号表（勤務時間帯)'!$C$5:$K$36,9,FALSE)) ->  | AB41: =IF(AB40="","",VLOOKUP(AB40,'シフト記号表（勤務時間帯)'!$C$5:$K$36,9,FALSE)) ->  | AC41: =IF(AC40="","",VLOOKUP(AC40,'シフト記号表（勤務時間帯)'!$C$5:$K$36,9,FALSE)) ->  | AD41: =IF(AD40="","",VLOOKUP(AD40,'シフト記号表（勤務時間帯)'!$C$5:$K$36,9,FALSE)) ->  | AE41: =IF(AE40="","",VLOOKUP(AE40,'シフト記号表（勤務時間帯)'!$C$5:$K$36,9,FALSE)) ->  | AF41: =IF(AF40="","",VLOOKUP(AF40,'シフト記号表（勤務時間帯)'!$C$5:$K$36,9,FALSE)) ->  | AG41: =IF(AG40="","",VLOOKUP(AG40,'シフト記号表（勤務時間帯)'!$C$5:$K$36,9,FALSE)) ->  | AH41: =IF(AH40="","",VLOOKUP(AH40,'シフト記号表（勤務時間帯)'!$C$5:$K$36,9,FALSE)) ->  | AI41: =IF(AI40="","",VLOOKUP(AI40,'シフト記号表（勤務時間帯)'!$C$5:$K$36,9,FALSE)) ->  | AJ41: =IF(AJ40="","",VLOOKUP(AJ40,'シフト記号表（勤務時間帯)'!$C$5:$K$36,9,FALSE)) ->  | AK41: =IF(AK40="","",VLOOKUP(AK40,'シフト記号表（勤務時間帯)'!$C$5:$K$36,9,FALSE)) ->  | AL41: =IF(AL40="","",VLOOKUP(AL40,'シフト記号表（勤務時間帯)'!$C$5:$K$36,9,FALSE)) ->  | AM41: =IF(AM40="","",VLOOKUP(AM40,'シフト記号表（勤務時間帯)'!$C$5:$K$36,9,FALSE)) ->  | AN41: =IF(AN40="","",VLOOKUP(AN40,'シフト記号表（勤務時間帯)'!$C$5:$K$36,9,FALSE)) ->  | AO41: =IF(AO40="","",VLOOKUP(AO40,'シフト記号表（勤務時間帯)'!$C$5:$K$36,9,FALSE)) ->  | AP41: =IF(AP40="","",VLOOKUP(AP40,'シフト記号表（勤務時間帯)'!$C$5:$K$36,9,FALSE)) ->  | AQ41: =IF(AQ40="","",VLOOKUP(AQ40,'シフト記号表（勤務時間帯)'!$C$5:$K$36,9,FALSE)) ->  | AR41: =IF(AR40="","",VLOOKUP(AR40,'シフト記号表（勤務時間帯)'!$C$5:$K$36,9,FALSE)) ->  | AS41: =IF(AS40="","",VLOOKUP(AS40,'シフト記号表（勤務時間帯)'!$C$5:$K$36,9,FALSE)) ->  | AT41: =IF(AT40="","",VLOOKUP(AT40,'シフト記号表（勤務時間帯)'!$C$5:$K$36,9,FALSE)) ->  | AU41: =IF(AU40="","",VLOOKUP(AU40,'シフト記号表（勤務時間帯)'!$C$5:$K$36,9,FALSE)) ->  | AV41: =IF(AV40="","",VLOOKUP(AV40,'シフト記号表（勤務時間帯)'!$C$5:$K$36,9,FALSE)) ->  | AW41: =IF(AW40="","",VLOOKUP(AW40,'シフト記号表（勤務時間帯)'!$C$5:$K$36,9,FALSE)) ->  | AX41: =IF($BB$3="計画",SUM(S41:AT41),IF($BB$3="実績",SUM(S41:AW41),"")) -> 0 | AZ41: =IF($BB$3="計画",AX41/4,IF($BB$3="実績",【記載例】地域密着型通所介護!AX41/(【記載例】地域密着型通所介護!$BB$8/7),"")) -> 0
F42: =C41 -> 0 | P42: サービス提供時間内 の勤務時間数 | S42: =IF(S40="","",VLOOKUP(S40,'シフト記号表（勤務時間帯)'!$C$5:$U$36,19,FALSE)) ->  | T42: =IF(T40="","",VLOOKUP(T40,'シフト記号表（勤務時間帯)'!$C$5:$U$36,19,FALSE)) ->  | U42: =IF(U40="","",VLOOKUP(U40,'シフト記号表（勤務時間帯)'!$C$5:$U$36,19,FALSE)) ->  | V42: =IF(V40="","",VLOOKUP(V40,'シフト記号表（勤務時間帯)'!$C$5:$U$36,19,FALSE)) ->  | W42: =IF(W40="","",VLOOKUP(W40,'シフト記号表（勤務時間帯)'!$C$5:$U$36,19,FALSE)) ->  | X42: =IF(X40="","",VLOOKUP(X40,'シフト記号表（勤務時間帯)'!$C$5:$U$36,19,FALSE)) ->  | Y42: =IF(Y40="","",VLOOKUP(Y40,'シフト記号表（勤務時間帯)'!$C$5:$U$36,19,FALSE)) ->  | Z42: =IF(Z40="","",VLOOKUP(Z40,'シフト記号表（勤務時間帯)'!$C$5:$U$36,19,FALSE)) ->  | AA42: =IF(AA40="","",VLOOKUP(AA40,'シフト記号表（勤務時間帯)'!$C$5:$U$36,19,FALSE)) ->  | AB42: =IF(AB40="","",VLOOKUP(AB40,'シフト記号表（勤務時間帯)'!$C$5:$U$36,19,FALSE)) ->  | AC42: =IF(AC40="","",VLOOKUP(AC40,'シフト記号表（勤務時間帯)'!$C$5:$U$36,19,FALSE)) ->  | AD42: =IF(AD40="","",VLOOKUP(AD40,'シフト記号表（勤務時間帯)'!$C$5:$U$36,19,FALSE)) ->  | AE42: =IF(AE40="","",VLOOKUP(AE40,'シフト記号表（勤務時間帯)'!$C$5:$U$36,19,FALSE)) ->  | AF42: =IF(AF40="","",VLOOKUP(AF40,'シフト記号表（勤務時間帯)'!$C$5:$U$36,19,FALSE)) ->  | AG42: =IF(AG40="","",VLOOKUP(AG40,'シフト記号表（勤務時間帯)'!$C$5:$U$36,19,FALSE)) ->  | AH42: =IF(AH40="","",VLOOKUP(AH40,'シフト記号表（勤務時間帯)'!$C$5:$U$36,19,FALSE)) ->  | AI42: =IF(AI40="","",VLOOKUP(AI40,'シフト記号表（勤務時間帯)'!$C$5:$U$36,19,FALSE)) ->  | AJ42: =IF(AJ40="","",VLOOKUP(AJ40,'シフト記号表（勤務時間帯)'!$C$5:$U$36,19,FALSE)) ->  | AK42: =IF(AK40="","",VLOOKUP(AK40,'シフト記号表（勤務時間帯)'!$C$5:$U$36,19,FALSE)) ->  | AL42: =IF(AL40="","",VLOOKUP(AL40,'シフト記号表（勤務時間帯)'!$C$5:$U$36,19,FALSE)) ->  | AM42: =IF(AM40="","",VLOOKUP(AM40,'シフト記号表（勤務時間帯)'!$C$5:$U$36,19,FALSE)) ->  | AN42: =IF(AN40="","",VLOOKUP(AN40,'シフト記号表（勤務時間帯)'!$C$5:$U$36,19,FALSE)) ->  | AO42: =IF(AO40="","",VLOOKUP(AO40,'シフト記号表（勤務時間帯)'!$C$5:$U$36,19,FALSE)) ->  | AP42: =IF(AP40="","",VLOOKUP(AP40,'シフト記号表（勤務時間帯)'!$C$5:$U$36,19,FALSE)) ->  | AQ42: =IF(AQ40="","",VLOOKUP(AQ40,'シフト記号表（勤務時間帯)'!$C$5:$U$36,19,FALSE)) ->  | AR42: =IF(AR40="","",VLOOKUP(AR40,'シフト記号表（勤務時間帯)'!$C$5:$U$36,19,FALSE)) ->  | AS42: =IF(AS40="","",VLOOKUP(AS40,'シフト記号表（勤務時間帯)'!$C$5:$U$36,19,FALSE)) ->  | AT42: =IF(AT40="","",VLOOKUP(AT40,'シフト記号表（勤務時間帯)'!$C$5:$U$36,19,FALSE)) ->  | AU42: =IF(AU40="","",VLOOKUP(AU40,'シフト記号表（勤務時間帯)'!$C$5:$U$36,19,FALSE)) ->  | AV42: =IF(AV40="","",VLOOKUP(AV40,'シフト記号表（勤務時間帯)'!$C$5:$U$36,19,FALSE)) ->  | AW42: =IF(AW40="","",VLOOKUP(AW40,'シフト記号表（勤務時間帯)'!$C$5:$U$36,19,FALSE)) ->  | AX42: =IF($BB$3="計画",SUM(S42:AT42),IF($BB$3="実績",SUM(S42:AW42),"")) -> 0 | AZ42: =IF($BB$3="計画",AX42/4,IF($BB$3="実績",【記載例】地域密着型通所介護!AX42/(【記載例】地域密着型通所介護!$BB$8/7),"")) -> 0
B43: =B40+1 -> 8 | P43: シフト記号
P44: 勤務時間数 | S44: =IF(S43="","",VLOOKUP(S43,'シフト記号表（勤務時間帯)'!$C$5:$K$36,9,FALSE)) ->  | T44: =IF(T43="","",VLOOKUP(T43,'シフト記号表（勤務時間帯)'!$C$5:$K$36,9,FALSE)) ->  | U44: =IF(U43="","",VLOOKUP(U43,'シフト記号表（勤務時間帯)'!$C$5:$K$36,9,FALSE)) ->  | V44: =IF(V43="","",VLOOKUP(V43,'シフト記号表（勤務時間帯)'!$C$5:$K$36,9,FALSE)) ->  | W44: =IF(W43="","",VLOOKUP(W43,'シフト記号表（勤務時間帯)'!$C$5:$K$36,9,FALSE)) ->  | X44: =IF(X43="","",VLOOKUP(X43,'シフト記号表（勤務時間帯)'!$C$5:$K$36,9,FALSE)) ->  | Y44: =IF(Y43="","",VLOOKUP(Y43,'シフト記号表（勤務時間帯)'!$C$5:$K$36,9,FALSE)) ->  | Z44: =IF(Z43="","",VLOOKUP(Z43,'シフト記号表（勤務時間帯)'!$C$5:$K$36,9,FALSE)) ->  | AA44: =IF(AA43="","",VLOOKUP(AA43,'シフト記号表（勤務時間帯)'!$C$5:$K$36,9,FALSE)) ->  | AB44: =IF(AB43="","",VLOOKUP(AB43,'シフト記号表（勤務時間帯)'!$C$5:$K$36,9,FALSE)) ->  | AC44: =IF(AC43="","",VLOOKUP(AC43,'シフト記号表（勤務時間帯)'!$C$5:$K$36,9,FALSE)) ->  | AD44: =IF(AD43="","",VLOOKUP(AD43,'シフト記号表（勤務時間帯)'!$C$5:$K$36,9,FALSE)) ->  | AE44: =IF(AE43="","",VLOOKUP(AE43,'シフト記号表（勤務時間帯)'!$C$5:$K$36,9,FALSE)) ->  | AF44: =IF(AF43="","",VLOOKUP(AF43,'シフト記号表（勤務時間帯)'!$C$5:$K$36,9,FALSE)) ->  | AG44: =IF(AG43="","",VLOOKUP(AG43,'シフト記号表（勤務時間帯)'!$C$5:$K$36,9,FALSE)) ->  | AH44: =IF(AH43="","",VLOOKUP(AH43,'シフト記号表（勤務時間帯)'!$C$5:$K$36,9,FALSE)) ->  | AI44: =IF(AI43="","",VLOOKUP(AI43,'シフト記号表（勤務時間帯)'!$C$5:$K$36,9,FALSE)) ->  | AJ44: =IF(AJ43="","",VLOOKUP(AJ43,'シフト記号表（勤務時間帯)'!$C$5:$K$36,9,FALSE)) ->  | AK44: =IF(AK43="","",VLOOKUP(AK43,'シフト記号表（勤務時間帯)'!$C$5:$K$36,9,FALSE)) ->  | AL44: =IF(AL43="","",VLOOKUP(AL43,'シフト記号表（勤務時間帯)'!$C$5:$K$36,9,FALSE)) ->  | AM44: =IF(AM43="","",VLOOKUP(AM43,'シフト記号表（勤務時間帯)'!$C$5:$K$36,9,FALSE)) ->  | AN44: =IF(AN43="","",VLOOKUP(AN43,'シフト記号表（勤務時間帯)'!$C$5:$K$36,9,FALSE)) ->  | AO44: =IF(AO43="","",VLOOKUP(AO43,'シフト記号表（勤務時間帯)'!$C$5:$K$36,9,FALSE)) ->  | AP44: =IF(AP43="","",VLOOKUP(AP43,'シフト記号表（勤務時間帯)'!$C$5:$K$36,9,FALSE)) ->  | AQ44: =IF(AQ43="","",VLOOKUP(AQ43,'シフト記号表（勤務時間帯)'!$C$5:$K$36,9,FALSE)) ->  | AR44: =IF(AR43="","",VLOOKUP(AR43,'シフト記号表（勤務時間帯)'!$C$5:$K$36,9,FALSE)) ->  | AS44: =IF(AS43="","",VLOOKUP(AS43,'シフト記号表（勤務時間帯)'!$C$5:$K$36,9,FALSE)) ->  | AT44: =IF(AT43="","",VLOOKUP(AT43,'シフト記号表（勤務時間帯)'!$C$5:$K$36,9,FALSE)) ->  | AU44: =IF(AU43="","",VLOOKUP(AU43,'シフト記号表（勤務時間帯)'!$C$5:$K$36,9,FALSE)) ->  | AV44: =IF(AV43="","",VLOOKUP(AV43,'シフト記号表（勤務時間帯)'!$C$5:$K$36,9,FALSE)) ->  | AW44: =IF(AW43="","",VLOOKUP(AW43,'シフト記号表（勤務時間帯)'!$C$5:$K$36,9,FALSE)) ->  | AX44: =IF($BB$3="計画",SUM(S44:AT44),IF($BB$3="実績",SUM(S44:AW44),"")) -> 0 | AZ44: =IF($BB$3="計画",AX44/4,IF($BB$3="実績",【記載例】地域密着型通所介護!AX44/(【記載例】地域密着型通所介護!$BB$8/7),"")) -> 0
F45: =C44 -> 0 | P45: サービス提供時間内 の勤務時間数 | S45: =IF(S43="","",VLOOKUP(S43,'シフト記号表（勤務時間帯)'!$C$5:$U$36,19,FALSE)) ->  | T45: =IF(T43="","",VLOOKUP(T43,'シフト記号表（勤務時間帯)'!$C$5:$U$36,19,FALSE)) ->  | U45: =IF(U43="","",VLOOKUP(U43,'シフト記号表（勤務時間帯)'!$C$5:$U$36,19,FALSE)) ->  | V45: =IF(V43="","",VLOOKUP(V43,'シフト記号表（勤務時間帯)'!$C$5:$U$36,19,FALSE)) ->  | W45: =IF(W43="","",VLOOKUP(W43,'シフト記号表（勤務時間帯)'!$C$5:$U$36,19,FALSE)) ->  | X45: =IF(X43="","",VLOOKUP(X43,'シフト記号表（勤務時間帯)'!$C$5:$U$36,19,FALSE)) ->  | Y45: =IF(Y43="","",VLOOKUP(Y43,'シフト記号表（勤務時間帯)'!$C$5:$U$36,19,FALSE)) ->  | Z45: =IF(Z43="","",VLOOKUP(Z43,'シフト記号表（勤務時間帯)'!$C$5:$U$36,19,FALSE)) ->  | AA45: =IF(AA43="","",VLOOKUP(AA43,'シフト記号表（勤務時間帯)'!$C$5:$U$36,19,FALSE)) ->  | AB45: =IF(AB43="","",VLOOKUP(AB43,'シフト記号表（勤務時間帯)'!$C$5:$U$36,19,FALSE)) ->  | AC45: =IF(AC43="","",VLOOKUP(AC43,'シフト記号表（勤務時間帯)'!$C$5:$U$36,19,FALSE)) ->  | AD45: =IF(AD43="","",VLOOKUP(AD43,'シフト記号表（勤務時間帯)'!$C$5:$U$36,19,FALSE)) ->  | AE45: =IF(AE43="","",VLOOKUP(AE43,'シフト記号表（勤務時間帯)'!$C$5:$U$36,19,FALSE)) ->  | AF45: =IF(AF43="","",VLOOKUP(AF43,'シフト記号表（勤務時間帯)'!$C$5:$U$36,19,FALSE)) ->  | AG45: =IF(AG43="","",VLOOKUP(AG43,'シフト記号表（勤務時間帯)'!$C$5:$U$36,19,FALSE)) ->  | AH45: =IF(AH43="","",VLOOKUP(AH43,'シフト記号表（勤務時間帯)'!$C$5:$U$36,19,FALSE)) ->  | AI45: =IF(AI43="","",VLOOKUP(AI43,'シフト記号表（勤務時間帯)'!$C$5:$U$36,19,FALSE)) ->  | AJ45: =IF(AJ43="","",VLOOKUP(AJ43,'シフト記号表（勤務時間帯)'!$C$5:$U$36,19,FALSE)) ->  | AK45: =IF(AK43="","",VLOOKUP(AK43,'シフト記号表（勤務時間帯)'!$C$5:$U$36,19,FALSE)) ->  | AL45: =IF(AL43="","",VLOOKUP(AL43,'シフト記号表（勤務時間帯)'!$C$5:$U$36,19,FALSE)) ->  | AM45: =IF(AM43="","",VLOOKUP(AM43,'シフト記号表（勤務時間帯)'!$C$5:$U$36,19,FALSE)) ->  | AN45: =IF(AN43="","",VLOOKUP(AN43,'シフト記号表（勤務時間帯)'!$C$5:$U$36,19,FALSE)) ->  | AO45: =IF(AO43="","",VLOOKUP(AO43,'シフト記号表（勤務時間帯)'!$C$5:$U$36,19,FALSE)) ->  | AP45: =IF(AP43="","",VLOOKUP(AP43,'シフト記号表（勤務時間帯)'!$C$5:$U$36,19,FALSE)) ->  | AQ45: =IF(AQ43="","",VLOOKUP(AQ43,'シフト記号表（勤務時間帯)'!$C$5:$U$36,19,FALSE)) ->  | AR45: =IF(AR43="","",VLOOKUP(AR43,'シフト記号表（勤務時間帯)'!$C$5:$U$36,19,FALSE)) ->  | AS45: =IF(AS43="","",VLOOKUP(AS43,'シフト記号表（勤務時間帯)'!$C$5:$U$36,19,FALSE)) ->  | AT45: =IF(AT43="","",VLOOKUP(AT43,'シフト記号表（勤務時間帯)'!$C$5:$U$36,19,FALSE)) ->  | AU45: =IF(AU43="","",VLOOKUP(AU43,'シフト記号表（勤務時間帯)'!$C$5:$U$36,19,FALSE)) ->  | AV45: =IF(AV43="","",VLOOKUP(AV43,'シフト記号表（勤務時間帯)'!$C$5:$U$36,19,FALSE)) ->  | AW45: =IF(AW43="","",VLOOKUP(AW43,'シフト記号表（勤務時間帯)'!$C$5:$U$36,19,FALSE)) ->  | AX45: =IF($BB$3="計画",SUM(S45:AT45),IF($BB$3="実績",SUM(S45:AW45),"")) -> 0 | AZ45: =IF($BB$3="計画",AX45/4,IF($BB$3="実績",【記載例】地域密着型通所介護!AX45/(【記載例】地域密着型通所介護!$BB$8/7),"")) -> 0
B46: =B43+1 -> 9 | P46: シフト記号
P47: 勤務時間数 | S47: =IF(S46="","",VLOOKUP(S46,'シフト記号表（勤務時間帯)'!$C$5:$K$36,9,FALSE)) ->  | T47: =IF(T46="","",VLOOKUP(T46,'シフト記号表（勤務時間帯)'!$C$5:$K$36,9,FALSE)) ->  | U47: =IF(U46="","",VLOOKUP(U46,'シフト記号表（勤務時間帯)'!$C$5:$K$36,9,FALSE)) ->  | V47: =IF(V46="","",VLOOKUP(V46,'シフト記号表（勤務時間帯)'!$C$5:$K$36,9,FALSE)) ->  | W47: =IF(W46="","",VLOOKUP(W46,'シフト記号表（勤務時間帯)'!$C$5:$K$36,9,FALSE)) ->  | X47: =IF(X46="","",VLOOKUP(X46,'シフト記号表（勤務時間帯)'!$C$5:$K$36,9,FALSE)) ->  | Y47: =IF(Y46="","",VLOOKUP(Y46,'シフト記号表（勤務時間帯)'!$C$5:$K$36,9,FALSE)) ->  | Z47: =IF(Z46="","",VLOOKUP(Z46,'シフト記号表（勤務時間帯)'!$C$5:$K$36,9,FALSE)) ->  | AA47: =IF(AA46="","",VLOOKUP(AA46,'シフト記号表（勤務時間帯)'!$C$5:$K$36,9,FALSE)) ->  | AB47: =IF(AB46="","",VLOOKUP(AB46,'シフト記号表（勤務時間帯)'!$C$5:$K$36,9,FALSE)) ->  | AC47: =IF(AC46="","",VLOOKUP(AC46,'シフト記号表（勤務時間帯)'!$C$5:$K$36,9,FALSE)) ->  | AD47: =IF(AD46="","",VLOOKUP(AD46,'シフト記号表（勤務時間帯)'!$C$5:$K$36,9,FALSE)) ->  | AE47: =IF(AE46="","",VLOOKUP(AE46,'シフト記号表（勤務時間帯)'!$C$5:$K$36,9,FALSE)) ->  | AF47: =IF(AF46="","",VLOOKUP(AF46,'シフト記号表（勤務時間帯)'!$C$5:$K$36,9,FALSE)) ->  | AG47: =IF(AG46="","",VLOOKUP(AG46,'シフト記号表（勤務時間帯)'!$C$5:$K$36,9,FALSE)) ->  | AH47: =IF(AH46="","",VLOOKUP(AH46,'シフト記号表（勤務時間帯)'!$C$5:$K$36,9,FALSE)) ->  | AI47: =IF(AI46="","",VLOOKUP(AI46,'シフト記号表（勤務時間帯)'!$C$5:$K$36,9,FALSE)) ->  | AJ47: =IF(AJ46="","",VLOOKUP(AJ46,'シフト記号表（勤務時間帯)'!$C$5:$K$36,9,FALSE)) ->  | AK47: =IF(AK46="","",VLOOKUP(AK46,'シフト記号表（勤務時間帯)'!$C$5:$K$36,9,FALSE)) ->  | AL47: =IF(AL46="","",VLOOKUP(AL46,'シフト記号表（勤務時間帯)'!$C$5:$K$36,9,FALSE)) ->  | AM47: =IF(AM46="","",VLOOKUP(AM46,'シフト記号表（勤務時間帯)'!$C$5:$K$36,9,FALSE)) ->  | AN47: =IF(AN46="","",VLOOKUP(AN46,'シフト記号表（勤務時間帯)'!$C$5:$K$36,9,FALSE)) ->  | AO47: =IF(AO46="","",VLOOKUP(AO46,'シフト記号表（勤務時間帯)'!$C$5:$K$36,9,FALSE)) ->  | AP47: =IF(AP46="","",VLOOKUP(AP46,'シフト記号表（勤務時間帯)'!$C$5:$K$36,9,FALSE)) ->  | AQ47: =IF(AQ46="","",VLOOKUP(AQ46,'シフト記号表（勤務時間帯)'!$C$5:$K$36,9,FALSE)) ->  | AR47: =IF(AR46="","",VLOOKUP(AR46,'シフト記号表（勤務時間帯)'!$C$5:$K$36,9,FALSE)) ->  | AS47: =IF(AS46="","",VLOOKUP(AS46,'シフト記号表（勤務時間帯)'!$C$5:$K$36,9,FALSE)) ->  | AT47: =IF(AT46="","",VLOOKUP(AT46,'シフト記号表（勤務時間帯)'!$C$5:$K$36,9,FALSE)) ->  | AU47: =IF(AU46="","",VLOOKUP(AU46,'シフト記号表（勤務時間帯)'!$C$5:$K$36,9,FALSE)) ->  | AV47: =IF(AV46="","",VLOOKUP(AV46,'シフト記号表（勤務時間帯)'!$C$5:$K$36,9,FALSE)) ->  | AW47: =IF(AW46="","",VLOOKUP(AW46,'シフト記号表（勤務時間帯)'!$C$5:$K$36,9,FALSE)) ->  | AX47: =IF($BB$3="計画",SUM(S47:AT47),IF($BB$3="実績",SUM(S47:AW47),"")) -> 0 | AZ47: =IF($BB$3="計画",AX47/4,IF($BB$3="実績",【記載例】地域密着型通所介護!AX47/(【記載例】地域密着型通所介護!$BB$8/7),"")) -> 0
F48: =C47 -> 0 | P48: サービス提供時間内 の勤務時間数 | S48: =IF(S46="","",VLOOKUP(S46,'シフト記号表（勤務時間帯)'!$C$5:$U$36,19,FALSE)) ->  | T48: =IF(T46="","",VLOOKUP(T46,'シフト記号表（勤務時間帯)'!$C$5:$U$36,19,FALSE)) ->  | U48: =IF(U46="","",VLOOKUP(U46,'シフト記号表（勤務時間帯)'!$C$5:$U$36,19,FALSE)) ->  | V48: =IF(V46="","",VLOOKUP(V46,'シフト記号表（勤務時間帯)'!$C$5:$U$36,19,FALSE)) ->  | W48: =IF(W46="","",VLOOKUP(W46,'シフト記号表（勤務時間帯)'!$C$5:$U$36,19,FALSE)) ->  | X48: =IF(X46="","",VLOOKUP(X46,'シフト記号表（勤務時間帯)'!$C$5:$U$36,19,FALSE)) ->  | Y48: =IF(Y46="","",VLOOKUP(Y46,'シフト記号表（勤務時間帯)'!$C$5:$U$36,19,FALSE)) ->  | Z48: =IF(Z46="","",VLOOKUP(Z46,'シフト記号表（勤務時間帯)'!$C$5:$U$36,19,FALSE)) ->  | AA48: =IF(AA46="","",VLOOKUP(AA46,'シフト記号表（勤務時間帯)'!$C$5:$U$36,19,FALSE)) ->  | AB48: =IF(AB46="","",VLOOKUP(AB46,'シフト記号表（勤務時間帯)'!$C$5:$U$36,19,FALSE)) ->  | AC48: =IF(AC46="","",VLOOKUP(AC46,'シフト記号表（勤務時間帯)'!$C$5:$U$36,19,FALSE)) ->  | AD48: =IF(AD46="","",VLOOKUP(AD46,'シフト記号表（勤務時間帯)'!$C$5:$U$36,19,FALSE)) ->  | AE48: =IF(AE46="","",VLOOKUP(AE46,'シフト記号表（勤務時間帯)'!$C$5:$U$36,19,FALSE)) ->  | AF48: =IF(AF46="","",VLOOKUP(AF46,'シフト記号表（勤務時間帯)'!$C$5:$U$36,19,FALSE)) ->  | AG48: =IF(AG46="","",VLOOKUP(AG46,'シフト記号表（勤務時間帯)'!$C$5:$U$36,19,FALSE)) ->  | AH48: =IF(AH46="","",VLOOKUP(AH46,'シフト記号表（勤務時間帯)'!$C$5:$U$36,19,FALSE)) ->  | AI48: =IF(AI46="","",VLOOKUP(AI46,'シフト記号表（勤務時間帯)'!$C$5:$U$36,19,FALSE)) ->  | AJ48: =IF(AJ46="","",VLOOKUP(AJ46,'シフト記号表（勤務時間帯)'!$C$5:$U$36,19,FALSE)) ->  | AK48: =IF(AK46="","",VLOOKUP(AK46,'シフト記号表（勤務時間帯)'!$C$5:$U$36,19,FALSE)) ->  | AL48: =IF(AL46="","",VLOOKUP(AL46,'シフト記号表（勤務時間帯)'!$C$5:$U$36,19,FALSE)) ->  | AM48: =IF(AM46="","",VLOOKUP(AM46,'シフト記号表（勤務時間帯)'!$C$5:$U$36,19,FALSE)) ->  | AN48: =IF(AN46="","",VLOOKUP(AN46,'シフト記号表（勤務時間帯)'!$C$5:$U$36,19,FALSE)) ->  | AO48: =IF(AO46="","",VLOOKUP(AO46,'シフト記号表（勤務時間帯)'!$C$5:$U$36,19,FALSE)) ->  | AP48: =IF(AP46="","",VLOOKUP(AP46,'シフト記号表（勤務時間帯)'!$C$5:$U$36,19,FALSE)) ->  | AQ48: =IF(AQ46="","",VLOOKUP(AQ46,'シフト記号表（勤務時間帯)'!$C$5:$U$36,19,FALSE)) ->  | AR48: =IF(AR46="","",VLOOKUP(AR46,'シフト記号表（勤務時間帯)'!$C$5:$U$36,19,FALSE)) ->  | AS48: =IF(AS46="","",VLOOKUP(AS46,'シフト記号表（勤務時間帯)'!$C$5:$U$36,19,FALSE)) ->  | AT48: =IF(AT46="","",VLOOKUP(AT46,'シフト記号表（勤務時間帯)'!$C$5:$U$36,19,FALSE)) ->  | AU48: =IF(AU46="","",VLOOKUP(AU46,'シフト記号表（勤務時間帯)'!$C$5:$U$36,19,FALSE)) ->  | AV48: =IF(AV46="","",VLOOKUP(AV46,'シフト記号表（勤務時間帯)'!$C$5:$U$36,19,FALSE)) ->  | AW48: =IF(AW46="","",VLOOKUP(AW46,'シフト記号表（勤務時間帯)'!$C$5:$U$36,19,FALSE)) ->  | AX48: =IF($BB$3="計画",SUM(S48:AT48),IF($BB$3="実績",SUM(S48:AW48),"")) -> 0 | AZ48: =IF($BB$3="計画",AX48/4,IF($BB$3="実績",【記載例】地域密着型通所介護!AX48/(【記載例】地域密着型通所介護!$BB$8/7),"")) -> 0
B49: =B46+1 -> 10 | P49: シフト記号
P50: 勤務時間数 | S50: =IF(S49="","",VLOOKUP(S49,'シフト記号表（勤務時間帯)'!$C$5:$K$36,9,FALSE)) ->  | T50: =IF(T49="","",VLOOKUP(T49,'シフト記号表（勤務時間帯)'!$C$5:$K$36,9,FALSE)) ->  | U50: =IF(U49="","",VLOOKUP(U49,'シフト記号表（勤務時間帯)'!$C$5:$K$36,9,FALSE)) ->  | V50: =IF(V49="","",VLOOKUP(V49,'シフト記号表（勤務時間帯)'!$C$5:$K$36,9,FALSE)) ->  | W50: =IF(W49="","",VLOOKUP(W49,'シフト記号表（勤務時間帯)'!$C$5:$K$36,9,FALSE)) ->  | X50: =IF(X49="","",VLOOKUP(X49,'シフト記号表（勤務時間帯)'!$C$5:$K$36,9,FALSE)) ->  | Y50: =IF(Y49="","",VLOOKUP(Y49,'シフト記号表（勤務時間帯)'!$C$5:$K$36,9,FALSE)) ->  | Z50: =IF(Z49="","",VLOOKUP(Z49,'シフト記号表（勤務時間帯)'!$C$5:$K$36,9,FALSE)) ->  | AA50: =IF(AA49="","",VLOOKUP(AA49,'シフト記号表（勤務時間帯)'!$C$5:$K$36,9,FALSE)) ->  | AB50: =IF(AB49="","",VLOOKUP(AB49,'シフト記号表（勤務時間帯)'!$C$5:$K$36,9,FALSE)) ->  | AC50: =IF(AC49="","",VLOOKUP(AC49,'シフト記号表（勤務時間帯)'!$C$5:$K$36,9,FALSE)) ->  | AD50: =IF(AD49="","",VLOOKUP(AD49,'シフト記号表（勤務時間帯)'!$C$5:$K$36,9,FALSE)) ->  | AE50: =IF(AE49="","",VLOOKUP(AE49,'シフト記号表（勤務時間帯)'!$C$5:$K$36,9,FALSE)) ->  | AF50: =IF(AF49="","",VLOOKUP(AF49,'シフト記号表（勤務時間帯)'!$C$5:$K$36,9,FALSE)) ->  | AG50: =IF(AG49="","",VLOOKUP(AG49,'シフト記号表（勤務時間帯)'!$C$5:$K$36,9,FALSE)) ->  | AH50: =IF(AH49="","",VLOOKUP(AH49,'シフト記号表（勤務時間帯)'!$C$5:$K$36,9,FALSE)) ->  | AI50: =IF(AI49="","",VLOOKUP(AI49,'シフト記号表（勤務時間帯)'!$C$5:$K$36,9,FALSE)) ->  | AJ50: =IF(AJ49="","",VLOOKUP(AJ49,'シフト記号表（勤務時間帯)'!$C$5:$K$36,9,FALSE)) ->  | AK50: =IF(AK49="","",VLOOKUP(AK49,'シフト記号表（勤務時間帯)'!$C$5:$K$36,9,FALSE)) ->  | AL50: =IF(AL49="","",VLOOKUP(AL49,'シフト記号表（勤務時間帯)'!$C$5:$K$36,9,FALSE)) ->  | AM50: =IF(AM49="","",VLOOKUP(AM49,'シフト記号表（勤務時間帯)'!$C$5:$K$36,9,FALSE)) ->  | AN50: =IF(AN49="","",VLOOKUP(AN49,'シフト記号表（勤務時間帯)'!$C$5:$K$36,9,FALSE)) ->  | AO50: =IF(AO49="","",VLOOKUP(AO49,'シフト記号表（勤務時間帯)'!$C$5:$K$36,9,FALSE)) ->  | AP50: =IF(AP49="","",VLOOKUP(AP49,'シフト記号表（勤務時間帯)'!$C$5:$K$36,9,FALSE)) ->  | AQ50: =IF(AQ49="","",VLOOKUP(AQ49,'シフト記号表（勤務時間帯)'!$C$5:$K$36,9,FALSE)) ->  | AR50: =IF(AR49="","",VLOOKUP(AR49,'シフト記号表（勤務時間帯)'!$C$5:$K$36,9,FALSE)) ->  | AS50: =IF(AS49="","",VLOOKUP(AS49,'シフト記号表（勤務時間帯)'!$C$5:$K$36,9,FALSE)) ->  | AT50: =IF(AT49="","",VLOOKUP(AT49,'シフト記号表（勤務時間帯)'!$C$5:$K$36,9,FALSE)) ->  | AU50: =IF(AU49="","",VLOOKUP(AU49,'シフト記号表（勤務時間帯)'!$C$5:$K$36,9,FALSE)) ->  | AV50: =IF(AV49="","",VLOOKUP(AV49,'シフト記号表（勤務時間帯)'!$C$5:$K$36,9,FALSE)) ->  | AW50: =IF(AW49="","",VLOOKUP(AW49,'シフト記号表（勤務時間帯)'!$C$5:$K$36,9,FALSE)) ->  | AX50: =IF($BB$3="計画",SUM(S50:AT50),IF($BB$3="実績",SUM(S50:AW50),"")) -> 0 | AZ50: =IF($BB$3="計画",AX50/4,IF($BB$3="実績",【記載例】地域密着型通所介護!AX50/(【記載例】地域密着型通所介護!$BB$8/7),"")) -> 0
F51: =C50 -> 0 | P51: サービス提供時間内 の勤務時間数 | S51: =IF(S49="","",VLOOKUP(S49,'シフト記号表（勤務時間帯)'!$C$5:$U$36,19,FALSE)) ->  | T51: =IF(T49="","",VLOOKUP(T49,'シフト記号表（勤務時間帯)'!$C$5:$U$36,19,FALSE)) ->  | U51: =IF(U49="","",VLOOKUP(U49,'シフト記号表（勤務時間帯)'!$C$5:$U$36,19,FALSE)) ->  | V51: =IF(V49="","",VLOOKUP(V49,'シフト記号表（勤務時間帯)'!$C$5:$U$36,19,FALSE)) ->  | W51: =IF(W49="","",VLOOKUP(W49,'シフト記号表（勤務時間帯)'!$C$5:$U$36,19,FALSE)) ->  | X51: =IF(X49="","",VLOOKUP(X49,'シフト記号表（勤務時間帯)'!$C$5:$U$36,19,FALSE)) ->  | Y51: =IF(Y49="","",VLOOKUP(Y49,'シフト記号表（勤務時間帯)'!$C$5:$U$36,19,FALSE)) ->  | Z51: =IF(Z49="","",VLOOKUP(Z49,'シフト記号表（勤務時間帯)'!$C$5:$U$36,19,FALSE)) ->  | AA51: =IF(AA49="","",VLOOKUP(AA49,'シフト記号表（勤務時間帯)'!$C$5:$U$36,19,FALSE)) ->  | AB51: =IF(AB49="","",VLOOKUP(AB49,'シフト記号表（勤務時間帯)'!$C$5:$U$36,19,FALSE)) ->  | AC51: =IF(AC49="","",VLOOKUP(AC49,'シフト記号表（勤務時間帯)'!$C$5:$U$36,19,FALSE)) ->  | AD51: =IF(AD49="","",VLOOKUP(AD49,'シフト記号表（勤務時間帯)'!$C$5:$U$36,19,FALSE)) ->  | AE51: =IF(AE49="","",VLOOKUP(AE49,'シフト記号表（勤務時間帯)'!$C$5:$U$36,19,FALSE)) ->  | AF51: =IF(AF49="","",VLOOKUP(AF49,'シフト記号表（勤務時間帯)'!$C$5:$U$36,19,FALSE)) ->  | AG51: =IF(AG49="","",VLOOKUP(AG49,'シフト記号表（勤務時間帯)'!$C$5:$U$36,19,FALSE)) ->  | AH51: =IF(AH49="","",VLOOKUP(AH49,'シフト記号表（勤務時間帯)'!$C$5:$U$36,19,FALSE)) ->  | AI51: =IF(AI49="","",VLOOKUP(AI49,'シフト記号表（勤務時間帯)'!$C$5:$U$36,19,FALSE)) ->  | AJ51: =IF(AJ49="","",VLOOKUP(AJ49,'シフト記号表（勤務時間帯)'!$C$5:$U$36,19,FALSE)) ->  | AK51: =IF(AK49="","",VLOOKUP(AK49,'シフト記号表（勤務時間帯)'!$C$5:$U$36,19,FALSE)) ->  | AL51: =IF(AL49="","",VLOOKUP(AL49,'シフト記号表（勤務時間帯)'!$C$5:$U$36,19,FALSE)) ->  | AM51: =IF(AM49="","",VLOOKUP(AM49,'シフト記号表（勤務時間帯)'!$C$5:$U$36,19,FALSE)) ->  | AN51: =IF(AN49="","",VLOOKUP(AN49,'シフト記号表（勤務時間帯)'!$C$5:$U$36,19,FALSE)) ->  | AO51: =IF(AO49="","",VLOOKUP(AO49,'シフト記号表（勤務時間帯)'!$C$5:$U$36,19,FALSE)) ->  | AP51: =IF(AP49="","",VLOOKUP(AP49,'シフト記号表（勤務時間帯)'!$C$5:$U$36,19,FALSE)) ->  | AQ51: =IF(AQ49="","",VLOOKUP(AQ49,'シフト記号表（勤務時間帯)'!$C$5:$U$36,19,FALSE)) ->  | AR51: =IF(AR49="","",VLOOKUP(AR49,'シフト記号表（勤務時間帯)'!$C$5:$U$36,19,FALSE)) ->  | AS51: =IF(AS49="","",VLOOKUP(AS49,'シフト記号表（勤務時間帯)'!$C$5:$U$36,19,FALSE)) ->  | AT51: =IF(AT49="","",VLOOKUP(AT49,'シフト記号表（勤務時間帯)'!$C$5:$U$36,19,FALSE)) ->  | AU51: =IF(AU49="","",VLOOKUP(AU49,'シフト記号表（勤務時間帯)'!$C$5:$U$36,19,FALSE)) ->  | AV51: =IF(AV49="","",VLOOKUP(AV49,'シフト記号表（勤務時間帯)'!$C$5:$U$36,19,FALSE)) ->  | AW51: =IF(AW49="","",VLOOKUP(AW49,'シフト記号表（勤務時間帯)'!$C$5:$U$36,19,FALSE)) ->  | AX51: =IF($BB$3="計画",SUM(S51:AT51),IF($BB$3="実績",SUM(S51:AW51),"")) -> 0 | AZ51: =IF($BB$3="計画",AX51/4,IF($BB$3="実績",【記載例】地域密着型通所介護!AX51/(【記載例】地域密着型通所介護!$BB$8/7),"")) -> 0
B52: =B49+1 -> 11 | P52: シフト記号
P53: 勤務時間数 | S53: =IF(S52="","",VLOOKUP(S52,'シフト記号表（勤務時間帯)'!$C$5:$K$36,9,FALSE)) ->  | T53: =IF(T52="","",VLOOKUP(T52,'シフト記号表（勤務時間帯)'!$C$5:$K$36,9,FALSE)) ->  | U53: =IF(U52="","",VLOOKUP(U52,'シフト記号表（勤務時間帯)'!$C$5:$K$36,9,FALSE)) ->  | V53: =IF(V52="","",VLOOKUP(V52,'シフト記号表（勤務時間帯)'!$C$5:$K$36,9,FALSE)) ->  | W53: =IF(W52="","",VLOOKUP(W52,'シフト記号表（勤務時間帯)'!$C$5:$K$36,9,FALSE)) ->  | X53: =IF(X52="","",VLOOKUP(X52,'シフト記号表（勤務時間帯)'!$C$5:$K$36,9,FALSE)) ->  | Y53: =IF(Y52="","",VLOOKUP(Y52,'シフト記号表（勤務時間帯)'!$C$5:$K$36,9,FALSE)) ->  | Z53: =IF(Z52="","",VLOOKUP(Z52,'シフト記号表（勤務時間帯)'!$C$5:$K$36,9,FALSE)) ->  | AA53: =IF(AA52="","",VLOOKUP(AA52,'シフト記号表（勤務時間帯)'!$C$5:$K$36,9,FALSE)) ->  | AB53: =IF(AB52="","",VLOOKUP(AB52,'シフト記号表（勤務時間帯)'!$C$5:$K$36,9,FALSE)) ->  | AC53: =IF(AC52="","",VLOOKUP(AC52,'シフト記号表（勤務時間帯)'!$C$5:$K$36,9,FALSE)) ->  | AD53: =IF(AD52="","",VLOOKUP(AD52,'シフト記号表（勤務時間帯)'!$C$5:$K$36,9,FALSE)) ->  | AE53: =IF(AE52="","",VLOOKUP(AE52,'シフト記号表（勤務時間帯)'!$C$5:$K$36,9,FALSE)) ->  | AF53: =IF(AF52="","",VLOOKUP(AF52,'シフト記号表（勤務時間帯)'!$C$5:$K$36,9,FALSE)) ->  | AG53: =IF(AG52="","",VLOOKUP(AG52,'シフト記号表（勤務時間帯)'!$C$5:$K$36,9,FALSE)) ->  | AH53: =IF(AH52="","",VLOOKUP(AH52,'シフト記号表（勤務時間帯)'!$C$5:$K$36,9,FALSE)) ->  | AI53: =IF(AI52="","",VLOOKUP(AI52,'シフト記号表（勤務時間帯)'!$C$5:$K$36,9,FALSE)) ->  | AJ53: =IF(AJ52="","",VLOOKUP(AJ52,'シフト記号表（勤務時間帯)'!$C$5:$K$36,9,FALSE)) ->  | AK53: =IF(AK52="","",VLOOKUP(AK52,'シフト記号表（勤務時間帯)'!$C$5:$K$36,9,FALSE)) ->  | AL53: =IF(AL52="","",VLOOKUP(AL52,'シフト記号表（勤務時間帯)'!$C$5:$K$36,9,FALSE)) ->  | AM53: =IF(AM52="","",VLOOKUP(AM52,'シフト記号表（勤務時間帯)'!$C$5:$K$36,9,FALSE)) ->  | AN53: =IF(AN52="","",VLOOKUP(AN52,'シフト記号表（勤務時間帯)'!$C$5:$K$36,9,FALSE)) ->  | AO53: =IF(AO52="","",VLOOKUP(AO52,'シフト記号表（勤務時間帯)'!$C$5:$K$36,9,FALSE)) ->  | AP53: =IF(AP52="","",VLOOKUP(AP52,'シフト記号表（勤務時間帯)'!$C$5:$K$36,9,FALSE)) ->  | AQ53: =IF(AQ52="","",VLOOKUP(AQ52,'シフト記号表（勤務時間帯)'!$C$5:$K$36,9,FALSE)) ->  | AR53: =IF(AR52="","",VLOOKUP(AR52,'シフト記号表（勤務時間帯)'!$C$5:$K$36,9,FALSE)) ->  | AS53: =IF(AS52="","",VLOOKUP(AS52,'シフト記号表（勤務時間帯)'!$C$5:$K$36,9,FALSE)) ->  | AT53: =IF(AT52="","",VLOOKUP(AT52,'シフト記号表（勤務時間帯)'!$C$5:$K$36,9,FALSE)) ->  | AU53: =IF(AU52="","",VLOOKUP(AU52,'シフト記号表（勤務時間帯)'!$C$5:$K$36,9,FALSE)) ->  | AV53: =IF(AV52="","",VLOOKUP(AV52,'シフト記号表（勤務時間帯)'!$C$5:$K$36,9,FALSE)) ->  | AW53: =IF(AW52="","",VLOOKUP(AW52,'シフト記号表（勤務時間帯)'!$C$5:$K$36,9,FALSE)) ->  | AX53: =IF($BB$3="計画",SUM(S53:AT53),IF($BB$3="実績",SUM(S53:AW53),"")) -> 0 | AZ53: =IF($BB$3="計画",AX53/4,IF($BB$3="実績",【記載例】地域密着型通所介護!AX53/(【記載例】地域密着型通所介護!$BB$8/7),"")) -> 0
F54: =C53 -> 0 | P54: サービス提供時間内 の勤務時間数 | S54: =IF(S52="","",VLOOKUP(S52,'シフト記号表（勤務時間帯)'!$C$5:$U$36,19,FALSE)) ->  | T54: =IF(T52="","",VLOOKUP(T52,'シフト記号表（勤務時間帯)'!$C$5:$U$36,19,FALSE)) ->  | U54: =IF(U52="","",VLOOKUP(U52,'シフト記号表（勤務時間帯)'!$C$5:$U$36,19,FALSE)) ->  | V54: =IF(V52="","",VLOOKUP(V52,'シフト記号表（勤務時間帯)'!$C$5:$U$36,19,FALSE)) ->  | W54: =IF(W52="","",VLOOKUP(W52,'シフト記号表（勤務時間帯)'!$C$5:$U$36,19,FALSE)) ->  | X54: =IF(X52="","",VLOOKUP(X52,'シフト記号表（勤務時間帯)'!$C$5:$U$36,19,FALSE)) ->  | Y54: =IF(Y52="","",VLOOKUP(Y52,'シフト記号表（勤務時間帯)'!$C$5:$U$36,19,FALSE)) ->  | Z54: =IF(Z52="","",VLOOKUP(Z52,'シフト記号表（勤務時間帯)'!$C$5:$U$36,19,FALSE)) ->  | AA54: =IF(AA52="","",VLOOKUP(AA52,'シフト記号表（勤務時間帯)'!$C$5:$U$36,19,FALSE)) ->  | AB54: =IF(AB52="","",VLOOKUP(AB52,'シフト記号表（勤務時間帯)'!$C$5:$U$36,19,FALSE)) ->  | AC54: =IF(AC52="","",VLOOKUP(AC52,'シフト記号表（勤務時間帯)'!$C$5:$U$36,19,FALSE)) ->  | AD54: =IF(AD52="","",VLOOKUP(AD52,'シフト記号表（勤務時間帯)'!$C$5:$U$36,19,FALSE)) ->  | AE54: =IF(AE52="","",VLOOKUP(AE52,'シフト記号表（勤務時間帯)'!$C$5:$U$36,19,FALSE)) ->  | AF54: =IF(AF52="","",VLOOKUP(AF52,'シフト記号表（勤務時間帯)'!$C$5:$U$36,19,FALSE)) ->  | AG54: =IF(AG52="","",VLOOKUP(AG52,'シフト記号表（勤務時間帯)'!$C$5:$U$36,19,FALSE)) ->  | AH54: =IF(AH52="","",VLOOKUP(AH52,'シフト記号表（勤務時間帯)'!$C$5:$U$36,19,FALSE)) ->  | AI54: =IF(AI52="","",VLOOKUP(AI52,'シフト記号表（勤務時間帯)'!$C$5:$U$36,19,FALSE)) ->  | AJ54: =IF(AJ52="","",VLOOKUP(AJ52,'シフト記号表（勤務時間帯)'!$C$5:$U$36,19,FALSE)) ->  | AK54: =IF(AK52="","",VLOOKUP(AK52,'シフト記号表（勤務時間帯)'!$C$5:$U$36,19,FALSE)) ->  | AL54: =IF(AL52="","",VLOOKUP(AL52,'シフト記号表（勤務時間帯)'!$C$5:$U$36,19,FALSE)) ->  | AM54: =IF(AM52="","",VLOOKUP(AM52,'シフト記号表（勤務時間帯)'!$C$5:$U$36,19,FALSE)) ->  | AN54: =IF(AN52="","",VLOOKUP(AN52,'シフト記号表（勤務時間帯)'!$C$5:$U$36,19,FALSE)) ->  | AO54: =IF(AO52="","",VLOOKUP(AO52,'シフト記号表（勤務時間帯)'!$C$5:$U$36,19,FALSE)) ->  | AP54: =IF(AP52="","",VLOOKUP(AP52,'シフト記号表（勤務時間帯)'!$C$5:$U$36,19,FALSE)) ->  | AQ54: =IF(AQ52="","",VLOOKUP(AQ52,'シフト記号表（勤務時間帯)'!$C$5:$U$36,19,FALSE)) ->  | AR54: =IF(AR52="","",VLOOKUP(AR52,'シフト記号表（勤務時間帯)'!$C$5:$U$36,19,FALSE)) ->  | AS54: =IF(AS52="","",VLOOKUP(AS52,'シフト記号表（勤務時間帯)'!$C$5:$U$36,19,FALSE)) ->  | AT54: =IF(AT52="","",VLOOKUP(AT52,'シフト記号表（勤務時間帯)'!$C$5:$U$36,19,FALSE)) ->  | AU54: =IF(AU52="","",VLOOKUP(AU52,'シフト記号表（勤務時間帯)'!$C$5:$U$36,19,FALSE)) ->  | AV54: =IF(AV52="","",VLOOKUP(AV52,'シフト記号表（勤務時間帯)'!$C$5:$U$36,19,FALSE)) ->  | AW54: =IF(AW52="","",VLOOKUP(AW52,'シフト記号表（勤務時間帯)'!$C$5:$U$36,19,FALSE)) ->  | AX54: =IF($BB$3="計画",SUM(S54:AT54),IF($BB$3="実績",SUM(S54:AW54),"")) -> 0 | AZ54: =IF($BB$3="計画",AX54/4,IF($BB$3="実績",【記載例】地域密着型通所介護!AX54/(【記載例】地域密着型通所介護!$BB$8/7),"")) -> 0
B55: =B52+1 -> 12 | P55: シフト記号
P56: 勤務時間数 | S56: =IF(S55="","",VLOOKUP(S55,'シフト記号表（勤務時間帯)'!$C$5:$K$36,9,FALSE)) ->  | T56: =IF(T55="","",VLOOKUP(T55,'シフト記号表（勤務時間帯)'!$C$5:$K$36,9,FALSE)) ->  | U56: =IF(U55="","",VLOOKUP(U55,'シフト記号表（勤務時間帯)'!$C$5:$K$36,9,FALSE)) ->  | V56: =IF(V55="","",VLOOKUP(V55,'シフト記号表（勤務時間帯)'!$C$5:$K$36,9,FALSE)) ->  | W56: =IF(W55="","",VLOOKUP(W55,'シフト記号表（勤務時間帯)'!$C$5:$K$36,9,FALSE)) ->  | X56: =IF(X55="","",VLOOKUP(X55,'シフト記号表（勤務時間帯)'!$C$5:$K$36,9,FALSE)) ->  | Y56: =IF(Y55="","",VLOOKUP(Y55,'シフト記号表（勤務時間帯)'!$C$5:$K$36,9,FALSE)) ->  | Z56: =IF(Z55="","",VLOOKUP(Z55,'シフト記号表（勤務時間帯)'!$C$5:$K$36,9,FALSE)) ->  | AA56: =IF(AA55="","",VLOOKUP(AA55,'シフト記号表（勤務時間帯)'!$C$5:$K$36,9,FALSE)) ->  | AB56: =IF(AB55="","",VLOOKUP(AB55,'シフト記号表（勤務時間帯)'!$C$5:$K$36,9,FALSE)) ->  | AC56: =IF(AC55="","",VLOOKUP(AC55,'シフト記号表（勤務時間帯)'!$C$5:$K$36,9,FALSE)) ->  | AD56: =IF(AD55="","",VLOOKUP(AD55,'シフト記号表（勤務時間帯)'!$C$5:$K$36,9,FALSE)) ->  | AE56: =IF(AE55="","",VLOOKUP(AE55,'シフト記号表（勤務時間帯)'!$C$5:$K$36,9,FALSE)) ->  | AF56: =IF(AF55="","",VLOOKUP(AF55,'シフト記号表（勤務時間帯)'!$C$5:$K$36,9,FALSE)) ->  | AG56: =IF(AG55="","",VLOOKUP(AG55,'シフト記号表（勤務時間帯)'!$C$5:$K$36,9,FALSE)) ->  | AH56: =IF(AH55="","",VLOOKUP(AH55,'シフト記号表（勤務時間帯)'!$C$5:$K$36,9,FALSE)) ->  | AI56: =IF(AI55="","",VLOOKUP(AI55,'シフト記号表（勤務時間帯)'!$C$5:$K$36,9,FALSE)) ->  | AJ56: =IF(AJ55="","",VLOOKUP(AJ55,'シフト記号表（勤務時間帯)'!$C$5:$K$36,9,FALSE)) ->  | AK56: =IF(AK55="","",VLOOKUP(AK55,'シフト記号表（勤務時間帯)'!$C$5:$K$36,9,FALSE)) ->  | AL56: =IF(AL55="","",VLOOKUP(AL55,'シフト記号表（勤務時間帯)'!$C$5:$K$36,9,FALSE)) ->  | AM56: =IF(AM55="","",VLOOKUP(AM55,'シフト記号表（勤務時間帯)'!$C$5:$K$36,9,FALSE)) ->  | AN56: =IF(AN55="","",VLOOKUP(AN55,'シフト記号表（勤務時間帯)'!$C$5:$K$36,9,FALSE)) ->  | AO56: =IF(AO55="","",VLOOKUP(AO55,'シフト記号表（勤務時間帯)'!$C$5:$K$36,9,FALSE)) ->  | AP56: =IF(AP55="","",VLOOKUP(AP55,'シフト記号表（勤務時間帯)'!$C$5:$K$36,9,FALSE)) ->  | AQ56: =IF(AQ55="","",VLOOKUP(AQ55,'シフト記号表（勤務時間帯)'!$C$5:$K$36,9,FALSE)) ->  | AR56: =IF(AR55="","",VLOOKUP(AR55,'シフト記号表（勤務時間帯)'!$C$5:$K$36,9,FALSE)) ->  | AS56: =IF(AS55="","",VLOOKUP(AS55,'シフト記号表（勤務時間帯)'!$C$5:$K$36,9,FALSE)) ->  | AT56: =IF(AT55="","",VLOOKUP(AT55,'シフト記号表（勤務時間帯)'!$C$5:$K$36,9,FALSE)) ->  | AU56: =IF(AU55="","",VLOOKUP(AU55,'シフト記号表（勤務時間帯)'!$C$5:$K$36,9,FALSE)) ->  | AV56: =IF(AV55="","",VLOOKUP(AV55,'シフト記号表（勤務時間帯)'!$C$5:$K$36,9,FALSE)) ->  | AW56: =IF(AW55="","",VLOOKUP(AW55,'シフト記号表（勤務時間帯)'!$C$5:$K$36,9,FALSE)) ->  | AX56: =IF($BB$3="計画",SUM(S56:AT56),IF($BB$3="実績",SUM(S56:AW56),"")) -> 0 | AZ56: =IF($BB$3="計画",AX56/4,IF($BB$3="実績",【記載例】地域密着型通所介護!AX56/(【記載例】地域密着型通所介護!$BB$8/7),"")) -> 0
F57: =C56 -> 0 | P57: サービス提供時間内 の勤務時間数 | S57: =IF(S55="","",VLOOKUP(S55,'シフト記号表（勤務時間帯)'!$C$5:$U$36,19,FALSE)) ->  | T57: =IF(T55="","",VLOOKUP(T55,'シフト記号表（勤務時間帯)'!$C$5:$U$36,19,FALSE)) ->  | U57: =IF(U55="","",VLOOKUP(U55,'シフト記号表（勤務時間帯)'!$C$5:$U$36,19,FALSE)) ->  | V57: =IF(V55="","",VLOOKUP(V55,'シフト記号表（勤務時間帯)'!$C$5:$U$36,19,FALSE)) ->  | W57: =IF(W55="","",VLOOKUP(W55,'シフト記号表（勤務時間帯)'!$C$5:$U$36,19,FALSE)) ->  | X57: =IF(X55="","",VLOOKUP(X55,'シフト記号表（勤務時間帯)'!$C$5:$U$36,19,FALSE)) ->  | Y57: =IF(Y55="","",VLOOKUP(Y55,'シフト記号表（勤務時間帯)'!$C$5:$U$36,19,FALSE)) ->  | Z57: =IF(Z55="","",VLOOKUP(Z55,'シフト記号表（勤務時間帯)'!$C$5:$U$36,19,FALSE)) ->  | AA57: =IF(AA55="","",VLOOKUP(AA55,'シフト記号表（勤務時間帯)'!$C$5:$U$36,19,FALSE)) ->  | AB57: =IF(AB55="","",VLOOKUP(AB55,'シフト記号表（勤務時間帯)'!$C$5:$U$36,19,FALSE)) ->  | AC57: =IF(AC55="","",VLOOKUP(AC55,'シフト記号表（勤務時間帯)'!$C$5:$U$36,19,FALSE)) ->  | AD57: =IF(AD55="","",VLOOKUP(AD55,'シフト記号表（勤務時間帯)'!$C$5:$U$36,19,FALSE)) ->  | AE57: =IF(AE55="","",VLOOKUP(AE55,'シフト記号表（勤務時間帯)'!$C$5:$U$36,19,FALSE)) ->  | AF57: =IF(AF55="","",VLOOKUP(AF55,'シフト記号表（勤務時間帯)'!$C$5:$U$36,19,FALSE)) ->  | AG57: =IF(AG55="","",VLOOKUP(AG55,'シフト記号表（勤務時間帯)'!$C$5:$U$36,19,FALSE)) ->  | AH57: =IF(AH55="","",VLOOKUP(AH55,'シフト記号表（勤務時間帯)'!$C$5:$U$36,19,FALSE)) ->  | AI57: =IF(AI55="","",VLOOKUP(AI55,'シフト記号表（勤務時間帯)'!$C$5:$U$36,19,FALSE)) ->  | AJ57: =IF(AJ55="","",VLOOKUP(AJ55,'シフト記号表（勤務時間帯)'!$C$5:$U$36,19,FALSE)) ->  | AK57: =IF(AK55="","",VLOOKUP(AK55,'シフト記号表（勤務時間帯)'!$C$5:$U$36,19,FALSE)) ->  | AL57: =IF(AL55="","",VLOOKUP(AL55,'シフト記号表（勤務時間帯)'!$C$5:$U$36,19,FALSE)) ->  | AM57: =IF(AM55="","",VLOOKUP(AM55,'シフト記号表（勤務時間帯)'!$C$5:$U$36,19,FALSE)) ->  | AN57: =IF(AN55="","",VLOOKUP(AN55,'シフト記号表（勤務時間帯)'!$C$5:$U$36,19,FALSE)) ->  | AO57: =IF(AO55="","",VLOOKUP(AO55,'シフト記号表（勤務時間帯)'!$C$5:$U$36,19,FALSE)) ->  | AP57: =IF(AP55="","",VLOOKUP(AP55,'シフト記号表（勤務時間帯)'!$C$5:$U$36,19,FALSE)) ->  | AQ57: =IF(AQ55="","",VLOOKUP(AQ55,'シフト記号表（勤務時間帯)'!$C$5:$U$36,19,FALSE)) ->  | AR57: =IF(AR55="","",VLOOKUP(AR55,'シフト記号表（勤務時間帯)'!$C$5:$U$36,19,FALSE)) ->  | AS57: =IF(AS55="","",VLOOKUP(AS55,'シフト記号表（勤務時間帯)'!$C$5:$U$36,19,FALSE)) ->  | AT57: =IF(AT55="","",VLOOKUP(AT55,'シフト記号表（勤務時間帯)'!$C$5:$U$36,19,FALSE)) ->  | AU57: =IF(AU55="","",VLOOKUP(AU55,'シフト記号表（勤務時間帯)'!$C$5:$U$36,19,FALSE)) ->  | AV57: =IF(AV55="","",VLOOKUP(AV55,'シフト記号表（勤務時間帯)'!$C$5:$U$36,19,FALSE)) ->  | AW57: =IF(AW55="","",VLOOKUP(AW55,'シフト記号表（勤務時間帯)'!$C$5:$U$36,19,FALSE)) ->  | AX57: =IF($BB$3="計画",SUM(S57:AT57),IF($BB$3="実績",SUM(S57:AW57),"")) -> 0 | AZ57: =IF($BB$3="計画",AX57/4,IF($BB$3="実績",【記載例】地域密着型通所介護!AX57/(【記載例】地域密着型通所介護!$BB$8/7),"")) -> 0
B58: =B55+1 -> 13 | P58: シフト記号
P59: 勤務時間数 | S59: =IF(S58="","",VLOOKUP(S58,'シフト記号表（勤務時間帯)'!$C$5:$K$36,9,FALSE)) ->  | T59: =IF(T58="","",VLOOKUP(T58,'シフト記号表（勤務時間帯)'!$C$5:$K$36,9,FALSE)) ->  | U59: =IF(U58="","",VLOOKUP(U58,'シフト記号表（勤務時間帯)'!$C$5:$K$36,9,FALSE)) ->  | V59: =IF(V58="","",VLOOKUP(V58,'シフト記号表（勤務時間帯)'!$C$5:$K$36,9,FALSE)) ->  | W59: =IF(W58="","",VLOOKUP(W58,'シフト記号表（勤務時間帯)'!$C$5:$K$36,9,FALSE)) ->  | X59: =IF(X58="","",VLOOKUP(X58,'シフト記号表（勤務時間帯)'!$C$5:$K$36,9,FALSE)) ->  | Y59: =IF(Y58="","",VLOOKUP(Y58,'シフト記号表（勤務時間帯)'!$C$5:$K$36,9,FALSE)) ->  | Z59: =IF(Z58="","",VLOOKUP(Z58,'シフト記号表（勤務時間帯)'!$C$5:$K$36,9,FALSE)) ->  | AA59: =IF(AA58="","",VLOOKUP(AA58,'シフト記号表（勤務時間帯)'!$C$5:$K$36,9,FALSE)) ->  | AB59: =IF(AB58="","",VLOOKUP(AB58,'シフト記号表（勤務時間帯)'!$C$5:$K$36,9,FALSE)) ->  | AC59: =IF(AC58="","",VLOOKUP(AC58,'シフト記号表（勤務時間帯)'!$C$5:$K$36,9,FALSE)) ->  | AD59: =IF(AD58="","",VLOOKUP(AD58,'シフト記号表（勤務時間帯)'!$C$5:$K$36,9,FALSE)) ->  | AE59: =IF(AE58="","",VLOOKUP(AE58,'シフト記号表（勤務時間帯)'!$C$5:$K$36,9,FALSE)) ->  | AF59: =IF(AF58="","",VLOOKUP(AF58,'シフト記号表（勤務時間帯)'!$C$5:$K$36,9,FALSE)) ->  | AG59: =IF(AG58="","",VLOOKUP(AG58,'シフト記号表（勤務時間帯)'!$C$5:$K$36,9,FALSE)) ->  | AH59: =IF(AH58="","",VLOOKUP(AH58,'シフト記号表（勤務時間帯)'!$C$5:$K$36,9,FALSE)) ->  | AI59: =IF(AI58="","",VLOOKUP(AI58,'シフト記号表（勤務時間帯)'!$C$5:$K$36,9,FALSE)) ->  | AJ59: =IF(AJ58="","",VLOOKUP(AJ58,'シフト記号表（勤務時間帯)'!$C$5:$K$36,9,FALSE)) ->  | AK59: =IF(AK58="","",VLOOKUP(AK58,'シフト記号表（勤務時間帯)'!$C$5:$K$36,9,FALSE)) ->  | AL59: =IF(AL58="","",VLOOKUP(AL58,'シフト記号表（勤務時間帯)'!$C$5:$K$36,9,FALSE)) ->  | AM59: =IF(AM58="","",VLOOKUP(AM58,'シフト記号表（勤務時間帯)'!$C$5:$K$36,9,FALSE)) ->  | AN59: =IF(AN58="","",VLOOKUP(AN58,'シフト記号表（勤務時間帯)'!$C$5:$K$36,9,FALSE)) ->  | AO59: =IF(AO58="","",VLOOKUP(AO58,'シフト記号表（勤務時間帯)'!$C$5:$K$36,9,FALSE)) ->  | AP59: =IF(AP58="","",VLOOKUP(AP58,'シフト記号表（勤務時間帯)'!$C$5:$K$36,9,FALSE)) ->  | AQ59: =IF(AQ58="","",VLOOKUP(AQ58,'シフト記号表（勤務時間帯)'!$C$5:$K$36,9,FALSE)) ->  | AR59: =IF(AR58="","",VLOOKUP(AR58,'シフト記号表（勤務時間帯)'!$C$5:$K$36,9,FALSE)) ->  | AS59: =IF(AS58="","",VLOOKUP(AS58,'シフト記号表（勤務時間帯)'!$C$5:$K$36,9,FALSE)) ->  | AT59: =IF(AT58="","",VLOOKUP(AT58,'シフト記号表（勤務時間帯)'!$C$5:$K$36,9,FALSE)) ->  | AU59: =IF(AU58="","",VLOOKUP(AU58,'シフト記号表（勤務時間帯)'!$C$5:$K$36,9,FALSE)) ->  | AV59: =IF(AV58="","",VLOOKUP(AV58,'シフト記号表（勤務時間帯)'!$C$5:$K$36,9,FALSE)) ->  | AW59: =IF(AW58="","",VLOOKUP(AW58,'シフト記号表（勤務時間帯)'!$C$5:$K$36,9,FALSE)) ->  | AX59: =IF($BB$3="計画",SUM(S59:AT59),IF($BB$3="実績",SUM(S59:AW59),"")) -> 0 | AZ59: =IF($BB$3="計画",AX59/4,IF($BB$3="実績",【記載例】地域密着型通所介護!AX59/(【記載例】地域密着型通所介護!$BB$8/7),"")) -> 0
F60: =C59 -> 0 | P60: サービス提供時間内 の勤務時間数 | S60: =IF(S58="","",VLOOKUP(S58,'シフト記号表（勤務時間帯)'!$C$5:$U$36,19,FALSE)) ->  | T60: =IF(T58="","",VLOOKUP(T58,'シフト記号表（勤務時間帯)'!$C$5:$U$36,19,FALSE)) ->  | U60: =IF(U58="","",VLOOKUP(U58,'シフト記号表（勤務時間帯)'!$C$5:$U$36,19,FALSE)) ->  | V60: =IF(V58="","",VLOOKUP(V58,'シフト記号表（勤務時間帯)'!$C$5:$U$36,19,FALSE)) ->  | W60: =IF(W58="","",VLOOKUP(W58,'シフト記号表（勤務時間帯)'!$C$5:$U$36,19,FALSE)) ->  | X60: =IF(X58="","",VLOOKUP(X58,'シフト記号表（勤務時間帯)'!$C$5:$U$36,19,FALSE)) ->  | Y60: =IF(Y58="","",VLOOKUP(Y58,'シフト記号表（勤務時間帯)'!$C$5:$U$36,19,FALSE)) ->  | Z60: =IF(Z58="","",VLOOKUP(Z58,'シフト記号表（勤務時間帯)'!$C$5:$U$36,19,FALSE)) ->  | AA60: =IF(AA58="","",VLOOKUP(AA58,'シフト記号表（勤務時間帯)'!$C$5:$U$36,19,FALSE)) ->  | AB60: =IF(AB58="","",VLOOKUP(AB58,'シフト記号表（勤務時間帯)'!$C$5:$U$36,19,FALSE)) ->  | AC60: =IF(AC58="","",VLOOKUP(AC58,'シフト記号表（勤務時間帯)'!$C$5:$U$36,19,FALSE)) ->  | AD60: =IF(AD58="","",VLOOKUP(AD58,'シフト記号表（勤務時間帯)'!$C$5:$U$36,19,FALSE)) ->  | AE60: =IF(AE58="","",VLOOKUP(AE58,'シフト記号表（勤務時間帯)'!$C$5:$U$36,19,FALSE)) ->  | AF60: =IF(AF58="","",VLOOKUP(AF58,'シフト記号表（勤務時間帯)'!$C$5:$U$36,19,FALSE)) ->  | AG60: =IF(AG58="","",VLOOKUP(AG58,'シフト記号表（勤務時間帯)'!$C$5:$U$36,19,FALSE)) ->  | AH60: =IF(AH58="","",VLOOKUP(AH58,'シフト記号表（勤務時間帯)'!$C$5:$U$36,19,FALSE)) ->  | AI60: =IF(AI58="","",VLOOKUP(AI58,'シフト記号表（勤務時間帯)'!$C$5:$U$36,19,FALSE)) ->  | AJ60: =IF(AJ58="","",VLOOKUP(AJ58,'シフト記号表（勤務時間帯)'!$C$5:$U$36,19,FALSE)) ->  | AK60: =IF(AK58="","",VLOOKUP(AK58,'シフト記号表（勤務時間帯)'!$C$5:$U$36,19,FALSE)) ->  | AL60: =IF(AL58="","",VLOOKUP(AL58,'シフト記号表（勤務時間帯)'!$C$5:$U$36,19,FALSE)) ->  | AM60: =IF(AM58="","",VLOOKUP(AM58,'シフト記号表（勤務時間帯)'!$C$5:$U$36,19,FALSE)) ->  | AN60: =IF(AN58="","",VLOOKUP(AN58,'シフト記号表（勤務時間帯)'!$C$5:$U$36,19,FALSE)) ->  | AO60: =IF(AO58="","",VLOOKUP(AO58,'シフト記号表（勤務時間帯)'!$C$5:$U$36,19,FALSE)) ->  | AP60: =IF(AP58="","",VLOOKUP(AP58,'シフト記号表（勤務時間帯)'!$C$5:$U$36,19,FALSE)) ->  | AQ60: =IF(AQ58="","",VLOOKUP(AQ58,'シフト記号表（勤務時間帯)'!$C$5:$U$36,19,FALSE)) ->  | AR60: =IF(AR58="","",VLOOKUP(AR58,'シフト記号表（勤務時間帯)'!$C$5:$U$36,19,FALSE)) ->  | AS60: =IF(AS58="","",VLOOKUP(AS58,'シフト記号表（勤務時間帯)'!$C$5:$U$36,19,FALSE)) ->  | AT60: =IF(AT58="","",VLOOKUP(AT58,'シフト記号表（勤務時間帯)'!$C$5:$U$36,19,FALSE)) ->  | AU60: =IF(AU58="","",VLOOKUP(AU58,'シフト記号表（勤務時間帯)'!$C$5:$U$36,19,FALSE)) ->  | AV60: =IF(AV58="","",VLOOKUP(AV58,'シフト記号表（勤務時間帯)'!$C$5:$U$36,19,FALSE)) ->  | AW60: =IF(AW58="","",VLOOKUP(AW58,'シフト記号表（勤務時間帯)'!$C$5:$U$36,19,FALSE)) ->  | AX60: =IF($BB$3="計画",SUM(S60:AT60),IF($BB$3="実績",SUM(S60:AW60),"")) -> 0 | AZ60: =IF($BB$3="計画",AX60/4,IF($BB$3="実績",【記載例】地域密着型通所介護!AX60/(【記載例】地域密着型通所介護!$BB$8/7),"")) -> 0
H62: (15) サービス提供時間内の勤務延時間数（生活相談員） | S62: =IF(SUMIF($F$22:$F$60, "生活相談員", S22:S60)=0,"",SUMIF($F$22:$F$60,"生活相談員",S22:S60)) ->  | AX62: =IF(SUMIF($C$22:$C$60, "生活相談員", AX22:AY60)=0,"",SUMIF($C$22:$C$60,"生活相談員",AX22:AY60)) ->  | AZ62: =IF(AX62="","",IF($BB$3="計画",AX62/4,IF($BB$3="実績",AX62/(【記載例】地域密着型通所介護!$BB$8/7),""))) -> 
H63: (16) サービス提供時間内の勤務延時間数（看護職員） | S63: =IF(SUMIF($F$22:$F$60, "看護職員", S22:S60)=0,"",SUMIF($F$22:$F$60, "看護職員", S22:S60)) ->  | T63: =IF(SUMIF($F$22:$F$60, "看護職員", T22:T60)=0,"",SUMIF($F$22:$F$60, "看護職員", T22:T60)) ->  | AX63: =IF(SUMIF($C$22:$C$60, "看護職員", AX22:AX60)=0,"",SUMIF($C$22:$C$60, "看護職員", AX22:AX60)) ->  | AZ63: =IF(AX63="","",IF($BB$3="計画",AX63/4,IF($BB$3="実績",AX63/(【記載例】地域密着型通所介護!$BB$8/7),""))) -> 
H64: (17) サービス提供時間内の勤務延時間数（介護職員） | S64: =IF(SUMIF($F$22:$F$60, "介護職員", S22:S60)=0,"",SUMIF($F$22:$F$60, "介護職員", S22:S60)) ->  | AX64: =IF(SUMIF($C$22:$C$60, "介護職員", AX22:AX60)=0,"",SUMIF($C$22:$C$60, "介護職員", AX22:AX60)) ->  | AZ64: =IF(AX64="","",IF($BB$3="計画",AX64/4,IF($BB$3="実績",AX64/(【記載例】地域密着型通所介護!$BB$8/7),""))) -> 
H65: (18) 利用者数
H66: (19) サービス提供時間（平均提供時間）
H67: =IF(AU8>10,"(20) 確保すべき介護職員の勤務時間数","(20)確保すべき介護職員・看護職員の勤務時間数") -> (20)確保すべき介護職員・看護職員の勤務時間数 | S67: =IF(S66<>"",IF(S65>15,((S65-15)/5+1)*S66,S66),"") ->  | T67: =IF(T66<>"",IF(T65>15,((T65-15)/5+1)*T66,T66),"") -> 
H68: =IF(AU8>10,"(21) 確保すべき介護職員の勤務時間数の判定","(21)確保すべき介護職員・看護職員の勤務時間数の判定") -> (21)確保すべき介護職員・看護職員の勤務時間数の判定 | S68: =IF($AU$8>10,IF(S67="","",IF(S64>=S67,"○","×")),IF(S67="","",IF((S64+S63)>=S67,"○","×"))) ->  | T68: =IF($AU$8>10,IF(T67="","",IF(T64>=T67,"○","×")),IF(T67="","",IF((T64+T63)>=T67,"○","×"))) -> 
B69: (22) 1日の職種別人員内訳 | L69: 生活相談員 | S69: =IF($L69="","",IF(COUNTIFS($F$22:$F$60,$L69,S$22:S$60,">0")=0,"",COUNTIFS($F$22:$F$60,$L69,S$22:S$60,">0"))) ->  | T69: =IF($L69="","",IF(COUNTIFS($F$22:$F$60,$L69,T$22:T$60,">0")=0,"",COUNTIFS($F$22:$F$60,$L69,T$22:T$60,">0"))) -> 
L70: 看護職員 | S70: =IF($L70="","",IF(COUNTIFS($F$22:$F$60,$L70,S$22:S$60,">0")=0,"",COUNTIFS($F$22:$F$60,$L70,S$22:S$60,">0"))) ->  | T70: =IF($L70="","",IF(COUNTIFS($F$22:$F$60,$L70,T$22:T$60,">0")=0,"",COUNTIFS($F$22:$F$60,$L70,T$22:T$60,">0"))) -> 
L71: 介護職員 | X71: =IF($L71="","",IF(COUNTIFS($F$22:$F$60,$L71,X$22:X$60,">0")=0,"",COUNTIFS($F$22:$F$60,$L71,X$22:X$60,">0"))) -> 
L72: 機能訓練指導員

Sheet シフト記号表（勤務時間帯)
B1: ≪要 提出≫
B2: ■シフト記号表（勤務時間帯） | E2: ※24時間表記 | I2: 休憩時間1時間は「1:00」、休憩時間45分は「00:45」と入力してください。
E3: 勤務時間 | M3: サービス提供時間 | Q3: サービス提供時間内の勤務時間
B4: （記号の意味） | C4: 記号 | E4: 始業時間 | G4: 終業時間 | I4: うち、休憩時間 | K4: 勤務時間 | M4: 開始 | O4: 終了 | Q4: 開始 | S4: 終了 | U4: 勤務時間
B5: 休：休暇 | C5: 休 | D5: ： | E5: - | F5: ～ | G5: - | H5: （ | I5: - | J5: ） | K5: - | M5: - | N5: ～ | O5: - | Q5: - | R5: ～ | S5: - | U5: -
B6: 出：出張 | C6: 出 | D6: ： | E6: - | F6: ～ | G6: - | H6: （ | I6: - | J6: ） | K6: - | M6: - | N6: ～ | O6: - | Q6: - | R6: ～ | S6: - | U6: -
B7: 研：研修 | C7: 研 | D7: ： | E7: - | F7: ～ | G7: - | H7: （ | I7: - | J7: ） | K7: - | M7: - | N7: ～ | O7: - | Q7: - | R7: ～ | S7: - | U7: -
C8: a | D8: ： | E8: 12:00:00 | F8: ～ | G8: 18:00:00 | H8: （ | I8: 01:00:00 | J8: ） | K8: =(G8-E8-I8)*24 -> 5 | M8: 09:30:00 | N8: ～ | O8: 16:30:00 | Q8: =IF(E8<M8,M8,E8) -> 12:00:00 | R8: ～ | S8: =IF(G8>O8,O8,G8) -> 16:30:00 | U8: =(S8-Q8)*24 -> 4.5
C9: b | D9: ： | F9: ～ | H9: （ | I9: 00:00:00 | J9: ） | K9: =(G9-E9-I9)*24 -> 0 | M9: 09:30:00 | N9: ～ | O9: 16:30:00 | Q9: =IF(E9<M9,M9,E9) -> 09:30:00 | R9: ～ | S9: =IF(G9>O9,O9,G9) -> 00:00:00 | U9: =(S9-Q9)*24 -> -9.5
C10: c | D10: ： | F10: ～ | H10: （ | I10: 00:00:00 | J10: ） | K10: =(G10-E10-I10)*24 -> 0 | M10: 09:30:00 | N10: ～ | O10: 16:30:00 | Q10: 09:30:00 | R10: ～ | S10: 00:00:00 | U10: -9.5
C11: d | D11: ： | F11: ～ | H11: （ | I11: 00:00:00 | J11: ） | K11: 0 | M11: 09:30:00 | N11: ～ | O11: 16:30:00 | Q11: 09:30:00 | R11: ～ | S11: 00:00:00 | U11: -9.5
C12: e | D12: ： | F12: ～ | H12: （ | I12: 00:00:00 | J12: ） | K12: 0 | M12: 09:30:00 | N12: ～ | O12: 16:30:00 | Q12: 09:30:00 | R12: ～ | S12: 00:00:00 | U12: -9.5
C13: f | D13: ： | F13: ～ | H13: （ | I13: 00:00:00 | J13: ） | K13: 0 | M13: 09:30:00 | N13: ～ | O13: 16:30:00 | Q13: 09:30:00 | R13: ～ | S13: 00:00:00 | U13: -9.5
C14: g | D14: ： | F14: ～ | H14: （ | I14: 00:00:00 | J14: ） | K14: 0 | M14: 09:30:00 | N14: ～ | O14: 16:30:00 | Q14: 09:30:00 | R14: ～ | S14: =IF(G14>O14,O14,G14) -> 00:00:00 | U14: -9.5
C15: h | D15: ： | F15: ～ | H15: （ | I15: 00:00:00 | J15: ） | K15: 0 | M15: 09:30:00 | N15: ～ | O15: 16:30:00 | Q15: 09:30:00 | R15: ～ | S15: 00:00:00 | U15: -9.5
C16: i | D16: ： | F16: ～ | H16: （ | I16: 00:00:00 | J16: ） | K16: 0 | M16: 09:30:00 | N16: ～ | O16: 16:30:00 | Q16: 09:30:00 | R16: ～ | S16: 00:00:00 | U16: -9.5
C17: j | D17: ： | F17: ～ | H17: （ | I17: 00:00:00 | J17: ） | K17: 0 | M17: 09:30:00 | N17: ～ | O17: 16:30:00 | Q17: 09:30:00 | R17: ～ | S17: 00:00:00 | U17: -9.5
C18: k | D18: ： | F18: ～ | H18: （ | I18: 00:00:00 | J18: ） | K18: 0 | M18: 09:30:00 | N18: ～ | O18: 16:30:00 | Q18: 09:30:00 | R18: ～ | S18: 00:00:00 | U18: -9.5
C19: l | D19: ： | F19: ～ | H19: （ | I19: 00:00:00 | J19: ） | K19: 0 | M19: 09:30:00 | N19: ～ | O19: 16:30:00 | Q19: 09:30:00 | R19: ～ | S19: 00:00:00 | U19: -9.5
C20: m | D20: ： | F20: ～ | H20: （ | I20: 00:00:00 | J20: ） | K20: 0 | M20: 09:30:00 | N20: ～ | O20: 16:30:00 | Q20: 09:30:00 | R20: ～ | S20: 00:00:00 | U20: -9.5
C21: n | D21: ： | F21: ～ | H21: （ | I21: 00:00:00 | J21: ） | K21: 0 | M21: 09:30:00 | N21: ～ | O21: 16:30:00 | Q21: 09:30:00 | R21: ～ | S21: 00:00:00 | U21: -9.5
C22: o | D22: ： | F22: ～ | H22: （ | J22: ） | K22: 1 | N22: ～ | R22: ～ | U22: 1
C23: p | D23: ： | F23: ～ | H23: （ | J23: ） | K23: 2 | N23: ～ | R23: ～ | U23: 2
C24: q | D24: ： | F24: ～ | H24: （ | J24: ） | K24: 3 | N24: ～ | R24: ～ | U24: 3
C25: r | D25: ： | F25: ～ | H25: （ | J25: ） | K25: 4 | N25: ～ | R25: ～ | U25: 4
C26: s | D26: ： | F26: ～ | H26: （ | J26: ） | K26: 5 | N26: ～ | R26: ～ | U26: 5
C27: t | D27: ： | F27: ～ | H27: （ | J27: ） | K27: 6 | N27: ～ | R27: ～ | U27: 6
C28: u | D28: ： | F28: ～ | H28: （ | J28: ） | K28: 7 | N28: ～ | R28: ～ | U28: 7
C29: v | D29: ： | F29: ～ | H29: （ | J29: ） | K29: 8 | N29: ～ | R29: ～ | U29: 7
C30: w | D30: ： | F30: ～ | H30: （ | J30: ） | K30: 4 | N30: ～ | R30: ～ | U30: 3
C31: x | D31: ： | F31: ～ | H31: （ | J31: ） | N31: ～ | R31: ～
C32: y | D32: ： | F32: ～ | H32: （ | J32: ） | N32: ～ | R32: ～
C33: z | D33: ： | F33: ～ | H33: （ | J33: ） | K33: =(G33-E33-I33)*24 -> 0 | N33: ～ | Q33: =IF(E33<M33,M33,E33) -> 00:00:00 | R33: ～ | S33: =IF(G33>O33,O33,G33) -> 00:00:00 | U33: =(S33-Q33)*24 -> 0
C34: 早退(1) | D34: ： | F34: ～ | H34: （ | J34: ） | K34: 0 | N34: ～ | Q34: 00:00:00 | R34: ～ | S34: 00:00:00 | U34: 0 | W34: 実績で早退者がいた場合に使用
C35: 早退(2) | D35: ： | F35: ～ | H35: （ | J35: ） | K35: 0 | N35: ～ | Q35: 00:00:00 | R35: ～ | S35: 00:00:00 | U35: 0 | W35: 実績で早退者がいた場合に使用
C36: az | D36: ： | F36: ～ | H36: （ | J36: ） | K36: 0 | N36: ～ | Q36: 00:00:00 | R36: ～ | S36: 00:00:00 | U36: 0

Sheet 記入方法
B1: ≪提出不要≫
B2: 従業者の勤務の体制及び勤務形態一覧表 記入方法 （地域密着型通所介護）
C4: ・・・直接入力する必要がある箇所です。 | F4: 下記の記入方法に従って、入力してください。
C5: ・・・プルダウンから選択して入力する必要がある箇所です。
B6: なお、「従業者の勤務の体制及び勤務形態一覧表」に「シフト記号表（勤務時間帯）」も必ず添付して提出してください。
B8: ・最初に「年月欄」「サービス種別」「事業所名」を入力してください。
B10: (1) 「計画」・「実績」のいずれかを選択してください。
B11: 指定基準の確認に際しては、「計画」を選択し、４週分の勤務時間を入力してください。
B12: 実績を表す場合は、「実績」を選択し、暦月分で勤務時間を入力してください。
B14: (2) 事業所の営業日及びサービス提供時間を入力してください。（サービス提供時間には送迎時間は含まれません。）
B16: (3) 事業所における常勤の従業者が勤務すべき時間数を入力してください。
B18: (4) 利用定員数を入力してください。
B20: (5) 事業所全体のサービス提供単位数及び、本シートに記入する単位目を入力してください。
B22: (6) 当該サービス提供単位のサービス提供時間を入力してください。（送迎時間は含まれません。）
B24: (7) 従業者の職種について、下記のうち該当する職種をプルダウンより選択してください。
B25: 記入の順序は、職種ごとにまとめてください。
C27: No | D27: 職種名
C28: 1 | D28: 管理者
C29: 2 | D29: 生活相談員
C30: 3 | D30: 看護職員
C31: 4 | D31: 介護職員
C32: 5 | D32: 機能訓練指導員
B34: (8) 従業者の勤務形態について、下記のうち該当する区分の記号をプルダウンより選択してください。
B35: 記入の順序は、各職種の中で勤務形態の区分ごとにまとめてください。
C37: 記号 | D37: 区分
C38: A | D38: 常勤で専従
C39: B | D39: 常勤で兼務
C40: C | D40: 非常勤で専従
C41: D | D41: 非常勤で兼務
C43: （注）常勤・非常勤の区分について
C44: 当該事業所における勤務時間が、当該事業所において定められている常勤の従業者が勤務すべき時間数に達していることをいいます。雇用の形態は考慮しません。
C45: （例えば、常勤者は週に40時間勤務することとされた事業所であれば、非正規雇用であっても、週40時間勤務する従業者は常勤扱いとなります。）
B47: (9) 従業者の保有する資格について、該当する資格名称をプルダウンより選択してください。
B48: 保有資格を全て記入するのではなく、人員基準上、求められる資格等を入力してください。
B49: ※選択した資格及び研修に関して、必要に応じて、資格証又は研修修了証等の写しを添付資料として提出してください。
B51: (10) 従業者の氏名を記入してください。
B53: (11) 申請する事業に係る従業者（管理者を含む。）の1ヶ月分の勤務時間数を入力してください。（別シートの「シフト記号表」を作成し、シフト記号を選択してください。）
B54: ※指定基準の確認に際しては、4週分の入力で可とします。実績を表す場合には、暦月で入力ください。
B56: (12) 従業者ごとに、合計勤務時間数が自動計算されますので、誤りがないか確認してください。
B57: ※入力することができる勤務時間数は、当該事業所において常勤の従業者が勤務すべき勤務時間数を上限とします。
B59: (13) 従業者ごとに、週平均の勤務時間数が自動計算されますので、誤りがないか確認してください。
B61: (14) 申請する事業所以外の事業所・施設との兼務がある場合は、兼務先の事業所・施設の名称及び兼務する職務の内容について記入してください。
B62: 同一事業所内の兼務についても兼務する職務の内容を記入してください。
B64: (15) 生活相談員がサービス提供時間内に勤務する時間数の合計（勤務延時間数）が自動計算されますので、誤りがないか確認してください。
B66: (16) 看護職員がサービス提供時間内に勤務する時間数の合計（勤務延時間数）が自動計算されますので、誤りがないか確認してください。
B68: (17) 介護職員がサービス提供時間内に勤務する時間数の合計（勤務延時間数）が自動計算されますので、誤りがないか確認してください。
B70: (18) 利用者数は、単位ごとの利用者の実人数（計画の場合は定員数）を入力してください。
B72: (19) サービス提供時間（平均提供時間）を入力してください。（平均提供時間＝利用者ごとの提供時間数の合計を利用者数で除して得た数）
B74: (20) 確保すべき介護職員（利用定員が10人以下の場合は、介護職員及び看護職員）の勤務時間数が自動計算されます。（(18)(19)を入力しないと計算されません。）
B76: (21) 確保すべき介護職員（利用定員が10人以下の場合は、介護職員及び看護職員）の勤務時間数の判定結果（○・×）が表示されます。（(18)(19)を入力しないと計算されません。）
B78: (22) 1日の職種別人員内訳が自動カウントされますので、誤りがないか確認してください。職種を追加したい場合は、機能訓練指導員の下に１種追加可能です。

Sheet プルダウン・リスト
B1: １．サービス種別
B3: No | C3: サービス種別
B4: 1 | C4: 地域密着型通所介護
B5: 2
B6: 3
B7: 4
B8: 5
B10: ２．職種名・資格名称
B12: 職種名 | C12: 管理者 | D12: 生活相談員 | E12: 看護職員 | F12: 介護職員 | G12: 機能訓練指導員
B13: 資格 | C13: ー | D13: 社会福祉士 | E13: 看護師 | F13: 介護福祉士 | G13: 理学療法士
D14: 社会福祉主事任用資格 | E14: 准看護師 | F14: ー | G14: 作業療法士
D15: 精神保健福祉士 | G15: 言語聴覚士
D16: 介護支援専門員 | G16: 看護師
D17: 介護福祉士（実務１年以上） | G17: 准看護師
D18: 福祉施設における相談援助業務２年以上 | G18: 柔道整復師
G19: あん摩マッサージ指圧師
G20: はり師
G21: きゅう師
C28: 【皆様へ】
C29: ※ INDIRECT関数使用のため、以下のとおりセルに「名前の定義」をしています。
C30: C12～L12・・・「職種」
C31: C列・・・「管理者」
C32: D列・・・「生活相談員」
C33: E列・・・「看護職員」
C34: F列・・・「介護職員」
C35: G列・・・「機能訓練指導員」
C36: ※自治体の条例により定められた資格等、自治体独自の資格を追加する必要がある場合は、上表の空欄に資格名称を追加してください。
C37: 行が足りない場合は、適宜追加してください。
C39: ※職種を追加したい場合は、12行目に職種名を追加し、それぞれの列に必要資格を入力してください。
C40: その後、以下の手順で必要資格について「名前の定義」をします。
C41: ・「数式」タブ ⇒ 「名前の定義」を選択
C42: ・「名前」に職種名を入力
C43: ・「参照範囲」にその職種の必要資格を範囲設定する ⇒ OKボタン
C44: 編集したい場合は、「数式」タブ ⇒ 「名前の管理」で編集してください。
